Workbook

Sheet Cover
C370: 3.1

Sheet OrganEcs History
A1: OrganEcs Anaerobic Digestion Tool History

Sheet 1-Title
B2: Title
B4: Title | C4: OrganEcs – Cost Estimating Tool for Managing Source-Separated Organic Waste
B5: Version | C5: 3.1 (Compost Edition)
B6: Acknowledgements | C6: OrganEcs, was developed by the U.S. Environmental Protection Agency under the auspices of the Global Methane Initiative and in support of the Climate and Clean Air Coalition. Tom Frankiewicz (EPA’s International Biogas Team Lead) managed the tool’s development with technical support from Abt Associates. The U.S. EPA recommends users cite OrganEcs with the following citation when citing the tool in published work: U.S. EPA. 2021. OrganEcs-Compost V3.1.
B7: Disclaimer | C7: The tool is meant to provide planning-level assistance, outputs should be verified through a detailed feasibility study (or through the solicitation of bids from qualified proposers) before project development commences.

Sheet 2-Contents
B2: Contents
B4: 1 | D4: Title
B5: =B4+1 -> 2 | D5: Contents
B6: =B5+1 -> 3 | D6: Background
B7: 4 | D7: Instructions
B8: 5 | D8: Facility Inputs
B9: 6 | D9: Waste Inputs
B10: 7 | D10: Economic Inputs
B11: 8 | D11: Default Values
B12: 9 | D12: Outputs
B13: 10 | D13: Composting Without Forced Aeration-Low
B14: 11 | D14: Composting Without Forced Aeration-High
B15: 12 | D15: Tool Assumptions
B16: 13 | D16: Sources

Sheet 3-Background
B2: Background
B4: Introduction | D4: The Global Methane Initiative works with cities worldwide to improve solid waste management and reduce emissions of short-lived climate pollutants. OrganEcs, was developed by the U.S. Environmental Protection Agency under the auspices of the Global Methane Initiative and in support of the Climate and Clean Air Coalition. Organic waste management projects (i.e., composting, and anaerobic digestion) represent a key opportunity for achieving these objectives. Planning and development of such projects require a detailed understanding of the costs involved in construction and operation of organic waste management facilities. OrganEcs is a tool for estimating the costs associated with organic waste management projects. It provides planning-level assistance to local governments, waste professionals, policymakers, facility operators, and project developers to help them make financial decisions about their potential organic projects. Specifically, the tool assists users in determining the expected IRR (internal rate of return), given user inputs for a composting project. Model outputs should be viewed as preliminary results that can be used for planning purposes. These estimates should be verified through detailed feasibility studies prior to project development, or through the solicitation of bids from qualified firms.

Sheet 4-Instructions
B2: Instructions
B4: Model Organization
B5: This tool has 13 sheets, which are color coded as follows: • BLUE tabs: User inputs. • YELLOW tab: Default values. • BLACK tab: Results or Outputs. • GRAY tabs: Organic waste treatment technologies • GREEN tabs: Assumptions and additional resources.
B6: Operating the Tool
B7: Version Control | C7: • Download the latest version of OrganEcs • Save the file with the city name before entering any data
B8: Cell Colors | C8: • Input cells are BLUE and will change to a lighter shade when you enter data. • Default cells are YELLOW and will change to brown if they are altered. • Some cells have an automatic validity check. If you enter an incorrect value or make an invalid selection, the cell will turn RED, and an error message will appear. Please correct the error before continuing.
B9: Data Entry | C9: • Enter all required user inputs into the blue cells in the input tabs (“5-Facility Inputs,” “6-Waste Inputs,” and “7-Economic Inputs”). Please fill in all blue tabs in order to receive accurate outputs. • Review the default values on tab "8-Default Values" and alter if desired. • Additional instructions and source references can be found at the top of each tab and in the notes attached to the relevant input cells.
B10: Outputs Tab | C10: • Provide inputs on the type of waste for which the gate fee is to be calculated, and whether yard waste and purchased bulking agent are to be included in the waste diversion estimates.
B11: Help
B12: If you need assistance while using the model, please send any questions to BiogasToolkit@epa.gov.
B13: Tool Limitations
B14: Facility performance (e.g., electricity and compost production, water demand, wastewater generation, equipment lifespan, operating days/year) is based on published data for typical facilities and will vary based on a number of factors, including, but not limited to, operating and maintenance (O&M) practices, feedstock characteristics, selected technology, and climate.
B15: Tool Assumptions
B16: Tool assumptions and default values can be found throughout the tool in hovering messages and on the "8-Default Values" tab. The user may elect to overwrite default values with actual data from local processing facilities or a select technology vendor. Some of the default values in the "8-Default Values" tab are calculations based on user inputs in tabs 5-7.

Sheet 5-Facility Inputs
B2: Facility Inputs - Design Parameters for New Facility
B4: Instructions: | C4: - Enter design parameters into the blue cells, or select values from the drop-down menus, for facility(ies) the user is interested in developing and/or comparing. - User may alter given default values if desired. - Input cells will change to light blue once user has entered desired parameters; default cells will change to dark brown if value is altered.
B7: Technology Selection
B8: Please choose "Yes" in the dropdown list for the technologies you are interested in developing/ comparing. If you are not interested in the technology, please choose "No."
B9: Composting Without Forced Aeration | C9: CHOOSE ONE
B10: Composting With Forced Aeration | C10: CHOOSE ONE
B11: =IF(AND(C9<>"Yes",C10<>"Yes"),"ERROR - Please choose 'Yes' for at least one technology.", "") -> ERROR - Please choose 'Yes' for at least one technology.
B13: Facility Operations | F13: Units
B14: Investment Year
B15: Construction Period | F15: Years
B16: Operations Start Year | E16: =E14+E15 -> 0
D17: AUTOMATIC VALIDITY CHECK | E17: =IF(E15>3,"ERROR- Shorten construction period to 3 or fewer years.",IF(E15<1,"ERROR - Model requires a minimum 1-year construction period.","OK")) -> ERROR - Model requires a minimum 1-year construction period.
B18: Maintenance Begins | E18: =E16+1 -> 1 | F18: Year
B19: Facility Lifespan | E19: 20 | F19: Years
D20: AUTOMATIC VALIDITY CHECK | E20: =IF(DepreciationAllInfrastructure>FacilityLifespan,"ERROR- Depreciation Period Greater than Facility Lifespan","OK") -> OK
B21: Average Round-trip Distance from Waste Generators to Landfill | F21: km
B22: Average Round-trip Distance from Waste Generators to Organics Management Facility | F22: km
B23: Round-trip Distance from Organics Management Facility to Landfill | F23: km
D24: AUTOMATIC VALIDITY CHECK | E24: =IF(OR(DistanceGeneratorsToLandfill=0,DistanceGeneratorsToOrganicsFacility=0,DistanceOrganicsFacilityToLandfill=0), "ERROR - Please enter a non-zero value for all distances (cells E21-E23).", "OK") -> ERROR - Please enter a non-zero value for all distances (cells E21-E23).
B26: Facility Design - Composting Technologies | D26: Composting Without Forced Aeration (e.g., mattress/bed, windrow) | E26: Composting With Forced Aeration (e.g., in-vessel [container, tunnel, tower, drum], aerated static pile) | F26: Units
B27: Peak Throughput Operating Year (to determine design capacity) | D27: 3 | E27: 3 | F27: Operating Year (1-20)
B28: Percentage of Compost Facility Intends to Sell - Year 1 | D28: 0.3 | E28: 0.3 | F28: %
B29: Percentage of Compost Facility Intends to Sell - Year 2 | D29: 0.5 | E29: 0.5 | F29: %
B30: Percentage of Compost Facility Intends to Sell - Year 3 | D30: 0.7 | E30: 0.7 | F30: %
B31: Percentage of Equipment Subject to VAT (Value-Added Tax; same as Goods and Services Tax) | F31: %
B32: Ancillary Costs | F32: $
D80: Macro Reset
D81: 3 | E81: 3
D82: 0.3 | E82: 0.3
D83: 0.5 | E83: 0.5
D84: 0.7 | E84: 0.7
B167: CHOOSE ONE
B168: Compost
B169: Digestate
B171: CHOOSE ONE
B172: Digestate (No Dewatering)
B173: Liquid Digestate + Dewatered Digestate
B174: Dewatered Digestate (Liquid Recycled/Discharged to Sewer)
B175: Compost (Liquid Recycled/Discharged to Sewer)
B176: Liquid Digestate + Compost
B178: CHOOSE ONE
B179: Not Applicable
B180: Composting W/O Forced Aeration
B181: Composting With Forced Aeration - Aerated Static Pile
B182: Composting With Forced Aeration - In-vessel
B183: CHOOSE ONE
B184: Yes
B185: No
B187: CHOOSE ONE
B188: No Yard Waste Under Management
B189: Compost Yard Waste
B190: Give Away Yard Waste
B191: Sell Mulch
B194: CHOOSE ONE
B195: No Yard Waste Under Management
B196: Digest
B197: Compost
B200: CHOOSE ONE
B201: Aerated Static Pile
B202: In-vessel

Sheet 6-Waste Inputs
C2: Waste Inputs - Feedstock Characteristics
C4: Instructions: | D4: - User should enter tonnes/year of available feedstock in the first table ("ALL SCENARIOS") and the projected growth rate of waste in the "Total Incoming Feedstock" table, regardless of which technology user intends to pursue. Feedstock characteristics will vary by location and season. - Input cells will change to light blue once user has entered local data. - User may choose to use default feedstock characteristics or enter data from laboratory analysis into the yellow-green cells. - Default cells will change to dark brown if value is altered. - Based on feedstock blending calculations, user should modify the amount of purchased bulking agent required to meet the target values in red, which are unique to each type of technology. If target values are not met, cell will be highlighted in red.
H14: Purchased Bulking Agent for Compost (e.g., Woo+H14d Chips)
C16: Please fill out cells E20 to J20 ("Yard Waste" through "Corrugated Cardboard") regardless of which project technology you intend to pursue.
C17: Note: Tool requires a minimum waste throughput of 2,000 TPY. Composting without forced aeration requires either 100% yard waste or a mix of yard waste, food waste, manure, and sludge that is at least 60% yard waste; cardboard and mixed paper will not be incorporated, as there are better uses for these wastes.
C18: ALL SCENARIOS | E18: Feedstock Availability & Compost Bulking Agent
C19: Feedstock | E19: Yard Waste | F19: Food Waste | G19: Manure | H19: Sewage Sludge | I19: Mixed Paper | J19: Corrugated Cardboard | K19: Purchased Bulking Agent for Compost (e.g., Wood Chips) | L19: Feedstock Availability (Excl. Purchased Bulking Agent)
C20: Tonnes Per Year | L20: =SUM(YardWasteTonnes:CardboardTonnes) -> 0
C21: Carbon (% dry weight) | E21: =E22*E23 -> 0.2196 | F21: 0.8352 | G21: 0.3816 | H21: 0.4806 | I21: 0.38125 | J21: 0.563 | K21: 0.495
C22: Nitrogen (% dry weight) | E22: 0.0072 | F22: 0.036 | G22: 0.024 | H22: 0.0445 | I22: 0.0025 | J22: 0.001 | K22: 0.0036
C23: C:N Ratio (parts carbon to 1 part nitrogen) | E23: 30.5 | F23: 23.2 | G23: 15.9 | H23: 10.8 | I23: 152.5 | J23: 563 | K23: 137.5
C24: Moisture % | E24: 0.5361 | F24: 0.67 | G24: 0.8 | H24: 0.78 | I24: 0.25 | J24: 0.17 | K24: 0.4695
C25: Volatile Solids | E25: 0.906 | F25: 0.953 | G25: 0.8264 | H25: 0.8 | I25: 0.915 | J25: 0.89 | K25: 0.906
C26: Tonnes Carbon | E26: =E21*E20 -> 0 | F26: 0 | G26: 0 | H26: 0 | I26: 0 | J26: 0 | K26: =K21*K20 -> 0
C27: Tonnes Nitrogen | E27: =E20*E22 -> 0 | F27: 0 | G27: 0 | H27: 0 | I27: 0 | J27: 0 | K27: 0
C28: Tonnes of Moisture | E28: =E24*E20 -> 0 | F28: 0 | G28: 0 | H28: 0 | I28: 0 | J28: 0 | K28: 0
C29: Tonnes of Volatile Solids | E29: =E20*E25 -> 0 | F29: 0 | G29: 0 | H29: 0 | I29: 0 | J29: 0 | K29: 0
C31: C:N RATIO | E31: =SUM(E26:K26)/SUM(E27:K27) ->  | F31: Target = 25-35%
C32: PERCENT MOISTURE | E32: =SUM(E28:K28)/SUM(E20:K20) ->  | F32: Target = 50-65%
C33: PERCENT VOLATILE SOLIDS | E33: =SUM(E29:K29)/SUM(E20:K20) -> 
C34: Add. H20 Required: Composting With Forced Aeration (m3/year) | E34: =IF((0.6*SUM(E20:K20))-(SUM(E28:K28))<0,0,(0.6*SUM(E20:K20))-(SUM(E28:K28))) -> 0
C35: Add. H20 Required: Composting W/O Forced Aeration (m3/year) | E35: =IF((0.6*SUM(E20:E20))-(SUM(E28:E28))<0,0,(0.6*SUM(E20:E20))-(SUM(E28:E28))) -> 0
C38: Total Incoming Feedstock
C39: Feedstock Availability (Excl. Purchased Bulking Agent) | E39: =SUM(YardWasteTonnes:CardboardTonnes) -> 0 | F39: TPY
C40: Growth Rate of Waste | E40: 0 | F40: %
C70: Nitrogen (% dry weight) | E70: 0.0072 | F70: 0.036 | G70: 0.024 | H70: 0.0445 | I70: 0.0025 | J70: 0.001 | K70: 0.0036
C71: C:N Ratio (parts carbon to 1 part nitrogen) | E71: 30.5 | F71: 23.2 | G71: 15.9 | H71: 10.8 | I71: 152.5 | J71: 563 | K71: 137.5
C72: Moisture % | E72: 0.5361 | F72: 0.67 | G72: 0.8 | H72: 0.78 | I72: 0.25 | J72: 0.17 | K72: 0.4695
C73: Volatile Solids | E73: 0.906 | F73: 0.953 | G73: 0.8264 | H73: 0.8 | I73: 0.915 | J73: 0.89 | K73: 0.906
C75: Composting W/O Forced Aeration | E75: 2000
C76: Composting With Forced Aeration | E76: 2000

Sheet 7-Economic Inputs
B2: Economic Inputs - Costs, Revenues, & Financial Parameters
B4: Instructions:
B9: PROJECT COSTS | F9: Units | H9: PROJECT REVENUES | L9: Units
B10: ENTER ALL COSTS IN US DOLLARS | H10: ENTER ALL COSTS IN US DOLLARS
B11: Labor ($ in Current Year) | H11: Facility Operations ($ in Current Year)
B12: Manager/Engineer - Labor Cost per Person | F12: $/person/year | H12: Gate Fee (Tipping Fee) to be Charged - Yard Wastes | L12: $/tonne
B13: Operator - Labor Cost per Person | F13: $/person/year | H13: Gate Fee (Tipping Fee) to be Charged - Food Wastes | L13: $/tonne
B14: Total Number of Managers/Engineers | F14: Full-time Employees | H14: Gate Fee (Tipping Fee) to be Charged - Manure/Sludge | L14: $/tonne
B15: Total Number of Operators | F15: Full-time Employees | H15: Gate Fee (Tipping Fee) to be Charged - Paper/Cardboard | L15: $/tonne
B16: Facility Operations ($ in Current Year) | H16: Gate Fee- All Wastes | L16: $/tonne
H17: Avoided Landfill Disposal Fee | L17: $/tonne
B18: Process Water Purchase Price | F18: $/m3 | H18: Residual Disposal Fee | L18: $/tonne
B19: Wastewater Treatment Cost | F19: $/m3 | H19: Transportation Fee | L19: $/tonne/km
B20: Purchased Bulking Agent Cost (e.g., Wood Chips) | F20: $/tonne
H21: Sellable End Products ($ in Current Year)
B22: Energy Purchases ($ in Current Year) | H22: Market Price for Compost | L22: $/tonne
B23: Electricty Retail Price | F23: $/kWh | H23: Inflation and Taxes
B24: Diesel Retail Price | F24: $/liter | H24: Inflation Rate - General | L24: %
H25: Inflation Rate - Disposal Fee, Gate Fee | L25: %
B26: Land ($ in Current Year) | H26: Inflation Rate - Electricity and Fuel | L26: %
B27: Purchase or Lease Land | E27: CHOOSE ONE | H27: Inflation Rate - Compost, Digestate, Bulking Agent | L27: %
B28: Land - Purchase Price | F28: $/ha | H28: Tax Paid on Gross Profits | L28: %
B29: Land - Lease Price | F29: $/ha/year | H29: VAT (Value-Added Tax; same as Goods and Services tax) | L29: %
B30: Soil Product Land Application Cost | F30: $/tonne
B31: Soil Product Transport Cost | F31: $/tonne | H31: Financing
B32: Estimated Capital and Equipment Costs | H32: Grant Funding | L32: $
B33: Infrastructure & Site Development Cost | F33: $ | H33: Depreciation Life - Composting Equipment | K33: 7 | L33: Years
B34: Equipment Costs | F34: $ | H34: Depreciation Life - Composting Infrastructure | K34: 20 | L34: Years
B35: Salvage Value of Equipment at End of Useful-Life | F35: $
H36: Equity Payback | L36: Years
H38: Percent Debt (% of project financed through debt) | L38: %
H39: Percent Equity (% of project financed through equity) | L39: %
J40: AUTOMATIC VALIDITY CHECK | K40: =IF(K38+K39=100%,"OK","ERROR-Debt + Equity Must Equal 100%") -> ERROR-Debt + Equity Must Equal 100%
J41: AUTOMATIC VALIDITY CHECK | K41: =IF(K39>0,"OK","ERROR-Equity Must be a Minimum of 0.1% for Model to Return Values") -> ERROR-Equity Must be a Minimum of 0.1% for Model to Return Values
H42: Annual Interest Rate - Short-term Debt | L42: %
H43: Annual Interest Rate - Long-term Debt | L43: %
H44: Tenor (amount of time left to repay loan) - Short-term Debt | L44: Years
J45: AUTOMATIC VALIDITY CHECK | K45: =IF(AND(K44<=K33,K44>0),"OK",IF(K44=0,"ERROR-Enter Short-term Debt Tenor", "ERROR-Debt Tenor Cannot Exceed Composting Equipment Life")) -> ERROR-Enter Short-term Debt Tenor
H46: Tenor (amount of time left to repay loan) - Long-term Debt | L46: Years
J47: AUTOMATIC VALIDITY CHECK | K47: =IF(AND(K46<=K34,K46>0),"OK",IF(K46=0,"ERROR-Enter Long-term Debt Tenor","ERROR-Debt Tenor Cannot Exceed AD Equipment Life")) -> ERROR-Enter Long-term Debt Tenor
H48: Use Debt/Equity to Finance Purchase of New Composting Equipment at End of Useful Life? | K48: CHOOSE ONE
H49: Depreciation Method | K49: CHOOSE ONE
B479: CHOOSE ONE | C479: CHOOSE ONE | D479: CHOOSE ONE
B480: Purchase | C480: Yes | D480: Straight-Line
B481: Lease | C481: No | D481: Sum-of-Years' Digits

Sheet 8-Default Values
B2: Default Values
B4: Instructions:
B10: Technology | C10: Composting Without Forced Aeration | D10: Composting With Forced Aeration
B11: Soil Product Selected | C11: Compost | D11: Compost
B12: Facility Design Capacity | C12: =IF(C13=0,0,YardWasteTonnes*(1+WasteGrowthRate)^'5-Facility Inputs'!D27) -> 0 | D12: =IF(D13=0,0,SUM(YardWasteTonnes:BulkingAgentTonnesForCompost)*(1+WasteGrowthRate)^'5-Facility Inputs'!E27) -> 0
B13: Total Annual Waste to Composting in YR 1 of Operations | C13: ='10-Compost W.O. FA'!D25 -> 0 | D13: ='11-Compost With FA'!D25 -> 0
B14: Scenario
B15: Facility Operations | C15: 0.0001 | D15: 8e-05
B16: Operating Days/Year | C16: 310 | D16: 310
B17: Land Requirement (ha/tonne) | C17: 0.0002 | D17: 0.0002
B18: Electricity Demand (kWh/tonne) | C18: 4 | D18: 4
B19: Fuel Demand (liters/tonne) | C19: 7.5 | D19: 7.5
B20: Primary Screening Residues (% of incoming feedstock) | C20: 0.1 | D20: 0.1
B21: Compost Production (% of incoming feedstock) | C21: 0.3 | D21: 0.3
B22: Final Screening Residues (% of incoming feedstock) | C22: 0.1 | D22: 0.1
B23: Composting System Capex
B24: Equipment Cost in Investment Year ($) | C24: ='7-Economic Inputs'!$E34 -> 0 | D24: ='7-Economic Inputs'!$E34 -> 0
B25: Infrastructure & Site Development Cost in Investment Year ($) | C25: ='7-Economic Inputs'!$E33 -> 0 | D25: ='7-Economic Inputs'!$E33 -> 0
B26: Capital Cost Contingency (% of Capex) | C26: 0.1 | D26: 0.1
B27: All Systems O&M
B28: Maintenance Cost (% of Capex) | C28: 0.02 | D28: 0.02
B29: Insurance (% of total Capex excl. VAT and grants) | C29: 0.01 | D29: 0.01
B30: Outside Services and Supplies (% of O&M before contingency) | C30: 0.02 | D30: 0.02 | F30: `
B31: O&M Cost Contingency (% of O&M) | C31: 0.1 | D31: 0.1
B54: Operating Days/Year | C54: 310 | D54: 310
B55: Land Requirement (ha/tonne) | C55: 0.0002 | D55: 0.0002
B56: Electricity Demand (kWh/tonne) | C56: 4 | D56: 4
B57: Fuel Demand (liters/tonne) | C57: 7.5 | D57: 7.5
B58: Primary Screening Residues (% of incoming feedstock) | C58: 0.1 | D58: 0.1
B59: Compost Production (% of incoming feedstock) | C59: 0.3 | D59: 0.3
B60: Final Screening Residues (% of incoming feedstock) | C60: 0.1 | D60: 0.1
B62: Capital Cost Contingency (% of Capex) | C62: 0.1 | D62: 0.1
B63: All Systems O&M
B64: Maintenance Cost (% of Capex) | C64: 0.02 | D64: 0.02
B65: Insurance (% of total Capex excl. VAT and grants) | C65: 0.01 | D65: 0.01
B66: Outside Services and Supplies (% of O&M before contingency) | C66: 0.02 | D66: 0.02
B67: O&M Cost Contingency (% of O&M) | C67: 0.1 | D67: 0.1

Sheet 9-Outputs
B2: Outputs
B4: Guidance: | C4: This sheet summarizes and visualizes some basic information about the project based on user inputs from tab “5-Faculty Inputs,” “6-Waste Inputs,” “7-Economic Inputs,” and “8-Default Values.”
B8: Composting Without Forced Aeration | D8: USD | F8: Composting With Forced Aeration | H8: USD
B9: (e.g., mattress/bed, windrow) | F9: (e.g., semi-permeable cover, container/box/tunnel, tower, drum)
B10: Initial Capital Investment ($) | D10: =IF(ISERROR(ROUNDUP('10-Compost W.O. FA'!D39,-2)),0,ROUNDUP('10-Compost W.O. FA'!D39,-2)) -> 0 | F10: Initial Capital Investment ($) | H10: =IF(ISERROR(ROUNDUP('11-Compost With FA'!D39,-2)),0,ROUNDUP('11-Compost With FA'!D39,-2)) -> 0
B11: Capex/tonne ($/TPY) | D11: =IF(ISERROR(ROUNDUP(D10/D17,0)),0,ROUNDUP(D10/D17,0)) -> 0 | F11: Capex/tonne ($/TPY) | H11: =IF(ISERROR(ROUNDUP(H10/H17,0)),0,ROUNDUP(H10/H17,0)) -> 0
B12: Total Annual Expenses in YR 1 Operations ($/year) | D12: =IF(ISERROR(ROUNDUP(MIN('10-Compost W.O. FA'!E227:X227),-2)),0,ROUNDUP(MIN('10-Compost W.O. FA'!E227:X227),-2)) -> 0 | F12: Total Annual Expenses in YR 1 Operations ($/year) | H12: =IF(ISERROR(ROUNDUP(MIN('11-Compost With FA'!D227:Z227),-2)),0,ROUNDUP(MIN('11-Compost With FA'!D227:Z227),-2)) -> 0
B13: O&M/tonne in YR 1 Operations ($/tonne of waste processed) | D13: =IF(ISERROR(ROUNDUP(D12/(D15+D16),0)),0,ROUNDUP(D12/(D15+D16),0)) -> 0 | F13: O&M/tonne in YR 1 Operations ($/tonne of waste processed) | H13: =IF(ISERROR(ROUNDUP(H12/(H15+H16),0)),0,ROUNDUP(H12/(H15+H16),0)) -> 0
B14: Total Land Required (ha) | D14: ='10-Compost W.O. FA'!D29 -> 0 | F14: Total Land Required (ha) | H14: ='11-Compost With FA'!D29 -> 0
B15: Total Organic Waste Available in YR 1 (tonnes/year) | D15: =FeedstockAvailability -> 0 | F15: Total Organic Waste Available in YR 1 (tonnes/year) | H15: =FeedstockAvailability -> 0
B16: Total Bulking Agent Required in YR 1 (tonnes/year) | D16: ='10-Compost W.O. FA'!$D$24 -> 0 | F16: Total Bulking Agent Required in YR 1 (tonnes/year) | H16: ='11-Compost With FA'!D24 -> 0
B17: Total Waste Composted in YR 1 (tonnes/year) | D17: ='10-Compost W.O. FA'!D25 -> 0 | F17: Total Waste Composted in YR 1 (tonnes/year) | H17: ='11-Compost With FA'!D25 -> 0
B18: Compost Produced in YR 1 (tonnes/year) | D18: =MIN('10-Compost W.O. FA'!D225:Z225) -> 0 | F18: Compost Produced In YR 1 (tonnes/year) | H18: =MIN('11-Compost With FA'!D224:Z224) -> 0
B19: Levered IRR (%) | D19: =IF(ISERROR('10-Compost W.O. FA'!D58),"Not Viable",'10-Compost W.O. FA'!D58) -> Not Viable | F19: Levered IRR (%) | H19: =IF(ISERROR('11-Compost With FA'!D58),"Not Viable",'11-Compost With FA'!D58) -> Not Viable
B20: Composting Without Forced Aeration | D20: USD | F20: Composting With Forced Aeration | H20: USD
B21: Project Revenues vs. Expenses | F21: Project Revenues vs. Expenses
B37: Composting Without Forced Aeration | D37: USD | F37: Composting With Forced Aeration | H37: USD
B38: Gross Profit | F38: Gross Profit

Sheet 10-Compost W.O. FA
B2: Composting Without Forced Aeration
B4: Guidance: | C4: This sheet shows the hypothetical project’s estimated annual Income Statement and Balance Sheet, which are used to determine the Internal Rate of Return (IRR). The IRR is the rate that the modeled project’s cash flows break even with initial investment. IRR is determined by setting the net present value of all cash flows (both positive and negative) from the investment equal to zero. Note this model estimates Equity IRR. To estimate Project IRR please set total debt on the “7-Economic Inputs” tab equal to zero. The sheet is organized by first listing important assumptions based on user inputs from tab “5-Faculty Inputs,” “6-Waste Inputs,” “7-Economic Inputs,” and “8-Default Values.” Below this are estimated project costs and revenues, debt schedules, interest, depreciation, and other important information.
B7: Key Inputs
B8: Compost Sale Price | D8: =CompostMarketPrice -> 0 | E8: $/tonne
B9: Gate Fee - Yard Waste | D9: =GateFeeYardWaste -> 0 | E9: $/tonne
B10: Gate Fee - Food Waste | D10: =GateFeeFoodWaste -> 0 | E10: $/tonne
B11: Gate Fee - Manure/Sludge Waste | D11: =GateFeeManure -> 0 | E11: $/tonne
B12: Gate Fee - Paper/Cardboard | D12: =GateFeePaper -> 0 | E12: $/tonne
B14: Composting Facility Assumptions | E14: Units
B15: Equipment Lifespan | D15: =DepreciationComposting -> 7 | E15: years
B16: Replacement 1 | D16: =IF(D15+OperationsStartYear<(OperationsStartYear+FacilityLifespan),D15+OperationsStartYear,"N/A") -> 7 | E16: year
B17: Replacement 2 | D17: =IF(D16="N/A","N/A",IF(D15+D16<(OperationsStartYear+FacilityLifespan),D15+D16,"N/A")) -> 14 | E17: year
B18: Replacement 3 | D18: =IF(D17="N/A","N/A",IF(D15+D17<(OperationsStartYear+FacilityLifespan),D15+D17,"N/A")) -> N/A | E18: year
B20: Incoming Yard Waste in YR 1 | D20: =YardWasteTonnes -> 0 | E20: tonnes/year
B21: Incoming Food Waste in YR 1 | D21: =FoodWasteTonnes -> 0 | E21: tonnes/year
B22: Incoming Manure/Sludge Waste in YR 1 | D22: =ManureTonnes+SewageTonnes -> 0 | E22: tonnes/year
B23: Incoming Mixed Paper and Cardboard in YR 1 | D23: =MixedPaperTonnes+CardboardTonnes -> 0 | E23: tonnes/year
B24: Purchased Bulking Agent Requirements in YR 1 | D24: =BulkingAgentTonnesForCompost -> 0 | E24: tonnes/year
B25: Total Annual Waste Throughput in YR 1 | D25: =SUM(D20:D24) -> 0 | E25: tonnes/year
B26: Daily Waste Throughput in YR 1 | D26: =D25/'8-Default Values'!C16 -> 0 | E26: tonnes/day
B27: Facility Design Capacity | D27: =D25*(1+WasteGrowthRate)^'5-Facility Inputs'!D27 -> 0 | E27: tonnes/year
B28: Design Capacity Daily Throughput | D28: =D27/'8-Default Values'!C16 -> 0 | E28: tonnes/day
B29: Land Requirement | D29: ='8-Default Values'!C17*D27 -> 0 | E29: ha
B30: Process Water Demand in YR 1 | D30: =IF(D27=0,0,'6-Waste Inputs'!$E$35) -> 0 | E30: m3/year
B32: Capital Cost Assumptions | E32: Units
B33: Infrastructure and Site Development Cost in Investment Year | D33: ='7-Economic Inputs'!E33 -> 0 | E33: $
B34: Equipment Cost in Investment Year | D34: ='7-Economic Inputs'!E34 -> 0 | E34: $
B35: VAT | D35: =D34*'5-Facility Inputs'!D31*VAT -> 0 | E35: $
B36: Land Purchase in Investment Year | D36: =IF('7-Economic Inputs'!E27="Purchase",LandPurchasePrice*D29,0) -> 0 | E36: $
B37: Ancillary Costs | D37: ='5-Facility Inputs'!D32 -> 0 | E37: $
B38: Capital Cost Contingency | D38: ='8-Default Values'!C26*(D34+D33) -> 0 | E38: $
B39: Capital Investment | D39: =SUM(D33:D38) -> 0 | E39: $
B40: Grant Funding | D40: =IF(D25=0,0,GrantFunding) -> 0 | E40: $
B41: TOTAL NET CAPEX IN INVESTMENT YEAR | D41: =IF(D39-D40>0, D39-D40, 0) -> 0 | E41: $
B43: Financing Assumptions | E43: Units
B44: Total Debt in Investment Year | D44: =PercentDebt*D41 -> 0 | E44: $
B45: Total Equity in Investment Year | D45: =D41*PercentEquity -> 0 | E45: $
B46: Short-term Debt in Investment Year | D46: =D34*PercentDebt -> 0 | E46: $
B47: Long-term Debt in Investment Year | D47: =D44-D46 -> 0 | E47: $
B49: Finance New Equipment | D49: ='7-Economic Inputs'!K48 -> CHOOSE ONE
B50: Inflated Composting Equipment Costs
B51: Replacement 1 | D51: =IF(D16="N/A",0,(D34*(((1+InflationRateGeneral)^(D16-InvestmentYear))))) -> 0 | E51: $
B52: Financed Amount | D52: =IF(D49="Yes",D51*PercentDebt,0) -> 0 | E52: $
B53: Replacement 2 | D53: =IF(D17="N/A",0,(D34*(((1+InflationRateGeneral)^(D17-InvestmentYear))))) -> 0 | E53: $
B54: Financed Amount | D54: =IF(D49="Yes",D53*PercentDebt,0) -> 0 | E54: $ | G54: =IF(AND(G48>0,G48<=FacilityLifespan),IF($D$25*(1+WasteGrowthRate)^(G48-1)>$D$27,$D$27,$D$25*(1+WasteGrowthRate)^(G48-1)),0) -> 0
B55: Replacement 3 | D55: =IF(D18="N/A",0,(D34*(((1+InflationRateGeneral)^(D18-InvestmentYear))))) -> 0 | E55: $
B56: Financed Amount | D56: =IF(D49="Yes",D55*PercentDebt,0) -> 0 | E56: $
B58: Equity IRR | D58: =IFERROR(IRR(D156:Z156),"Not Viable") -> Not Viable
B59: A typical target IRR for an infrastructure project may range between 9% and 15%. If the IRR for the modeled organic waste project falls outside this range, carrying out one or more of the following troubleshooting steps may return a more acceptable IRR: • Reduce project expenses such as electricity costs, labor costs, water treatment costs, and land or equipment purchases. • Increase project revenue by increasing gate fees, accepting more waste, or raising the price(s) of sellable end product(s). • Change project cost of debt and check the interest rate on debt obligations is reasonable. • Debt/Equity Ratio: Ensure the debt to equity ratio is reasonable. Is there a way to use more equity to finance a project?
B62: Calendar Year | D62: =InvestmentYear -> 0 | E62: =D62+1 -> 1 | F62: =E62+1 -> 2 | G62: 3 | H62: 4 | I62: 5 | J62: 6 | K62: 7 | L62: 8 | M62: 9 | N62: 10 | O62: 11 | P62: 12 | Q62: 13 | R62: 14 | S62: 15 | T62: 16 | U62: 17 | V62: 18 | W62: 19 | X62: 20 | Y62: =X62+1 -> 21 | Z62: =Y62+1 -> 22
B63: Operating Year | D63: =IF(D62<OperationsStartYear,0,IF(D62=OperationsStartYear,1,IF(D62>OperationsStartYear,C63+1,IF(D62>=D62+$D$15,0)))) -> 1 | E63: 2 | F63: 3 | G63: 4 | H63: 5 | I63: 6 | J63: 7 | K63: 8 | L63: 9 | M63: 10 | N63: 11 | O63: 12 | P63: 13 | Q63: 14 | R63: 15 | S63: 16 | T63: 17 | U63: 18 | V63: 19 | W63: 20 | X63: 21 | Y63: 22 | Z63: 23
B64: Waste Assumptions
B65: Available Yard Waste to Composting (tonnes/year) | D65: =IF(AND(D63>0,D63<=FacilityLifespan),IF(D69>=$D$27,D20,0),0) -> 0 | E65: =IF(AND(E63>0,E63<=FacilityLifespan),IF(WasteGrowthRate=0, $D$20, IF(E69>=$D$27, D65, $D$20*(1+WasteGrowthRate)^(E63-1))),0) -> 0 | F65: 0 | G65: 0 | H65: 0 | I65: 0 | J65: 0 | K65: 0 | L65: 0 | M65: 0 | N65: 0 | O65: 0 | P65: 0 | Q65: 0 | R65: 0 | S65: 0 | T65: 0 | U65: 0 | V65: 0 | W65: 0 | X65: 0 | Y65: 0 | Z65: 0
B66: Available Food Waste to Composting (tonnes/year) | D66: =IF(AND(D63>0,D63<=FacilityLifespan),IF(D69>=$D$27,D21,0),0) -> 0 | E66: =IF(AND(E63>0,E63<=FacilityLifespan),IF(WasteGrowthRate=0, $D$21, IF(E69>=$D$27, D66, $D$21*(1+WasteGrowthRate)^(E63-1))),0) -> 0 | F66: 0 | G66: 0 | H66: 0 | I66: 0 | J66: 0 | K66: 0 | L66: 0 | M66: 0 | N66: 0 | O66: 0 | P66: 0 | Q66: 0 | R66: 0 | S66: 0 | T66: 0 | U66: 0 | V66: 0 | W66: 0 | X66: 0 | Y66: 0 | Z66: 0
B67: Available Manure/Sludge Waste to Composting (tonnes/year) | D67: =IF(AND(D63>0,D63<=FacilityLifespan),IF(D69>=$D$27,D22,0),0) -> 0 | E67: =IF(AND(E63>0,E63<=FacilityLifespan),IF(WasteGrowthRate=0, $D$22, IF(E69>=$D$27, D67, $D$22*(1+WasteGrowthRate)^(E63-1))),0) -> 0 | F67: =IF(AND(F63>0,F63<=FacilityLifespan),IF(WasteGrowthRate=0, $D$22, IF(F69>=$D$27, E67, $D$22*(1+WasteGrowthRate)^(F63-1))),0) -> 0 | G67: 0 | H67: 0 | I67: 0 | J67: 0 | K67: 0 | L67: 0 | M67: 0 | N67: 0 | O67: 0 | P67: 0 | Q67: 0 | R67: 0 | S67: 0 | T67: 0 | U67: 0 | V67: 0 | W67: 0 | X67: 0 | Y67: 0 | Z67: 0
B68: Available Mixed Paper & Cardboard | D68: =IF(AND(D63>0,D63<=FacilityLifespan),IF(WasteGrowthRate=0, $D$23, IF(D69>=$D$27, C68, $D$23*(1+WasteGrowthRate)^(D64-1))),0) -> 0 | E68: 0 | F68: 0 | G68: 0 | H68: 0 | I68: 0 | J68: 0 | K68: 0 | L68: 0 | M68: 0 | N68: 0 | O68: 0 | P68: 0 | Q68: 0 | R68: 0 | S68: 0 | T68: 0 | U68: 0 | V68: 0 | W68: 0 | X68: 0 | Y68: 0 | Z68: 0
B69: HIDDEN - TOTAL AVAILABLE WASTE TO COMPOSTING (for facility max check) | D69: =IF(AND(D63>0,D63<=FacilityLifespan),$D$25*(1+WasteGrowthRate)^(D63-1),0) -> 0 | E69: =IF(AND(E63>0,E63<=FacilityLifespan),$D$25*(1+WasteGrowthRate)^(E63-1),0) -> 0 | F69: 0 | G69: 0 | H69: 0 | I69: 0 | J69: 0 | K69: 0 | L69: 0 | M69: 0 | N69: 0 | O69: 0 | P69: 0 | Q69: 0 | R69: 0 | S69: 0 | T69: 0 | U69: 0 | V69: 0 | W69: 0 | X69: 0 | Y69: 0 | Z69: 0
B70: Total Available Waste to Composting (tonnes/year) | D70: =IF(D69<=$D$27, SUM(D65:D67), C70) -> 0 | E70: =IF(E69<=$D$27, SUM(E65:E68), D70) -> 0 | F70: =IF(AND(F63>0,F63<=FacilityLifespan),IF($D$25*(1+WasteGrowthRate)^(F63-1)>$D$27,$D$27,$D$25*(1+WasteGrowthRate)^(F63-1)),0) -> 0 | G70: 0 | H70: 0 | I70: 0 | J70: 0 | K70: 0 | L70: 0 | M70: 0 | N70: 0 | O70: 0 | P70: 0 | Q70: 0 | R70: 0 | S70: 0 | T70: 0 | U70: 0 | V70: 0 | W70: 0 | X70: 0 | Y70: 0 | Z70: 0
B71: Purchased Bulking Agent to Composting (tonnes/year) | D71: =IF(AND(D63>0,D63<=FacilityLifespan),$D$24*(1+WasteGrowthRate)^(D63-1),0) -> 0 | E71: =IF(AND(E63>0,E63<=FacilityLifespan),IF(WasteGrowthRate=0, $D$24, IF(E69>=$D$27, D71, $D$24*(1+WasteGrowthRate)^(E63-1))),0) -> 0 | F71: =IF(AND(F63>0,F63<=FacilityLifespan),IF(WasteGrowthRate=0, $D$24, IF(F69>=$D$27, E71, $D$24*(1+WasteGrowthRate)^(F63-1))),0) -> 0 | G71: 0 | H71: 0 | I71: 0 | J71: 0 | K71: 0 | L71: 0 | M71: 0 | N71: 0 | O71: 0 | P71: 0 | Q71: 0 | R71: 0 | S71: 0 | T71: 0 | U71: 0 | V71: 0 | W71: 0 | X71: 0 | Y71: 0 | Z71: 0
B72: Total Available Waste to Composting (tonnes/year) | D72: =D70+D71 -> 0 | E72: =E70+E71 -> 0 | F72: =F70+F71 -> 0 | G72: 0 | H72: 0 | I72: 0 | J72: 0 | K72: 0 | L72: 0 | M72: 0 | N72: 0 | O72: 0 | P72: 0 | Q72: 0 | R72: 0 | S72: 0 | T72: 0 | U72: 0 | V72: 0 | W72: 0 | X72: 0 | Y72: 0 | Z72: 0
B73: Primary Screening Residues (tonnes/year) | D73: =D72*'8-Default Values'!$C$20 -> 0 | E73: =E72*'8-Default Values'!$C$20 -> 0 | F73: =F72*'8-Default Values'!$C$20 -> 0 | G73: =G72*'8-Default Values'!$C$20 -> 0 | H73: =H72*'8-Default Values'!$C$20 -> 0 | I73: =I72*'8-Default Values'!$C$20 -> 0 | J73: =J72*'8-Default Values'!$C$20 -> 0 | K73: =K72*'8-Default Values'!$C$20 -> 0 | L73: =L72*'8-Default Values'!$C$20 -> 0 | M73: =M72*'8-Default Values'!$C$20 -> 0 | N73: =N72*'8-Default Values'!$C$20 -> 0 | O73: =O72*'8-Default Values'!$C$20 -> 0 | P73: =P72*'8-Default Values'!$C$20 -> 0 | Q73: =Q72*'8-Default Values'!$C$20 -> 0 | R73: =R72*'8-Default Values'!$C$20 -> 0 | S73: =S72*'8-Default Values'!$C$20 -> 0 | T73: =T72*'8-Default Values'!$C$20 -> 0 | U73: =U72*'8-Default Values'!$C$20 -> 0 | V73: =V72*'8-Default Values'!$C$20 -> 0 | W73: =W72*'8-Default Values'!$C$20 -> 0 | X73: =X72*'8-Default Values'!$C$20 -> 0 | Y73: =Y72*'8-Default Values'!$C$20 -> 0 | Z73: =Z72*'8-Default Values'!$C$20 -> 0
B74: Compost Produced (tonnes/year) | D74: =(D72-D73)*'8-Default Values'!$C$21 -> 0 | E74: =(E72-E73)*'8-Default Values'!$C$21 -> 0 | F74: =(F72-F73)*'8-Default Values'!$C$21 -> 0 | G74: =(G72-G73)*'8-Default Values'!$C$21 -> 0 | H74: =(H72-H73)*'8-Default Values'!$C$21 -> 0 | I74: =(I72-I73)*'8-Default Values'!$C$21 -> 0 | J74: =(J72-J73)*'8-Default Values'!$C$21 -> 0 | K74: =(K72-K73)*'8-Default Values'!$C$21 -> 0 | L74: =(L72-L73)*'8-Default Values'!$C$21 -> 0 | M74: =(M72-M73)*'8-Default Values'!$C$21 -> 0 | N74: =(N72-N73)*'8-Default Values'!$C$21 -> 0 | O74: =(O72-O73)*'8-Default Values'!$C$21 -> 0 | P74: =(P72-P73)*'8-Default Values'!$C$21 -> 0 | Q74: =(Q72-Q73)*'8-Default Values'!$C$21 -> 0 | R74: =(R72-R73)*'8-Default Values'!$C$21 -> 0 | S74: =(S72-S73)*'8-Default Values'!$C$21 -> 0 | T74: =(T72-T73)*'8-Default Values'!$C$21 -> 0 | U74: =(U72-U73)*'8-Default Values'!$C$21 -> 0 | V74: =(V72-V73)*'8-Default Values'!$C$21 -> 0 | W74: =(W72-W73)*'8-Default Values'!$C$21 -> 0 | X74: =(X72-X73)*'8-Default Values'!$C$21 -> 0 | Y74: =(Y72-Y73)*'8-Default Values'!$C$21 -> 0 | Z74: =(Z72-Z73)*'8-Default Values'!$C$21 -> 0
B75: Final Screening Residues (tonnes/year) | D75: =(D72-D73)*'8-Default Values'!$C$22 -> 0 | E75: =(E72-E73)*'8-Default Values'!$C$22 -> 0 | F75: =(F72-F73)*'8-Default Values'!$C$22 -> 0 | G75: =(G72-G73)*'8-Default Values'!$C$22 -> 0 | H75: =(H72-H73)*'8-Default Values'!$C$22 -> 0 | I75: =(I72-I73)*'8-Default Values'!$C$22 -> 0 | J75: =(J72-J73)*'8-Default Values'!$C$22 -> 0 | K75: =(K72-K73)*'8-Default Values'!$C$22 -> 0 | L75: =(L72-L73)*'8-Default Values'!$C$22 -> 0 | M75: =(M72-M73)*'8-Default Values'!$C$22 -> 0 | N75: =(N72-N73)*'8-Default Values'!$C$22 -> 0 | O75: =(O72-O73)*'8-Default Values'!$C$22 -> 0 | P75: =(P72-P73)*'8-Default Values'!$C$22 -> 0 | Q75: =(Q72-Q73)*'8-Default Values'!$C$22 -> 0 | R75: =(R72-R73)*'8-Default Values'!$C$22 -> 0 | S75: =(S72-S73)*'8-Default Values'!$C$22 -> 0 | T75: =(T72-T73)*'8-Default Values'!$C$22 -> 0 | U75: =(U72-U73)*'8-Default Values'!$C$22 -> 0 | V75: =(V72-V73)*'8-Default Values'!$C$22 -> 0 | W75: =(W72-W73)*'8-Default Values'!$C$22 -> 0 | X75: =(X72-X73)*'8-Default Values'!$C$22 -> 0 | Y75: =(Y72-Y73)*'8-Default Values'!$C$22 -> 0 | Z75: =(Z72-Z73)*'8-Default Values'!$C$22 -> 0
B76: Total Waste to Landfill (tonnes/year) | D76: =D73+D75 -> 0 | E76: =E73+E75 -> 0 | F76: =F73+F75 -> 0 | G76: 0 | H76: 0 | I76: 0 | J76: 0 | K76: 0 | L76: 0 | M76: 0 | N76: 0 | O76: 0 | P76: 0 | Q76: 0 | R76: 0 | S76: 0 | T76: 0 | U76: 0 | V76: 0 | W76: 0 | X76: 0 | Y76: 0 | Z76: 0
B77: Waste Diverted from Landfill (tonnes/year) | D77: =D69-D73 -> 0 | E77: =E69-E73 -> 0 | F77: 0 | G77: 0 | H77: 0 | I77: 0 | J77: 0 | K77: 0 | L77: 0 | M77: 0 | N77: 0 | O77: 0 | P77: 0 | Q77: 0 | R77: 0 | S77: 0 | T77: 0 | U77: 0 | V77: 0 | W77: 0 | X77: 0 | Y77: 0 | Z77: 0
B78: Operating Assumptions
B79: Compost Sold (tonnes/year) | D79: =IF(D63=1,D74*'5-Facility Inputs'!$D$28,IF(D63=2,D74*'5-Facility Inputs'!$D$29,IF(D63>=3,D74*'5-Facility Inputs'!$D$30,0))) -> 0 | E79: =IF(E63=1,E74*'5-Facility Inputs'!$D$28,IF(E63=2,E74*'5-Facility Inputs'!$D$29,IF(E63>=3,E74*'5-Facility Inputs'!$D$30,0))) -> 0 | F79: =IF(F63=1,F74*'5-Facility Inputs'!$D$28,IF(F63=2,F74*'5-Facility Inputs'!$D$29,IF(F63>=3,F74*'5-Facility Inputs'!$D$30,0))) -> 0 | G79: =IF(G63=1,G74*'5-Facility Inputs'!$D$28,IF(G63=2,G74*'5-Facility Inputs'!$D$29,IF(G63>=3,G74*'5-Facility Inputs'!$D$30,0))) -> 0 | H79: =IF(H63=1,H74*'5-Facility Inputs'!$D$28,IF(H63=2,H74*'5-Facility Inputs'!$D$29,IF(H63>=3,H74*'5-Facility Inputs'!$D$30,0))) -> 0 | I79: =IF(I63=1,I74*'5-Facility Inputs'!$D$28,IF(I63=2,I74*'5-Facility Inputs'!$D$29,IF(I63>=3,I74*'5-Facility Inputs'!$D$30,0))) -> 0 | J79: =IF(J63=1,J74*'5-Facility Inputs'!$D$28,IF(J63=2,J74*'5-Facility Inputs'!$D$29,IF(J63>=3,J74*'5-Facility Inputs'!$D$30,0))) -> 0 | K79: =IF(K63=1,K74*'5-Facility Inputs'!$D$28,IF(K63=2,K74*'5-Facility Inputs'!$D$29,IF(K63>=3,K74*'5-Facility Inputs'!$D$30,0))) -> 0 | L79: =IF(L63=1,L74*'5-Facility Inputs'!$D$28,IF(L63=2,L74*'5-Facility Inputs'!$D$29,IF(L63>=3,L74*'5-Facility Inputs'!$D$30,0))) -> 0 | M79: =IF(M63=1,M74*'5-Facility Inputs'!$D$28,IF(M63=2,M74*'5-Facility Inputs'!$D$29,IF(M63>=3,M74*'5-Facility Inputs'!$D$30,0))) -> 0 | N79: =IF(N63=1,N74*'5-Facility Inputs'!$D$28,IF(N63=2,N74*'5-Facility Inputs'!$D$29,IF(N63>=3,N74*'5-Facility Inputs'!$D$30,0))) -> 0 | O79: =IF(O63=1,O74*'5-Facility Inputs'!$D$28,IF(O63=2,O74*'5-Facility Inputs'!$D$29,IF(O63>=3,O74*'5-Facility Inputs'!$D$30,0))) -> 0 | P79: =IF(P63=1,P74*'5-Facility Inputs'!$D$28,IF(P63=2,P74*'5-Facility Inputs'!$D$29,IF(P63>=3,P74*'5-Facility Inputs'!$D$30,0))) -> 0 | Q79: =IF(Q63=1,Q74*'5-Facility Inputs'!$D$28,IF(Q63=2,Q74*'5-Facility Inputs'!$D$29,IF(Q63>=3,Q74*'5-Facility Inputs'!$D$30,0))) -> 0 | R79: =IF(R63=1,R74*'5-Facility Inputs'!$D$28,IF(R63=2,R74*'5-Facility Inputs'!$D$29,IF(R63>=3,R74*'5-Facility Inputs'!$D$30,0))) -> 0 | S79: =IF(S63=1,S74*'5-Facility Inputs'!$D$28,IF(S63=2,S74*'5-Facility Inputs'!$D$29,IF(S63>=3,S74*'5-Facility Inputs'!$D$30,0))) -> 0 | T79: =IF(T63=1,T74*'5-Facility Inputs'!$D$28,IF(T63=2,T74*'5-Facility Inputs'!$D$29,IF(T63>=3,T74*'5-Facility Inputs'!$D$30,0))) -> 0 | U79: =IF(U63=1,U74*'5-Facility Inputs'!$D$28,IF(U63=2,U74*'5-Facility Inputs'!$D$29,IF(U63>=3,U74*'5-Facility Inputs'!$D$30,0))) -> 0 | V79: =IF(V63=1,V74*'5-Facility Inputs'!$D$28,IF(V63=2,V74*'5-Facility Inputs'!$D$29,IF(V63>=3,V74*'5-Facility Inputs'!$D$30,0))) -> 0 | W79: =IF(W63=1,W74*'5-Facility Inputs'!$D$28,IF(W63=2,W74*'5-Facility Inputs'!$D$29,IF(W63>=3,W74*'5-Facility Inputs'!$D$30,0))) -> 0 | X79: =IF(X63=1,X74*'5-Facility Inputs'!$D$28,IF(X63=2,X74*'5-Facility Inputs'!$D$29,IF(X63>=3,X74*'5-Facility Inputs'!$D$30,0))) -> 0 | Y79: =IF(Y63=1,Y74*'5-Facility Inputs'!$D$28,IF(Y63=2,Y74*'5-Facility Inputs'!$D$29,IF(Y63>=3,Y74*'5-Facility Inputs'!$D$30,0))) -> 0 | Z79: =IF(Z63=1,Z74*'5-Facility Inputs'!$D$28,IF(Z63=2,Z74*'5-Facility Inputs'!$D$29,IF(Z63>=3,Z74*'5-Facility Inputs'!$D$30,0))) -> 0
B80: Compost Gifted (tonnes/year) | D80: =D74-D79 -> 0 | E80: =E74-E79 -> 0 | F80: 0 | G80: 0 | H80: 0 | I80: 0 | J80: 0 | K80: 0 | L80: 0 | M80: 0 | N80: 0 | O80: 0 | P80: 0 | Q80: 0 | R80: 0 | S80: 0 | T80: 0 | U80: 0 | V80: 0 | W80: 0 | X80: 0 | Y80: 0 | Z80: 0
B81: Electricity Consumption (kWh/year) | D81: =(D72*'8-Default Values'!$C$18) -> 0 | E81: =(E72*'8-Default Values'!$C$18) -> 0 | F81: =(F72*'8-Default Values'!$C$18) -> 0 | G81: =(G72*'8-Default Values'!$C$18) -> 0 | H81: =(H72*'8-Default Values'!$C$18) -> 0 | I81: =(I72*'8-Default Values'!$C$18) -> 0 | J81: =(J72*'8-Default Values'!$C$18) -> 0 | K81: =(K72*'8-Default Values'!$C$18) -> 0 | L81: =(L72*'8-Default Values'!$C$18) -> 0 | M81: =(M72*'8-Default Values'!$C$18) -> 0 | N81: =(N72*'8-Default Values'!$C$18) -> 0 | O81: =(O72*'8-Default Values'!$C$18) -> 0 | P81: =(P72*'8-Default Values'!$C$18) -> 0 | Q81: =(Q72*'8-Default Values'!$C$18) -> 0 | R81: =(R72*'8-Default Values'!$C$18) -> 0 | S81: =(S72*'8-Default Values'!$C$18) -> 0 | T81: =(T72*'8-Default Values'!$C$18) -> 0 | U81: =(U72*'8-Default Values'!$C$18) -> 0 | V81: =(V72*'8-Default Values'!$C$18) -> 0 | W81: =(W72*'8-Default Values'!$C$18) -> 0 | X81: =(X72*'8-Default Values'!$C$18) -> 0 | Y81: =(Y72*'8-Default Values'!$C$18) -> 0 | Z81: =(Z72*'8-Default Values'!$C$18) -> 0
B82: Diesel Consumption (liters/year) | D82: =(D72*'8-Default Values'!$C$19) -> 0 | E82: =(E72*'8-Default Values'!$C$19) -> 0 | F82: =(F72*'8-Default Values'!$C$19) -> 0 | G82: =(G72*'8-Default Values'!$C$19) -> 0 | H82: =(H72*'8-Default Values'!$C$19) -> 0 | I82: =(I72*'8-Default Values'!$C$19) -> 0 | J82: =(J72*'8-Default Values'!$C$19) -> 0 | K82: =(K72*'8-Default Values'!$C$19) -> 0 | L82: =(L72*'8-Default Values'!$C$19) -> 0 | M82: =(M72*'8-Default Values'!$C$19) -> 0 | N82: =(N72*'8-Default Values'!$C$19) -> 0 | O82: =(O72*'8-Default Values'!$C$19) -> 0 | P82: =(P72*'8-Default Values'!$C$19) -> 0 | Q82: =(Q72*'8-Default Values'!$C$19) -> 0 | R82: =(R72*'8-Default Values'!$C$19) -> 0 | S82: =(S72*'8-Default Values'!$C$19) -> 0 | T82: =(T72*'8-Default Values'!$C$19) -> 0 | U82: =(U72*'8-Default Values'!$C$19) -> 0 | V82: =(V72*'8-Default Values'!$C$19) -> 0 | W82: =(W72*'8-Default Values'!$C$19) -> 0 | X82: =(X72*'8-Default Values'!$C$19) -> 0 | Y82: =(Y72*'8-Default Values'!$C$19) -> 0 | Z82: =(Z72*'8-Default Values'!$C$19) -> 0
B83: Process Water Consumption (m3/year) | D83: =IF(AND(D63>0,D63<=FacilityLifespan),$D$30*(1+WasteGrowthRate)^(D63-1),0) -> 0 | E83: =IF(AND(E63>0,E63<=FacilityLifespan),$D$30*(1+WasteGrowthRate)^(E63-1),0) -> 0 | F83: 0 | G83: 0 | H83: 0 | I83: 0 | J83: 0 | K83: 0 | L83: 0 | M83: 0 | N83: 0 | O83: 0 | P83: 0 | Q83: 0 | R83: 0 | S83: 0 | T83: 0 | U83: 0 | V83: 0 | W83: 0 | X83: 0 | Y83: 0 | Z83: 0
B84: Total Number of Managers/Engineers | D84: =TotalNumberofEngineers -> 0 | E84: 0 | F84: 0 | G84: 0 | H84: 0 | I84: 0 | J84: 0 | K84: 0 | L84: 0 | M84: 0 | N84: 0 | O84: 0 | P84: 0 | Q84: 0 | R84: 0 | S84: 0 | T84: 0 | U84: 0 | V84: 0 | W84: 0 | X84: 0 | Y84: 0 | Z84: 0
B85: Total Number of Operators | D85: =TotalNumberofOperators -> 0 | E85: 0 | F85: 0 | G85: 0 | H85: 0 | I85: 0 | J85: 0 | K85: 0 | L85: 0 | M85: 0 | N85: 0 | O85: 0 | P85: 0 | Q85: 0 | R85: 0 | S85: 0 | T85: 0 | U85: 0 | V85: 0 | W85: 0 | X85: 0 | Y85: 0 | Z85: 0
B87: Economic Assumptions
B88: Compost Sale Price ($/tonne) | D88: =IF(AND(D63>0,D63<=FacilityLifespan),$D$8*(1+InflationRateCompostDigestateBulking)^(D62-$D$62),0) -> 0 | E88: 0 | F88: 0 | G88: 0 | H88: 0 | I88: 0 | J88: 0 | K88: 0 | L88: 0 | M88: 0 | N88: 0 | O88: 0 | P88: 0 | Q88: 0 | R88: 0 | S88: 0 | T88: 0 | U88: 0 | V88: 0 | W88: 0 | X88: 0 | Y88: 0 | Z88: 0
B89: Gate Fee - Yard Waste ($/tonne) | D89: =IF(AND(D63>0,D63<=FacilityLifespan),$D$9*(1+InflationRateDisposalGate)^(D62-$D$62),0) -> 0 | E89: 0 | F89: 0 | G89: 0 | H89: 0 | I89: 0 | J89: 0 | K89: 0 | L89: 0 | M89: 0 | N89: 0 | O89: 0 | P89: 0 | Q89: 0 | R89: 0 | S89: 0 | T89: 0 | U89: 0 | V89: 0 | W89: 0 | X89: 0 | Y89: 0 | Z89: 0
B90: Gate Fee - Food Waste ($/tonne) | D90: =IF(AND(D63>0,D63<=FacilityLifespan),$D$10*(1+InflationRateDisposalGate)^(D62-$D$62),0) -> 0 | E90: 0 | F90: 0 | G90: 0 | H90: 0 | I90: 0 | J90: 0 | K90: 0 | L90: 0 | M90: 0 | N90: 0 | O90: 0 | P90: 0 | Q90: 0 | R90: 0 | S90: 0 | T90: 0 | U90: 0 | V90: 0 | W90: 0 | X90: 0 | Y90: 0 | Z90: 0
B91: Gate Fee - Manure/Sludge Waste ($/tonne) | D91: =IF(AND(D63>0,D63<=FacilityLifespan),$D$11*(1+InflationRateDisposalGate)^(D62-$D$62),0) -> 0 | E91: 0 | F91: 0 | G91: 0 | H91: 0 | I91: 0 | J91: 0 | K91: 0 | L91: 0 | M91: 0 | N91: 0 | O91: 0 | P91: 0 | Q91: 0 | R91: 0 | S91: 0 | T91: 0 | U91: 0 | V91: 0 | W91: 0 | X91: 0 | Y91: 0 | Z91: 0
B92: Gate Fee - Paper/Cardboard ($/tonne) | D92: =IF(AND(D63>0,D63<=FacilityLifespan),$D$12*(1+InflationRateDisposalGate)^(D62-$D$62),0) -> 0 | E92: 0 | F92: 0 | G92: 0 | H92: 0 | I92: 0 | J92: 0 | K92: 0 | L92: 0 | M92: 0 | N92: 0 | O92: 0 | P92: 0 | Q92: 0 | R92: 0 | S92: 0 | T92: 0 | U92: 0 | V92: 0 | W92: 0 | X92: 0 | Y92: 0 | Z92: 0
B93: Avoided Landfill Disposal Fee ($/tonne) | D93: =IF(AND(D63>0,D63<=FacilityLifespan),AvoidedLandfillDisposalFee*(1+InflationRateDisposalGate)^(D62-$D$62),0) -> 0 | E93: =IF(AND(E63>0,E63<=FacilityLifespan),AvoidedLandfillDisposalFee*(1+InflationRateDisposalGate)^(E62-$D$62),0) -> 0 | F93: =IF(AND(F63>0,F63<=FacilityLifespan),AvoidedLandfillDisposalFee*(1+InflationRateDisposalGate)^(F62-$D$62),0) -> 0 | G93: 0 | H93: 0 | I93: 0 | J93: 0 | K93: 0 | L93: 0 | M93: 0 | N93: 0 | O93: 0 | P93: 0 | Q93: 0 | R93: 0 | S93: 0 | T93: 0 | U93: 0 | V93: 0 | W93: 0 | X93: 0 | Y93: 0 | Z93: 0
B94: Avoided Transportation Fee ($/tonne/km) | D94: =IF(AND(D63>0,D63<=FacilityLifespan),TransportationFee*(1+InflationRateDisposalGate)^(D62-$D$62),0) -> 0 | E94: 0 | F94: 0 | G94: 0 | H94: 0 | I94: 0 | J94: 0 | K94: 0 | L94: 0 | M94: 0 | N94: 0 | O94: 0 | P94: 0 | Q94: 0 | R94: 0 | S94: 0 | T94: 0 | U94: 0 | V94: 0 | W94: 0 | X94: 0 | Y94: 0 | Z94: 0
B96: Electricity Purchase Price ($/kWh) | D96: =IF(AND(D63>0,D63<=FacilityLifespan),(ElectricityPrice*((1+InflationRateElectricityFuel)^(D62-$D$62))),0) -> 0 | E96: =IF(AND(E63>0,E63<=FacilityLifespan),(ElectricityPrice*((1+InflationRateElectricityFuel)^(E62-$D$62))),0) -> 0 | F96: =IF(AND(F63>0,F63<=FacilityLifespan),(ElectricityPrice*((1+InflationRateElectricityFuel)^(F62-$D$62))),0) -> 0 | G96: 0 | H96: 0 | I96: 0 | J96: 0 | K96: 0 | L96: 0 | M96: 0 | N96: 0 | O96: 0 | P96: 0 | Q96: 0 | R96: 0 | S96: 0 | T96: 0 | U96: 0 | V96: 0 | W96: 0 | X96: 0 | Y96: 0 | Z96: 0
B97: Diesel Purchase Price ($/liter) | D97: =IF(AND(D63>0,D63<=FacilityLifespan),(DieselPrice*((1+InflationRateElectricityFuel)^(D62-$D$62))),0) -> 0 | E97: 0 | F97: 0 | G97: 0 | H97: 0 | I97: 0 | J97: 0 | K97: 0 | L97: 0 | M97: 0 | N97: 0 | O97: 0 | P97: 0 | Q97: 0 | R97: 0 | S97: 0 | T97: 0 | U97: 0 | V97: 0 | W97: 0 | X97: 0 | Y97: 0 | Z97: 0
B98: Residuals Transportation ($/tonne/km) | D98: =IF(AND(D63>0,D63<=FacilityLifespan),TransportationFee*(1+InflationRateGeneral)^(D62-$D$62),0) -> 0 | E98: 0 | F98: 0 | G98: 0 | H98: 0 | I98: 0 | J98: 0 | K98: 0 | L98: 0 | M98: 0 | N98: 0 | O98: 0 | P98: 0 | Q98: 0 | R98: 0 | S98: 0 | T98: 0 | U98: 0 | V98: 0 | W98: 0 | X98: 0 | Y98: 0 | Z98: 0
B99: Residuals Disposal ($/tonne) | D99: =IF(AND(D63>0,D63<=FacilityLifespan),ResidualDisposalFee*(1+InflationRateGeneral)^(D62-$D$62),0) -> 0 | E99: 0 | F99: 0 | G99: 0 | H99: 0 | I99: 0 | J99: 0 | K99: 0 | L99: 0 | M99: 0 | N99: 0 | O99: 0 | P99: 0 | Q99: 0 | R99: 0 | S99: 0 | T99: 0 | U99: 0 | V99: 0 | W99: 0 | X99: 0 | Y99: 0 | Z99: 0
B100: Lease Price ($/ha/year) | D100: =IF(AND(D63>0,D63<=FacilityLifespan),LandLeasePrice*(1+InflationRateGeneral)^(D62-$D$62),0) -> 0 | E100: 0 | F100: 0 | G100: 0 | H100: 0 | I100: 0 | J100: 0 | K100: 0 | L100: 0 | M100: 0 | N100: 0 | O100: 0 | P100: 0 | Q100: 0 | R100: 0 | S100: 0 | T100: 0 | U100: 0 | V100: 0 | W100: 0 | X100: 0 | Y100: 0 | Z100: 0
B101: Managers - Labor Cost ($/person/year) | D101: =IF(AND(D63>0,D63<=FacilityLifespan),LaborManager*(1+InflationRateGeneral)^(D62-$D$62),0) -> 0 | E101: 0 | F101: 0 | G101: 0 | H101: 0 | I101: 0 | J101: 0 | K101: 0 | L101: 0 | M101: 0 | N101: 0 | O101: 0 | P101: 0 | Q101: 0 | R101: 0 | S101: 0 | T101: 0 | U101: 0 | V101: 0 | W101: 0 | X101: 0 | Y101: 0 | Z101: 0
B102: Operators - Labor Cost ($/person/year) | D102: =IF(AND(D63>0,D63<=FacilityLifespan),LaborOperator*(1+InflationRateGeneral)^(D62-$D$62),0) -> 0 | E102: 0 | F102: 0 | G102: 0 | H102: 0 | I102: 0 | J102: 0 | K102: 0 | L102: 0 | M102: 0 | N102: 0 | O102: 0 | P102: 0 | Q102: 0 | R102: 0 | S102: 0 | T102: 0 | U102: 0 | V102: 0 | W102: 0 | X102: 0 | Y102: 0 | Z102: 0
B103: Process Water Fee ($/m3) | D103: =IF(AND(D63>0,D63<=FacilityLifespan),WaterPurchasePrice*(1+InflationRateGeneral)^(D62-$D$62),0) -> 0 | E103: 0 | F103: 0 | G103: 0 | H103: 0 | I103: 0 | J103: 0 | K103: 0 | L103: 0 | M103: 0 | N103: 0 | O103: 0 | P103: 0 | Q103: 0 | R103: 0 | S103: 0 | T103: 0 | U103: 0 | V103: 0 | W103: 0 | X103: 0 | Y103: 0 | Z103: 0
B104: Bulking Agent Cost ($/tonne) | D104: =IF(AND(D63>0,D63<=FacilityLifespan),BulkingAgentCost*(1+InflationRateCompostDigestateBulking)^(D62-$D$62),0) -> 0 | E104: 0 | F104: 0 | G104: 0 | H104: 0 | I104: 0 | J104: 0 | K104: 0 | L104: 0 | M104: 0 | N104: 0 | O104: 0 | P104: 0 | Q104: 0 | R104: 0 | S104: 0 | T104: 0 | U104: 0 | V104: 0 | W104: 0 | X104: 0 | Y104: 0 | Z104: 0
B105: Compost - Soil Product Land Application Cost ($/tonne) | D105: =IF(AND(D63>0,D63<=FacilityLifespan),CompostLandAppCost*(1+InflationRateGeneral)^(D62-$D$62),0) -> 0 | E105: 0 | F105: 0 | G105: 0 | H105: 0 | I105: 0 | J105: 0 | K105: 0 | L105: 0 | M105: 0 | N105: 0 | O105: 0 | P105: 0 | Q105: 0 | R105: 0 | S105: 0 | T105: 0 | U105: 0 | V105: 0 | W105: 0 | X105: 0 | Y105: 0 | Z105: 0
B106: Compost - Soil Product Transportation Cost ($/tonne) | D106: =IF(AND(D63>0,D63<=FacilityLifespan),CompostTransportCost*(1+InflationRateGeneral)^(D62-$D$62),0) -> 0 | E106: 0 | F106: 0 | G106: 0 | H106: 0 | I106: 0 | J106: 0 | K106: 0 | L106: 0 | M106: 0 | N106: 0 | O106: 0 | P106: 0 | Q106: 0 | R106: 0 | S106: 0 | T106: 0 | U106: 0 | V106: 0 | W106: 0 | X106: 0 | Y106: 0 | Z106: 0
B107: Annual Maintenance Cost ($/year) | D107: =IF(AND(D63>0,D63<=FacilityLifespan,D62>=MaintenanceBegins),$D$39*'8-Default Values'!$C$28*(1+InflationRateGeneral)^(D62-$D$62),0) -> 0 | E107: =IF(AND(E63>0,E63<=FacilityLifespan,E62>=MaintenanceBegins),$D$39*'8-Default Values'!$C$28*(1+InflationRateGeneral)^(E62-$D$62),0) -> 0 | F107: =IF(AND(F63>0,F63<=FacilityLifespan,F62>=MaintenanceBegins),$D$39*'8-Default Values'!$C$28*(1+InflationRateGeneral)^(F62-$D$62),0) -> 0 | G107: =IF(AND(G63>0,G63<=FacilityLifespan,G62>=MaintenanceBegins),$D$39*'8-Default Values'!$C$28*(1+InflationRateGeneral)^(G62-$D$62),0) -> 0 | H107: =IF(AND(H63>0,H63<=FacilityLifespan,H62>=MaintenanceBegins),$D$39*'8-Default Values'!$C$28*(1+InflationRateGeneral)^(H62-$D$62),0) -> 0 | I107: =IF(AND(I63>0,I63<=FacilityLifespan,I62>=MaintenanceBegins),$D$39*'8-Default Values'!$C$28*(1+InflationRateGeneral)^(I62-$D$62),0) -> 0 | J107: =IF(AND(J63>0,J63<=FacilityLifespan,J62>=MaintenanceBegins),$D$39*'8-Default Values'!$C$28*(1+InflationRateGeneral)^(J62-$D$62),0) -> 0 | K107: =IF(AND(K63>0,K63<=FacilityLifespan,K62>=MaintenanceBegins),$D$39*'8-Default Values'!$C$28*(1+InflationRateGeneral)^(K62-$D$62),0) -> 0 | L107: =IF(AND(L63>0,L63<=FacilityLifespan,L62>=MaintenanceBegins),$D$39*'8-Default Values'!$C$28*(1+InflationRateGeneral)^(L62-$D$62),0) -> 0 | M107: =IF(AND(M63>0,M63<=FacilityLifespan,M62>=MaintenanceBegins),$D$39*'8-Default Values'!$C$28*(1+InflationRateGeneral)^(M62-$D$62),0) -> 0 | N107: =IF(AND(N63>0,N63<=FacilityLifespan,N62>=MaintenanceBegins),$D$39*'8-Default Values'!$C$28*(1+InflationRateGeneral)^(N62-$D$62),0) -> 0 | O107: =IF(AND(O63>0,O63<=FacilityLifespan,O62>=MaintenanceBegins),$D$39*'8-Default Values'!$C$28*(1+InflationRateGeneral)^(O62-$D$62),0) -> 0 | P107: =IF(AND(P63>0,P63<=FacilityLifespan,P62>=MaintenanceBegins),$D$39*'8-Default Values'!$C$28*(1+InflationRateGeneral)^(P62-$D$62),0) -> 0 | Q107: =IF(AND(Q63>0,Q63<=FacilityLifespan,Q62>=MaintenanceBegins),$D$39*'8-Default Values'!$C$28*(1+InflationRateGeneral)^(Q62-$D$62),0) -> 0 | R107: =IF(AND(R63>0,R63<=FacilityLifespan,R62>=MaintenanceBegins),$D$39*'8-Default Values'!$C$28*(1+InflationRateGeneral)^(R62-$D$62),0) -> 0 | S107: =IF(AND(S63>0,S63<=FacilityLifespan,S62>=MaintenanceBegins),$D$39*'8-Default Values'!$C$28*(1+InflationRateGeneral)^(S62-$D$62),0) -> 0 | T107: =IF(AND(T63>0,T63<=FacilityLifespan,T62>=MaintenanceBegins),$D$39*'8-Default Values'!$C$28*(1+InflationRateGeneral)^(T62-$D$62),0) -> 0 | U107: =IF(AND(U63>0,U63<=FacilityLifespan,U62>=MaintenanceBegins),$D$39*'8-Default Values'!$C$28*(1+InflationRateGeneral)^(U62-$D$62),0) -> 0 | V107: =IF(AND(V63>0,V63<=FacilityLifespan,V62>=MaintenanceBegins),$D$39*'8-Default Values'!$C$28*(1+InflationRateGeneral)^(V62-$D$62),0) -> 0 | W107: =IF(AND(W63>0,W63<=FacilityLifespan,W62>=MaintenanceBegins),$D$39*'8-Default Values'!$C$28*(1+InflationRateGeneral)^(W62-$D$62),0) -> 0 | X107: =IF(AND(X63>0,X63<=FacilityLifespan,X62>=MaintenanceBegins),$D$39*'8-Default Values'!$C$28*(1+InflationRateGeneral)^(X62-$D$62),0) -> 0 | Y107: =IF(AND(Y63>0,Y63<=FacilityLifespan,Y62>=MaintenanceBegins),$D$39*'8-Default Values'!$C$28*(1+InflationRateGeneral)^(Y62-$D$62),0) -> 0 | Z107: =IF(AND(Z63>0,Z63<=FacilityLifespan,Z62>=MaintenanceBegins),$D$39*'8-Default Values'!$C$28*(1+InflationRateGeneral)^(Z62-$D$62),0) -> 0
B108: Annual Insurance Cost ($/year) | D108: =IF(AND(D63>0,D63<=FacilityLifespan,D62>=OperationsStartYear),($D$39-$D$35)*'8-Default Values'!$C$29*(1+InflationRateGeneral)^(D62-$D$62),0) -> 0 | E108: =IF(AND(E63>0,E63<=FacilityLifespan,E62>=OperationsStartYear),($D$39-$D$35)*'8-Default Values'!$C$29*(1+InflationRateGeneral)^(E62-$D$62),0) -> 0 | F108: =IF(AND(F63>0,F63<=FacilityLifespan,F62>=OperationsStartYear),($D$39-$D$35)*'8-Default Values'!$C$29*(1+InflationRateGeneral)^(F62-$D$62),0) -> 0 | G108: =IF(AND(G63>0,G63<=FacilityLifespan,G62>=OperationsStartYear),($D$39-$D$35)*'8-Default Values'!$C$29*(1+InflationRateGeneral)^(G62-$D$62),0) -> 0 | H108: =IF(AND(H63>0,H63<=FacilityLifespan,H62>=OperationsStartYear),($D$39-$D$35)*'8-Default Values'!$C$29*(1+InflationRateGeneral)^(H62-$D$62),0) -> 0 | I108: =IF(AND(I63>0,I63<=FacilityLifespan,I62>=OperationsStartYear),($D$39-$D$35)*'8-Default Values'!$C$29*(1+InflationRateGeneral)^(I62-$D$62),0) -> 0 | J108: =IF(AND(J63>0,J63<=FacilityLifespan,J62>=OperationsStartYear),($D$39-$D$35)*'8-Default Values'!$C$29*(1+InflationRateGeneral)^(J62-$D$62),0) -> 0 | K108: =IF(AND(K63>0,K63<=FacilityLifespan,K62>=OperationsStartYear),($D$39-$D$35)*'8-Default Values'!$C$29*(1+InflationRateGeneral)^(K62-$D$62),0) -> 0 | L108: =IF(AND(L63>0,L63<=FacilityLifespan,L62>=OperationsStartYear),($D$39-$D$35)*'8-Default Values'!$C$29*(1+InflationRateGeneral)^(L62-$D$62),0) -> 0 | M108: =IF(AND(M63>0,M63<=FacilityLifespan,M62>=OperationsStartYear),($D$39-$D$35)*'8-Default Values'!$C$29*(1+InflationRateGeneral)^(M62-$D$62),0) -> 0 | N108: =IF(AND(N63>0,N63<=FacilityLifespan,N62>=OperationsStartYear),($D$39-$D$35)*'8-Default Values'!$C$29*(1+InflationRateGeneral)^(N62-$D$62),0) -> 0 | O108: =IF(AND(O63>0,O63<=FacilityLifespan,O62>=OperationsStartYear),($D$39-$D$35)*'8-Default Values'!$C$29*(1+InflationRateGeneral)^(O62-$D$62),0) -> 0 | P108: =IF(AND(P63>0,P63<=FacilityLifespan,P62>=OperationsStartYear),($D$39-$D$35)*'8-Default Values'!$C$29*(1+InflationRateGeneral)^(P62-$D$62),0) -> 0 | Q108: =IF(AND(Q63>0,Q63<=FacilityLifespan,Q62>=OperationsStartYear),($D$39-$D$35)*'8-Default Values'!$C$29*(1+InflationRateGeneral)^(Q62-$D$62),0) -> 0 | R108: =IF(AND(R63>0,R63<=FacilityLifespan,R62>=OperationsStartYear),($D$39-$D$35)*'8-Default Values'!$C$29*(1+InflationRateGeneral)^(R62-$D$62),0) -> 0 | S108: =IF(AND(S63>0,S63<=FacilityLifespan,S62>=OperationsStartYear),($D$39-$D$35)*'8-Default Values'!$C$29*(1+InflationRateGeneral)^(S62-$D$62),0) -> 0 | T108: =IF(AND(T63>0,T63<=FacilityLifespan,T62>=OperationsStartYear),($D$39-$D$35)*'8-Default Values'!$C$29*(1+InflationRateGeneral)^(T62-$D$62),0) -> 0 | U108: =IF(AND(U63>0,U63<=FacilityLifespan,U62>=OperationsStartYear),($D$39-$D$35)*'8-Default Values'!$C$29*(1+InflationRateGeneral)^(U62-$D$62),0) -> 0 | V108: =IF(AND(V63>0,V63<=FacilityLifespan,V62>=OperationsStartYear),($D$39-$D$35)*'8-Default Values'!$C$29*(1+InflationRateGeneral)^(V62-$D$62),0) -> 0 | W108: =IF(AND(W63>0,W63<=FacilityLifespan,W62>=OperationsStartYear),($D$39-$D$35)*'8-Default Values'!$C$29*(1+InflationRateGeneral)^(W62-$D$62),0) -> 0 | X108: =IF(AND(X63>0,X63<=FacilityLifespan,X62>=OperationsStartYear),($D$39-$D$35)*'8-Default Values'!$C$29*(1+InflationRateGeneral)^(X62-$D$62),0) -> 0 | Y108: =IF(AND(Y63>0,Y63<=FacilityLifespan,Y62>=OperationsStartYear),($D$39-$D$35)*'8-Default Values'!$C$29*(1+InflationRateGeneral)^(Y62-$D$62),0) -> 0 | Z108: =IF(AND(Z63>0,Z63<=FacilityLifespan,Z62>=OperationsStartYear),($D$39-$D$35)*'8-Default Values'!$C$29*(1+InflationRateGeneral)^(Z62-$D$62),0) -> 0
B110: Consolidated Profit and Loss
B111: Compost Sales ($/year) | D111: =D88*D79 -> 0 | E111: =E88*E79 -> 0 | F111: 0 | G111: 0 | H111: 0 | I111: 0 | J111: 0 | K111: 0 | L111: 0 | M111: 0 | N111: 0 | O111: 0 | P111: 0 | Q111: 0 | R111: 0 | S111: 0 | T111: 0 | U111: 0 | V111: 0 | W111: 0 | X111: 0 | Y111: 0 | Z111: 0
B112: Gate Fee - Yard Waste ($/year) | D112: =D89*D65 -> 0 | E112: 0 | F112: =F89*F70 -> 0 | G112: 0 | H112: 0 | I112: 0 | J112: 0 | K112: 0 | L112: 0 | M112: 0 | N112: 0 | O112: 0 | P112: 0 | Q112: 0 | R112: 0 | S112: 0 | T112: 0 | U112: 0 | V112: 0 | W112: 0 | X112: 0 | Y112: 0 | Z112: 0
B113: Gate Fee - Food Waste ($/tonne) | D113: 0 | E113: 0 | F113: =F90*F66 -> 0 | G113: 0 | H113: 0 | I113: 0 | J113: 0 | K113: 0 | L113: 0 | M113: 0 | N113: 0 | O113: 0 | P113: 0 | Q113: 0 | R113: 0 | S113: 0 | T113: 0 | U113: 0 | V113: 0 | W113: 0 | X113: 0 | Y113: 0 | Z113: 0
B114: Gate Fee - Manure/Sludge Waste ($/tonne) | D114: 0 | E114: 0 | F114: =F91*F67 -> 0 | G114: 0 | H114: 0 | I114: 0 | J114: 0 | K114: 0 | L114: 0 | M114: 0 | N114: 0 | O114: 0 | P114: 0 | Q114: 0 | R114: 0 | S114: 0 | T114: 0 | U114: 0 | V114: 0 | W114: 0 | X114: 0 | Y114: 0 | Z114: 0
B115: Gate Fee - Paper/Cardboard ($/year) | D115: 0 | E115: 0 | F115: =F92*F70 -> 0 | G115: 0 | H115: 0 | I115: 0 | J115: 0 | K115: 0 | L115: 0 | M115: 0 | N115: 0 | O115: 0 | P115: 0 | Q115: 0 | R115: 0 | S115: 0 | T115: 0 | U115: 0 | V115: 0 | W115: 0 | X115: 0 | Y115: 0 | Z115: 0
B117: Avoided Landfill Disposal Fees ($/year) | D117: =D93*D70 -> 0 | E117: 0 | F117: 0 | G117: 0 | H117: 0 | I117: 0 | J117: 0 | K117: 0 | L117: 0 | M117: 0 | N117: 0 | O117: 0 | P117: 0 | Q117: 0 | R117: 0 | S117: 0 | T117: 0 | U117: 0 | V117: 0 | W117: 0 | X117: 0 | Y117: 0 | Z117: 0
B118: Avoided Transportation Fees ($/year) | D118: =(DistanceGeneratorsToLandfill-DistanceGeneratorsToOrganicsFacility)*D94*D70 -> 0 | E118: 0 | F118: 0 | G118: 0 | H118: 0 | I118: 0 | J118: 0 | K118: 0 | L118: 0 | M118: 0 | N118: 0 | O118: 0 | P118: 0 | Q118: 0 | R118: 0 | S118: 0 | T118: 0 | U118: 0 | V118: 0 | W118: 0 | X118: 0 | Y118: 0 | Z118: 0
B119: Land Sale at End of Project Life ($/year) | D119: =IF(AND('7-Economic Inputs'!$E$27="Purchase",D62=OperationsStartYear+FacilityLifespan-1),$D$36*(1+InflationRateGeneral)^(D62-$D$62),0) -> 0 | E119: =IF(AND('7-Economic Inputs'!$E$27="Purchase",E62=OperationsStartYear+FacilityLifespan-1),$D$36*(1+InflationRateGeneral)^(E62-$D$62),0) -> 0 | F119: =IF(AND('7-Economic Inputs'!$E$27="Purchase",F62=OperationsStartYear+FacilityLifespan-1),$D$36*(1+InflationRateGeneral)^(F62-$D$62),0) -> 0 | G119: =IF(AND('7-Economic Inputs'!$E$27="Purchase",G62=OperationsStartYear+FacilityLifespan-1),$D$36*(1+InflationRateGeneral)^(G62-$D$62),0) -> 0 | H119: =IF(AND('7-Economic Inputs'!$E$27="Purchase",H62=OperationsStartYear+FacilityLifespan-1),$D$36*(1+InflationRateGeneral)^(H62-$D$62),0) -> 0 | I119: =IF(AND('7-Economic Inputs'!$E$27="Purchase",I62=OperationsStartYear+FacilityLifespan-1),$D$36*(1+InflationRateGeneral)^(I62-$D$62),0) -> 0 | J119: =IF(AND('7-Economic Inputs'!$E$27="Purchase",J62=OperationsStartYear+FacilityLifespan-1),$D$36*(1+InflationRateGeneral)^(J62-$D$62),0) -> 0 | K119: =IF(AND('7-Economic Inputs'!$E$27="Purchase",K62=OperationsStartYear+FacilityLifespan-1),$D$36*(1+InflationRateGeneral)^(K62-$D$62),0) -> 0 | L119: =IF(AND('7-Economic Inputs'!$E$27="Purchase",L62=OperationsStartYear+FacilityLifespan-1),$D$36*(1+InflationRateGeneral)^(L62-$D$62),0) -> 0 | M119: =IF(AND('7-Economic Inputs'!$E$27="Purchase",M62=OperationsStartYear+FacilityLifespan-1),$D$36*(1+InflationRateGeneral)^(M62-$D$62),0) -> 0 | N119: =IF(AND('7-Economic Inputs'!$E$27="Purchase",N62=OperationsStartYear+FacilityLifespan-1),$D$36*(1+InflationRateGeneral)^(N62-$D$62),0) -> 0 | O119: =IF(AND('7-Economic Inputs'!$E$27="Purchase",O62=OperationsStartYear+FacilityLifespan-1),$D$36*(1+InflationRateGeneral)^(O62-$D$62),0) -> 0 | P119: =IF(AND('7-Economic Inputs'!$E$27="Purchase",P62=OperationsStartYear+FacilityLifespan-1),$D$36*(1+InflationRateGeneral)^(P62-$D$62),0) -> 0 | Q119: =IF(AND('7-Economic Inputs'!$E$27="Purchase",Q62=OperationsStartYear+FacilityLifespan-1),$D$36*(1+InflationRateGeneral)^(Q62-$D$62),0) -> 0 | R119: =IF(AND('7-Economic Inputs'!$E$27="Purchase",R62=OperationsStartYear+FacilityLifespan-1),$D$36*(1+InflationRateGeneral)^(R62-$D$62),0) -> 0 | S119: =IF(AND('7-Economic Inputs'!$E$27="Purchase",S62=OperationsStartYear+FacilityLifespan-1),$D$36*(1+InflationRateGeneral)^(S62-$D$62),0) -> 0 | T119: =IF(AND('7-Economic Inputs'!$E$27="Purchase",T62=OperationsStartYear+FacilityLifespan-1),$D$36*(1+InflationRateGeneral)^(T62-$D$62),0) -> 0 | U119: =IF(AND('7-Economic Inputs'!$E$27="Purchase",U62=OperationsStartYear+FacilityLifespan-1),$D$36*(1+InflationRateGeneral)^(U62-$D$62),0) -> 0 | V119: =IF(AND('7-Economic Inputs'!$E$27="Purchase",V62=OperationsStartYear+FacilityLifespan-1),$D$36*(1+InflationRateGeneral)^(V62-$D$62),0) -> 0 | W119: =IF(AND('7-Economic Inputs'!$E$27="Purchase",W62=OperationsStartYear+FacilityLifespan-1),$D$36*(1+InflationRateGeneral)^(W62-$D$62),0) -> 0 | X119: =IF(AND('7-Economic Inputs'!$E$27="Purchase",X62=OperationsStartYear+FacilityLifespan-1),$D$36*(1+InflationRateGeneral)^(X62-$D$62),0) -> 0 | Y119: =IF(AND('7-Economic Inputs'!$E$27="Purchase",Y62=OperationsStartYear+FacilityLifespan-1),$D$36*(1+InflationRateGeneral)^(Y62-$D$62),0) -> 0 | Z119: =IF(AND('7-Economic Inputs'!$E$27="Purchase",Z62=OperationsStartYear+FacilityLifespan-1),$D$36*(1+InflationRateGeneral)^(Z62-$D$62),0) -> 0
B120: Composting Equipment Sale at End of Project Life ($/year) | D120: =IF(D63=FacilityLifespan,SUM($D$172:$D$175),0) -> 0 | E120: 0 | F120: 0 | G120: 0 | H120: 0 | I120: 0 | J120: 0 | K120: 0 | L120: 0 | M120: 0 | N120: 0 | O120: 0 | P120: 0 | Q120: 0 | R120: 0 | S120: 0 | T120: 0 | U120: 0 | V120: 0 | W120: 0 | X120: 0 | Y120: 0 | Z120: 0
B121: Total Revenues ($/year) | D121: =SUM(D111:D120) -> 0 | E121: =SUM(E111:E120) -> 0 | F121: =SUM(F111:F120) -> 0 | G121: 0 | H121: 0 | I121: 0 | J121: 0 | K121: 0 | L121: 0 | M121: 0 | N121: 0 | O121: 0 | P121: 0 | Q121: 0 | R121: 0 | S121: 0 | T121: 0 | U121: 0 | V121: 0 | W121: 0 | X121: 0 | Y121: 0 | Z121: 0
B122: Electricity Costs ($/year) | D122: =D96*D81 -> 0 | E122: =E96*E81 -> 0 | F122: 0 | G122: 0 | H122: 0 | I122: 0 | J122: 0 | K122: 0 | L122: 0 | M122: 0 | N122: 0 | O122: 0 | P122: 0 | Q122: 0 | R122: 0 | S122: 0 | T122: 0 | U122: 0 | V122: 0 | W122: 0 | X122: 0 | Y122: 0 | Z122: 0
B123: Diesel Costs ($/year) | D123: =D97*D82 -> 0 | E123: =E97*E82 -> 0 | F123: 0 | G123: 0 | H123: 0 | I123: 0 | J123: 0 | K123: 0 | L123: 0 | M123: 0 | N123: 0 | O123: 0 | P123: 0 | Q123: 0 | R123: 0 | S123: 0 | T123: 0 | U123: 0 | V123: 0 | W123: 0 | X123: 0 | Y123: 0 | Z123: 0
B124: Residual Transportation Cost ($/year) | D124: =D98*D76*DistanceOrganicsFacilityToLandfill -> 0 | E124: 0 | F124: 0 | G124: 0 | H124: 0 | I124: 0 | J124: 0 | K124: 0 | L124: 0 | M124: 0 | N124: 0 | O124: 0 | P124: 0 | Q124: 0 | R124: 0 | S124: 0 | T124: 0 | U124: 0 | V124: 0 | W124: 0 | X124: 0 | Y124: 0 | Z124: 0
B125: Residual Disposal Cost ($/year) | D125: =D99*D76 -> 0 | E125: 0 | F125: 0 | G125: 0 | H125: 0 | I125: 0 | J125: 0 | K125: 0 | L125: 0 | M125: 0 | N125: 0 | O125: 0 | P125: 0 | Q125: 0 | R125: 0 | S125: 0 | T125: 0 | U125: 0 | V125: 0 | W125: 0 | X125: 0 | Y125: 0 | Z125: 0
B126: Lease Cost ($/year) | D126: =IF('7-Economic Inputs'!$E$27="Lease",(D100*$D$29),0) -> 0 | E126: =IF('7-Economic Inputs'!$E$27="Lease",(E100*$D$29),0) -> 0 | F126: =IF('7-Economic Inputs'!$E$27="Lease",(F100*$D$29),0) -> 0 | G126: =IF('7-Economic Inputs'!$E$27="Lease",(G100*$D$29),0) -> 0 | H126: =IF('7-Economic Inputs'!$E$27="Lease",(H100*$D$29),0) -> 0 | I126: =IF('7-Economic Inputs'!$E$27="Lease",(I100*$D$29),0) -> 0 | J126: =IF('7-Economic Inputs'!$E$27="Lease",(J100*$D$29),0) -> 0 | K126: =IF('7-Economic Inputs'!$E$27="Lease",(K100*$D$29),0) -> 0 | L126: =IF('7-Economic Inputs'!$E$27="Lease",(L100*$D$29),0) -> 0 | M126: =IF('7-Economic Inputs'!$E$27="Lease",(M100*$D$29),0) -> 0 | N126: =IF('7-Economic Inputs'!$E$27="Lease",(N100*$D$29),0) -> 0 | O126: =IF('7-Economic Inputs'!$E$27="Lease",(O100*$D$29),0) -> 0 | P126: =IF('7-Economic Inputs'!$E$27="Lease",(P100*$D$29),0) -> 0 | Q126: =IF('7-Economic Inputs'!$E$27="Lease",(Q100*$D$29),0) -> 0 | R126: =IF('7-Economic Inputs'!$E$27="Lease",(R100*$D$29),0) -> 0 | S126: =IF('7-Economic Inputs'!$E$27="Lease",(S100*$D$29),0) -> 0 | T126: =IF('7-Economic Inputs'!$E$27="Lease",(T100*$D$29),0) -> 0 | U126: =IF('7-Economic Inputs'!$E$27="Lease",(U100*$D$29),0) -> 0 | V126: =IF('7-Economic Inputs'!$E$27="Lease",(V100*$D$29),0) -> 0 | W126: =IF('7-Economic Inputs'!$E$27="Lease",(W100*$D$29),0) -> 0 | X126: =IF('7-Economic Inputs'!$E$27="Lease",(X100*$D$29),0) -> 0 | Y126: =IF('7-Economic Inputs'!$E$27="Lease",(Y100*$D$29),0) -> 0 | Z126: =IF('7-Economic Inputs'!$E$27="Lease",(Z100*$D$29),0) -> 0
B127: Labor Cost ($/year) | D127: =(D101*D84)+(D85*D102) -> 0 | E127: =(E101*E84)+(E85*E102) -> 0 | F127: 0 | G127: 0 | H127: 0 | I127: 0 | J127: 0 | K127: 0 | L127: 0 | M127: 0 | N127: 0 | O127: 0 | P127: 0 | Q127: 0 | R127: 0 | S127: 0 | T127: 0 | U127: 0 | V127: 0 | W127: 0 | X127: 0 | Y127: 0 | Z127: 0
B128: Process Water Cost ($/year) | D128: =D103*D83 -> 0 | E128: 0 | F128: =F103*F83 -> 0 | G128: 0 | H128: 0 | I128: 0 | J128: 0 | K128: 0 | L128: 0 | M128: 0 | N128: 0 | O128: 0 | P128: 0 | Q128: 0 | R128: 0 | S128: 0 | T128: 0 | U128: 0 | V128: 0 | W128: 0 | X128: 0 | Y128: 0 | Z128: 0
B129: Bulking Agent Cost ($/year) | D129: =D104*D71 -> 0 | E129: 0 | F129: 0 | G129: 0 | H129: 0 | I129: 0 | J129: 0 | K129: 0 | L129: 0 | M129: 0 | N129: 0 | O129: 0 | P129: 0 | Q129: 0 | R129: 0 | S129: 0 | T129: 0 | U129: 0 | V129: 0 | W129: 0 | X129: 0 | Y129: 0 | Z129: 0
B130: Compost - Soil Product Land Application Cost ($/year) | D130: =D105*D74 -> 0 | E130: 0 | F130: 0 | G130: 0 | H130: 0 | I130: 0 | J130: 0 | K130: 0 | L130: 0 | M130: 0 | N130: 0 | O130: 0 | P130: 0 | Q130: 0 | R130: 0 | S130: 0 | T130: 0 | U130: 0 | V130: 0 | W130: 0 | X130: 0 | Y130: 0 | Z130: 0
B131: Compost - Soil Product Transportation Cost ($/year) | D131: =D106*D74 -> 0 | E131: 0 | F131: 0 | G131: 0 | H131: 0 | I131: 0 | J131: 0 | K131: 0 | L131: 0 | M131: 0 | N131: 0 | O131: 0 | P131: 0 | Q131: 0 | R131: 0 | S131: 0 | T131: 0 | U131: 0 | V131: 0 | W131: 0 | X131: 0 | Y131: 0 | Z131: 0
B132: Maintenance Costs ($/year) | D132: =D107 -> 0 | E132: =E107 -> 0 | F132: 0 | G132: 0 | H132: 0 | I132: 0 | J132: 0 | K132: 0 | L132: 0 | M132: 0 | N132: 0 | O132: 0 | P132: 0 | Q132: 0 | R132: 0 | S132: 0 | T132: 0 | U132: 0 | V132: 0 | W132: 0 | X132: 0 | Y132: 0 | Z132: 0
B133: Insurance Costs ($/year) | D133: =D108 -> 0 | E133: =E108 -> 0 | F133: 0 | G133: =G108 -> 0 | H133: 0 | I133: 0 | J133: 0 | K133: 0 | L133: 0 | M133: 0 | N133: 0 | O133: 0 | P133: 0 | Q133: 0 | R133: 0 | S133: 0 | T133: 0 | U133: 0 | V133: 0 | W133: 0 | X133: 0 | Y133: 0 | Z133: 0
B134: Outside Services and Supplies ($/year) | D134: ='8-Default Values'!$C$30*SUM(D122:D133) -> 0 | E134: ='8-Default Values'!$C$30*SUM(E122:E133) -> 0 | F134: ='8-Default Values'!$C$30*SUM(F122:F133) -> 0 | G134: ='8-Default Values'!$C$30*SUM(G122:G133) -> 0 | H134: ='8-Default Values'!$C$30*SUM(H122:H133) -> 0 | I134: ='8-Default Values'!$C$30*SUM(I122:I133) -> 0 | J134: ='8-Default Values'!$C$30*SUM(J122:J133) -> 0 | K134: ='8-Default Values'!$C$30*SUM(K122:K133) -> 0 | L134: ='8-Default Values'!$C$30*SUM(L122:L133) -> 0 | M134: ='8-Default Values'!$C$30*SUM(M122:M133) -> 0 | N134: ='8-Default Values'!$C$30*SUM(N122:N133) -> 0 | O134: ='8-Default Values'!$C$30*SUM(O122:O133) -> 0 | P134: ='8-Default Values'!$C$30*SUM(P122:P133) -> 0 | Q134: ='8-Default Values'!$C$30*SUM(Q122:Q133) -> 0 | R134: ='8-Default Values'!$C$30*SUM(R122:R133) -> 0 | S134: ='8-Default Values'!$C$30*SUM(S122:S133) -> 0 | T134: ='8-Default Values'!$C$30*SUM(T122:T133) -> 0 | U134: ='8-Default Values'!$C$30*SUM(U122:U133) -> 0 | V134: ='8-Default Values'!$C$30*SUM(V122:V133) -> 0 | W134: ='8-Default Values'!$C$30*SUM(W122:W133) -> 0 | X134: ='8-Default Values'!$C$30*SUM(X122:X133) -> 0 | Y134: ='8-Default Values'!$C$30*SUM(Y122:Y133) -> 0 | Z134: ='8-Default Values'!$C$30*SUM(Z122:Z133) -> 0
B135: Operating Cost Contingency ($/year) | D135: =SUM(D122:D134)*'8-Default Values'!$C$31 -> 0 | E135: =SUM(E122:E134)*'8-Default Values'!$C$31 -> 0 | F135: =SUM(F122:F134)*'8-Default Values'!$C$31 -> 0 | G135: =SUM(G122:G134)*'8-Default Values'!$C$31 -> 0 | H135: =SUM(H122:H134)*'8-Default Values'!$C$31 -> 0 | I135: =SUM(I122:I134)*'8-Default Values'!$C$31 -> 0 | J135: =SUM(J122:J134)*'8-Default Values'!$C$31 -> 0 | K135: =SUM(K122:K134)*'8-Default Values'!$C$31 -> 0 | L135: =SUM(L122:L134)*'8-Default Values'!$C$31 -> 0 | M135: =SUM(M122:M134)*'8-Default Values'!$C$31 -> 0 | N135: =SUM(N122:N134)*'8-Default Values'!$C$31 -> 0 | O135: =SUM(O122:O134)*'8-Default Values'!$C$31 -> 0 | P135: =SUM(P122:P134)*'8-Default Values'!$C$31 -> 0 | Q135: =SUM(Q122:Q134)*'8-Default Values'!$C$31 -> 0 | R135: =SUM(R122:R134)*'8-Default Values'!$C$31 -> 0 | S135: =SUM(S122:S134)*'8-Default Values'!$C$31 -> 0 | T135: =SUM(T122:T134)*'8-Default Values'!$C$31 -> 0 | U135: =SUM(U122:U134)*'8-Default Values'!$C$31 -> 0 | V135: =SUM(V122:V134)*'8-Default Values'!$C$31 -> 0 | W135: =SUM(W122:W134)*'8-Default Values'!$C$31 -> 0 | X135: =SUM(X122:X134)*'8-Default Values'!$C$31 -> 0 | Y135: =SUM(Y122:Y134)*'8-Default Values'!$C$31 -> 0 | Z135: =SUM(Z122:Z134)*'8-Default Values'!$C$31 -> 0
B136: Cost of Goods Sold | D136: =SUM(D122:D134)+D143 -> 0 | E136: =SUM(E122:E134)+E143 -> 0 | F136: 0 | G136: 0 | H136: 0 | I136: 0 | J136: 0 | K136: 0 | L136: 0 | M136: 0 | N136: 0 | O136: 0 | P136: 0 | Q136: 0 | R136: 0 | S136: 0 | T136: 0 | U136: 0 | V136: 0 | W136: 0 | X136: 0 | Y136: 0 | Z136: 0
B137: Total Expenses ($/year) | D137: =SUM(D122:D135) -> 0 | E137: =SUM(E122:E135) -> 0 | F137: 0 | G137: =SUM(G122:G135) -> 0 | H137: 0 | I137: 0 | J137: 0 | K137: 0 | L137: 0 | M137: 0 | N137: 0 | O137: 0 | P137: 0 | Q137: 0 | R137: 0 | S137: 0 | T137: 0 | U137: 0 | V137: 0 | W137: 0 | X137: 0 | Y137: 0 | Z137: 0
B138: Total O&M/tonne of Waste Processed | D138: =IF(D137=0,0,IF(D63>0,D137/D72,0)) -> 0 | E138: 0 | F138: 0 | G138: 0 | H138: 0 | I138: 0 | J138: 0 | K138: 0 | L138: 0 | M138: 0 | N138: 0 | O138: 0 | P138: 0 | Q138: 0 | R138: 0 | S138: 0 | T138: 0 | U138: 0 | V138: 0 | W138: 0 | X138: 0 | Y138: 0 | Z138: 0
B139: Total Adjusted COGS ($/year) | D139: =D136 -> 0 | E139: =E136 -> 0 | F139: 0 | G139: 0 | H139: 0 | I139: 0 | J139: 0 | K139: 0 | L139: 0 | M139: 0 | N139: 0 | O139: 0 | P139: 0 | Q139: 0 | R139: 0 | S139: 0 | T139: 0 | U139: 0 | V139: 0 | W139: 0 | X139: 0 | Y139: 0 | Z139: 0
B140: Total Adjusted Expenses ($/year) | D140: =D137 -> 0 | E140: =E137 -> 0 | F140: 0 | G140: 0 | H140: 0 | I140: 0 | J140: 0 | K140: 0 | L140: 0 | M140: 0 | N140: 0 | O140: 0 | P140: 0 | Q140: 0 | R140: 0 | S140: 0 | T140: 0 | U140: 0 | V140: 0 | W140: 0 | X140: 0 | Y140: 0 | Z140: 0
B141: Gross Profit | D141: =SUM(D111:D115)-D139 -> 0 | E141: =SUM(E111:E115)-E139 -> 0 | F141: 0 | G141: 0 | H141: 0 | I141: 0 | J141: 0 | K141: 0 | L141: 0 | M141: 0 | N141: 0 | O141: 0 | P141: 0 | Q141: 0 | R141: 0 | S141: 0 | T141: 0 | U141: 0 | V141: 0 | W141: 0 | X141: 0 | Y141: 0 | Z141: 0
B142: EBITDA | D142: =D121-D140 -> 0 | E142: =E121-E140 -> 0 | F142: 0 | G142: 0 | H142: =H121-H140 -> 0 | I142: 0 | J142: 0 | K142: 0 | L142: 0 | M142: 0 | N142: 0 | O142: 0 | P142: 0 | Q142: 0 | R142: 0 | S142: 0 | T142: 0 | U142: 0 | V142: 0 | W142: 0 | X142: 0 | Y142: 0 | Z142: 0
B143: Depreciation | D143: =D169 -> 0 | E143: =E169 -> 0 | F143: =F169 -> 0 | G143: =G169 -> 0 | H143: 0 | I143: 0 | J143: 0 | K143: 0 | L143: 0 | M143: 0 | N143: 0 | O143: 0 | P143: 0 | Q143: 0 | R143: 0 | S143: 0 | T143: 0 | U143: 0 | V143: 0 | W143: 0 | X143: 0 | Y143: =Y169 -> 0 | Z143: =Z169 -> 0
B144: EBIT | D144: =D142-D143 -> 0 | E144: =E142-E143 -> 0 | F144: =F142-F143 -> 0 | G144: 0 | H144: =H142-H143 -> 0 | I144: 0 | J144: 0 | K144: 0 | L144: 0 | M144: 0 | N144: 0 | O144: 0 | P144: 0 | Q144: 0 | R144: 0 | S144: 0 | T144: 0 | U144: 0 | V144: 0 | W144: 0 | X144: 0 | Y144: =Y142-Y143 -> 0 | Z144: =Z142-Z143 -> 0
B146: Operating Cash Flow
B147: EBIT | D147: =D144 -> 0 | E147: =E144 -> 0 | F147: =F144 -> 0 | G147: 0 | H147: 0 | I147: 0 | J147: 0 | K147: 0 | L147: 0 | M147: 0 | N147: 0 | O147: 0 | P147: 0 | Q147: 0 | R147: 0 | S147: 0 | T147: 0 | U147: 0 | V147: 0 | W147: 0 | X147: =X144 -> 0 | Y147: =Y144 -> 0 | Z147: =Z144 -> 0
B148: Taxes | D148: =IF(D141>0,-D141*Tax,0) -> 0 | E148: 0 | F148: 0 | G148: 0 | H148: 0 | I148: 0 | J148: 0 | K148: 0 | L148: 0 | M148: 0 | N148: 0 | O148: 0 | P148: 0 | Q148: 0 | R148: 0 | S148: 0 | T148: 0 | U148: 0 | V148: 0 | W148: 0 | X148: 0 | Y148: 0 | Z148: 0
B149: EBIAT (After Tax EBIT) | D149: =D147+D148 -> 0 | E149: =E147+E148 -> 0 | F149: 0 | G149: 0 | H149: 0 | I149: 0 | J149: 0 | K149: 0 | L149: 0 | M149: 0 | N149: 0 | O149: 0 | P149: 0 | Q149: 0 | R149: 0 | S149: 0 | T149: 0 | U149: 0 | V149: 0 | W149: 0 | X149: 0 | Y149: =Y147+Y148 -> 0 | Z149: =Z147+Z148 -> 0
B150: Depreciation | D150: =D169 -> 0 | E150: =E169 -> 0 | F150: 0 | G150: 0 | H150: 0 | I150: 0 | J150: 0 | K150: 0 | L150: 0 | M150: 0 | N150: 0 | O150: 0 | P150: 0 | Q150: 0 | R150: 0 | S150: 0 | T150: 0 | U150: 0 | V150: 0 | W150: 0 | X150: 0 | Y150: 0 | Z150: 0
B151: Operating Cash Flow | D151: =D149+D150 -> 0 | E151: =E149+E150 -> 0 | F151: =F149+F150 -> 0 | G151: 0 | H151: 0 | I151: 0 | J151: 0 | K151: 0 | L151: 0 | M151: 0 | N151: 0 | O151: 0 | P151: 0 | Q151: 0 | R151: 0 | S151: 0 | T151: 0 | U151: 0 | V151: 0 | W151: 0 | X151: 0 | Y151: =Y149+Y150 -> 0 | Z151: =Z149+Z150 -> 0
B152: Debt Service | D152: =-D222 -> 0 | E152: =-E222 -> 0 | F152: 0 | G152: 0 | H152: 0 | I152: 0 | J152: 0 | K152: 0 | L152: 0 | M152: 0 | N152: 0 | O152: 0 | P152: 0 | Q152: 0 | R152: 0 | S152: =-S222 -> 0 | T152: 0 | U152: 0 | V152: 0 | W152: 0 | X152: 0 | Y152: =-Y222 -> 0 | Z152: =-Z222 -> 0
B153: Initial Equity | D153: =IF(D62=InvestmentYear,$D$45,0) -> 0 | E153: =-IF(E62=InvestmentYear,$D$45,0) -> 0 | F153: 0 | G153: 0 | H153: 0 | I153: 0 | J153: 0 | K153: 0 | L153: 0 | M153: 0 | N153: 0 | O153: 0 | P153: 0 | Q153: 0 | R153: 0 | S153: 0 | T153: 0 | U153: 0 | V153: 0 | W153: 0 | X153: 0 | Y153: 0 | Z153: 0
B154: Initial Debt | D154: =IF(D62=InvestmentYear,$D$44,0) -> 0 | E154: 0 | F154: 0 | G154: 0 | H154: 0 | I154: 0 | J154: 0 | K154: 0 | L154: 0 | M154: 0 | N154: 0 | O154: 0 | P154: 0 | Q154: 0 | R154: 0 | S154: 0 | T154: 0 | U154: 0 | V154: 0 | W154: 0 | X154: 0 | Y154: 0 | Z154: 0
B155: New Debt for Equipment Replacement | D155: =IF(AND(D62=$D$16,$D$49="Yes"),$D$52,IF(AND(D62=$D$17,$D$49="Yes"),$D$54,IF(AND(D62=$D$18,$D$49="Yes"),$D$56,0))) -> 0 | E155: =IF(AND(E62=$D$16,$D$49="Yes"),$D$52,IF(AND(E62=$D$17,$D$49="Yes"),$D$54,IF(AND(E62=$D$18,$D$49="Yes"),$D$56,0))) -> 0 | F155: 0 | G155: 0 | H155: 0 | I155: 0 | J155: 0 | K155: 0 | L155: 0 | M155: 0 | N155: 0 | O155: 0 | P155: 0 | Q155: 0 | R155: 0 | S155: 0 | T155: 0 | U155: 0 | V155: 0 | W155: 0 | X155: 0 | Y155: 0 | Z155: 0
B156: Levered Free Cash Flow | D156: =(-D153)+D151+(-D222) -> 0 | E156: =(-E153)+E151+(-E222) -> 0 | F156: 0 | G156: 0 | H156: 0 | I156: 0 | J156: 0 | K156: 0 | L156: 0 | M156: 0 | N156: 0 | O156: 0 | P156: 0 | Q156: 0 | R156: 0 | S156: 0 | T156: 0 | U156: 0 | V156: 0 | W156: 0 | X156: 0 | Y156: 0 | Z156: 0
B159: Capex and Depreciation Schedule
B160: Infrastructure and Site Development Investment | D160: =IF(D62=InvestmentYear,$D$33,0) -> 0 | E160: 0 | F160: =IF(F62=InvestmentYear,$D$33,0) -> 0 | G160: 0 | H160: 0 | I160: 0 | J160: 0 | K160: 0 | L160: 0 | M160: 0 | N160: 0 | O160: 0 | P160: 0 | Q160: 0 | R160: 0 | S160: 0 | T160: 0 | U160: 0 | V160: 0 | W160: 0 | X160: 0 | Y160: 0 | Z160: 0
B161: Equipment Investment | D161: =IF(D62=InvestmentYear,$D$34,0) -> 0 | E161: =IF(E62=InvestmentYear,$D$34,0) -> 0 | F161: =IF(F62=InvestmentYear,$D$34,0) -> 0 | G161: 0 | H161: 0 | I161: 0 | J161: 0 | K161: 0 | L161: 0 | M161: 0 | N161: 0 | O161: 0 | P161: 0 | Q161: 0 | R161: 0 | S161: 0 | T161: 0 | U161: 0 | V161: 0 | W161: 0 | X161: 0 | Y161: 0 | Z161: 0
B162: New Equipment Capex | D162: =IF(D62=$D$16,$D$51,IF(D62=$D$17,$D$53,IF(D62=$D$18,$D$55,0))) -> 0 | E162: =IF(E62=$D$16,$D$51,IF(E62=$D$17,$D$53,IF(E62=$D$18,$D$55,0))) -> 0 | F162: =IF(F62=$D$16,$D$51,IF(F62=$D$17,$D$53,IF(F62=$D$18,$D$55,0))) -> 0 | G162: 0 | H162: 0 | I162: 0 | J162: 0 | K162: 0 | L162: 0 | M162: 0 | N162: 0 | O162: 0 | P162: 0 | Q162: 0 | R162: 0 | S162: 0 | T162: 0 | U162: 0 | V162: 0 | W162: 0 | X162: 0 | Y162: 0 | Z162: 0
B163: Depreciation - Infrastructure and Site Development | E163: =IFERROR(IF(DeprMeth="Straight-Line",SLN($D$160,SalvageValue,DepreciationAllInfrastructure),SYD($D$160,SalvageValue,DepreciationAllInfrastructure,E63)),0) -> 0 | F163: =IFERROR(IF(DeprMeth="Straight-Line",SLN($D$160,SalvageValue,DepreciationAllInfrastructure),SYD($D$160,SalvageValue,DepreciationAllInfrastructure,F63)),0) -> 0 | G163: =IFERROR(IF(DeprMeth="Straight-Line",SLN($D$160,SalvageValue,DepreciationAllInfrastructure),SYD($D$160,SalvageValue,DepreciationAllInfrastructure,G63)),0) -> 0 | H163: =IFERROR(IF(DeprMeth="Straight-Line",SLN($D$160,SalvageValue,DepreciationAllInfrastructure),SYD($D$160,SalvageValue,DepreciationAllInfrastructure,H63)),0) -> 0 | I163: =IFERROR(IF(DeprMeth="Straight-Line",SLN($D$160,SalvageValue,DepreciationAllInfrastructure),SYD($D$160,SalvageValue,DepreciationAllInfrastructure,I63)),0) -> 0 | J163: =IFERROR(IF(DeprMeth="Straight-Line",SLN($D$160,SalvageValue,DepreciationAllInfrastructure),SYD($D$160,SalvageValue,DepreciationAllInfrastructure,J63)),0) -> 0 | K163: =IFERROR(IF(DeprMeth="Straight-Line",SLN($D$160,SalvageValue,DepreciationAllInfrastructure),SYD($D$160,SalvageValue,DepreciationAllInfrastructure,K63)),0) -> 0 | L163: =IFERROR(IF(DeprMeth="Straight-Line",SLN($D$160,SalvageValue,DepreciationAllInfrastructure),SYD($D$160,SalvageValue,DepreciationAllInfrastructure,L63)),0) -> 0 | M163: =IFERROR(IF(DeprMeth="Straight-Line",SLN($D$160,SalvageValue,DepreciationAllInfrastructure),SYD($D$160,SalvageValue,DepreciationAllInfrastructure,M63)),0) -> 0 | N163: =IFERROR(IF(DeprMeth="Straight-Line",SLN($D$160,SalvageValue,DepreciationAllInfrastructure),SYD($D$160,SalvageValue,DepreciationAllInfrastructure,N63)),0) -> 0 | O163: =IFERROR(IF(DeprMeth="Straight-Line",SLN($D$160,SalvageValue,DepreciationAllInfrastructure),SYD($D$160,SalvageValue,DepreciationAllInfrastructure,O63)),0) -> 0 | P163: =IFERROR(IF(DeprMeth="Straight-Line",SLN($D$160,SalvageValue,DepreciationAllInfrastructure),SYD($D$160,SalvageValue,DepreciationAllInfrastructure,P63)),0) -> 0 | Q163: =IFERROR(IF(DeprMeth="Straight-Line",SLN($D$160,SalvageValue,DepreciationAllInfrastructure),SYD($D$160,SalvageValue,DepreciationAllInfrastructure,Q63)),0) -> 0 | R163: =IFERROR(IF(DeprMeth="Straight-Line",SLN($D$160,SalvageValue,DepreciationAllInfrastructure),SYD($D$160,SalvageValue,DepreciationAllInfrastructure,R63)),0) -> 0 | S163: =IFERROR(IF(DeprMeth="Straight-Line",SLN($D$160,SalvageValue,DepreciationAllInfrastructure),SYD($D$160,SalvageValue,DepreciationAllInfrastructure,S63)),0) -> 0 | T163: =IFERROR(IF(DeprMeth="Straight-Line",SLN($D$160,SalvageValue,DepreciationAllInfrastructure),SYD($D$160,SalvageValue,DepreciationAllInfrastructure,T63)),0) -> 0 | U163: =IFERROR(IF(DeprMeth="Straight-Line",SLN($D$160,SalvageValue,DepreciationAllInfrastructure),SYD($D$160,SalvageValue,DepreciationAllInfrastructure,U63)),0) -> 0 | V163: =IFERROR(IF(DeprMeth="Straight-Line",SLN($D$160,SalvageValue,DepreciationAllInfrastructure),SYD($D$160,SalvageValue,DepreciationAllInfrastructure,V63)),0) -> 0 | W163: =IFERROR(IF(DeprMeth="Straight-Line",SLN($D$160,SalvageValue,DepreciationAllInfrastructure),SYD($D$160,SalvageValue,DepreciationAllInfrastructure,W63)),0) -> 0 | X163: =IFERROR(IF(DeprMeth="Straight-Line",SLN($D$160,SalvageValue,DepreciationAllInfrastructure),SYD($D$160,SalvageValue,DepreciationAllInfrastructure,X63)),0) -> 0 | Y163: =IFERROR(IF(DeprMeth="Straight-Line",SLN($D$160,SalvageValue,DepreciationAllInfrastructure),SYD($D$160,SalvageValue,DepreciationAllInfrastructure,Y63)),0) -> 0 | Z163: =IFERROR(IF(DeprMeth="Straight-Line",SLN($D$160,SalvageValue,DepreciationAllInfrastructure),SYD($D$160,SalvageValue,DepreciationAllInfrastructure,Z63)),0) -> 0
B164: Depreciation - Composting Equipment | E164: =IFERROR(IF(DeprMeth="Straight-Line",SLN($D$161,SalvageValue,DepreciationComposting),SYD($D$161,SalvageValue,DepreciationComposting,E63)),0) -> 0 | F164: 0 | G164: 0 | H164: 0 | I164: 0 | J164: 0 | K164: 0 | L164: 0 | M164: 0 | N164: 0 | O164: 0 | P164: 0 | Q164: 0 | R164: 0 | S164: 0 | T164: 0 | U164: 0 | V164: 0 | W164: 0 | X164: 0 | Y164: 0 | Z164: 0
B165: Depreciation Initial Investment | E165: =E163+E164 -> 0 | F165: =F163+F164 -> 0 | G165: 0 | H165: 0 | I165: 0 | J165: 0 | K165: 0 | L165: 0 | M165: 0 | N165: 0 | O165: 0 | P165: 0 | Q165: 0 | R165: 0 | S165: 0 | T165: 0 | U165: 0 | V165: 0 | W165: 0 | X165: 0 | Y165: 0 | Z165: 0
B166: Depreciation New Capex - Composting Equipment Replacement 1 | E166: =IF($D$16="N/A",0,IF(AND(E62>=$D$16,E62<$D$17,E63<=FacilityLifespan),IFERROR(IF(DeprMeth="Straight-Line",SLN($D$51,SalvageValue,DepreciationComposting),SYD($D$51,SalvageValue,DepreciationComposting,E63)),0),0)) -> 0 | F166: 0 | G166: 0 | H166: 0 | I166: 0 | J166: 0 | K166: 0 | L166: 0 | M166: 0 | N166: 0 | O166: 0 | P166: 0 | Q166: 0 | R166: 0 | S166: 0 | T166: 0 | U166: 0 | V166: 0 | W166: 0 | X166: 0 | Y166: 0 | Z166: 0
B167: Depreciation New Capex - Composting Equipment Replacement 2 | E167: =IF($D$16="N/A",0,IF(AND(E63>=$D$16,E63<$D$17,E63<=FacilityLifespan),IFERROR(IF(DeprMeth="Straight-Line",SLN($D$53,SalvageValue,DepreciationComposting),SYD($D$53,SalvageValue,DepreciationComposting,E63)),0),0)) -> 0 | F167: 0 | G167: 0 | H167: 0 | I167: 0 | J167: 0 | K167: 0 | L167: 0 | M167: 0 | N167: 0 | O167: 0 | P167: 0 | Q167: 0 | R167: 0 | S167: 0 | T167: 0 | U167: 0 | V167: 0 | W167: 0 | X167: 0 | Y167: 0 | Z167: 0
B168: Depreciation New Capex - Composting Equipment Replacement 3 | E168: =IF($D$16="N/A",0,IF(AND(E63>=$D$16,E63<$D$17,E63<=FacilityLifespan),IFERROR(IF(DeprMeth="Straight-Line",SLN($D$55,SalvageValue,DepreciationComposting),SYD($D$55,SalvageValue,DepreciationComposting,E63)),0),0)) -> 0 | F168: 0 | G168: 0 | H168: 0 | I168: 0 | J168: 0 | K168: 0 | L168: 0 | M168: 0 | N168: 0 | O168: 0 | P168: 0 | Q168: 0 | R168: 0 | S168: 0 | T168: 0 | U168: 0 | V168: 0 | W168: 0 | X168: 0 | Y168: 0 | Z168: 0
B169: Total Depreciation | E169: =SUM(E165:E168) -> 0 | F169: =SUM(F165:F168) -> 0 | G169: 0 | H169: 0 | I169: 0 | J169: 0 | K169: 0 | L169: 0 | M169: 0 | N169: 0 | O169: 0 | P169: 0 | Q169: 0 | R169: 0 | S169: 0 | T169: 0 | U169: 0 | V169: 0 | W169: 0 | X169: 0 | Y169: 0 | Z169: 0
B171: Composting Equipment Sale at End of Project Life
B172: Initial Equipment | D172: =IF(SUM(E164:Z164)=D34,0,D34-SUM(E164:Z164)) -> 0
B173: Equipment Replacement 1 | D173: =IF(SUM(E166:Z166)=D51,0,D51-SUM(E166:Z166)) -> 0
B174: Equipment Replacement 2 | D174: =IF(SUM(E167:Z167)=D53,0,D53-SUM(E167:Z167)) -> 0
B175: Equipment Replacement 3 | D175: =IF(SUM(E168:Z168)=D55,0,D55-SUM(E168:Z168)) -> 0
B177: Financing
B178: Short-term Debt
B179: BOY Balance | D179: =IF(D62<OperationsStartYear,0,IF(D62=OperationsStartYear,$D$46,C183)) -> 0 | E179: 0 | F179: 0 | G179: 0 | H179: 0 | I179: 0 | J179: 0 | K179: 0 | L179: 0 | M179: 0 | N179: 0 | O179: 0 | P179: 0 | Q179: 0 | R179: 0 | S179: 0 | T179: 0 | U179: 0 | V179: 0 | W179: 0 | X179: 0 | Y179: 0 | Z179: 0
B180: Interest Payment | D180: =IF(ISERROR(-IPMT(InterestRateShortTermDebt,D63,TenorShortTermDebt,$D$46)),0,(-IPMT(InterestRateShortTermDebt,D63,TenorShortTermDebt,$D$46))) -> 0 | E180: 0 | F180: 0 | G180: 0 | H180: 0 | I180: 0 | J180: 0 | K180: 0 | L180: 0 | M180: 0 | N180: 0 | O180: 0 | P180: 0 | Q180: 0 | R180: 0 | S180: 0 | T180: 0 | U180: 0 | V180: 0 | W180: 0 | X180: 0 | Y180: 0 | Z180: 0
B181: Principal Payment | D181: =IF(ISERROR(-PPMT(InterestRateShortTermDebt,D63,TenorShortTermDebt,$D$46)),0,(-PPMT(InterestRateShortTermDebt,D63,TenorShortTermDebt,$D$46))) -> 0 | E181: 0 | F181: 0 | G181: 0 | H181: 0 | I181: 0 | J181: 0 | K181: 0 | L181: 0 | M181: 0 | N181: 0 | O181: 0 | P181: 0 | Q181: 0 | R181: 0 | S181: 0 | T181: 0 | U181: 0 | V181: 0 | W181: 0 | X181: 0 | Y181: 0 | Z181: 0
B182: Total Debt Service | D182: =D180+D181 -> 0 | E182: =E180+E181 -> 0 | F182: 0 | G182: 0 | H182: 0 | I182: 0 | J182: 0 | K182: 0 | L182: 0 | M182: 0 | N182: 0 | O182: 0 | P182: 0 | Q182: 0 | R182: 0 | S182: 0 | T182: 0 | U182: 0 | V182: 0 | W182: 0 | X182: 0 | Y182: =Y180+Y181 -> 0 | Z182: =Z180+Z181 -> 0
B183: EOY Balance | D183: =D179-D181 -> 0 | E183: =E179-E181 -> 0 | F183: =F179-F181 -> 0 | G183: 0 | H183: 0 | I183: 0 | J183: 0 | K183: 0 | L183: 0 | M183: 0 | N183: =N179-N181 -> 0 | O183: 0 | P183: 0 | Q183: 0 | R183: 0 | S183: 0 | T183: 0 | U183: 0 | V183: 0 | W183: 0 | X183: 0 | Y183: =Y179-Y181 -> 0 | Z183: =Z179-Z181 -> 0
B185: Long-term Debt
B186: BOY Balance | D186: =IF(D62<OperationsStartYear,0,IF(D62=OperationsStartYear,$D$47,C190)) -> 0 | E186: 0 | F186: 0 | G186: 0 | H186: 0 | I186: 0 | J186: 0 | K186: 0 | L186: 0 | M186: 0 | N186: 0 | O186: 0 | P186: 0 | Q186: 0 | R186: 0 | S186: 0 | T186: 0 | U186: 0 | V186: 0 | W186: 0 | X186: 0 | Y186: 0 | Z186: 0
B187: Interest Payment | D187: =IF(ISERROR(-IPMT(InterestRateLongTermDebt,D63,TenorLongTermDebt,$D$47)),0,(-IPMT(InterestRateLongTermDebt,D63,TenorLongTermDebt,$D$47))) -> 0 | E187: 0 | F187: 0 | G187: 0 | H187: 0 | I187: 0 | J187: 0 | K187: 0 | L187: 0 | M187: 0 | N187: 0 | O187: 0 | P187: 0 | Q187: 0 | R187: 0 | S187: 0 | T187: 0 | U187: 0 | V187: 0 | W187: 0 | X187: 0 | Y187: 0 | Z187: 0
B188: Principal Payment | D188: =IF(ISERROR(-PPMT(InterestRateLongTermDebt,D63,TenorLongTermDebt,$D$47)),0,(-PPMT(InterestRateLongTermDebt,D63,TenorLongTermDebt,$D$47))) -> 0 | E188: 0 | F188: 0 | G188: 0 | H188: 0 | I188: 0 | J188: 0 | K188: 0 | L188: 0 | M188: 0 | N188: 0 | O188: 0 | P188: 0 | Q188: 0 | R188: 0 | S188: 0 | T188: 0 | U188: 0 | V188: 0 | W188: 0 | X188: 0 | Y188: 0 | Z188: 0
B189: Total Debt Service | D189: =D187+D188 -> 0 | E189: =E187+E188 -> 0 | F189: =F187+F188 -> 0 | G189: 0 | H189: 0 | I189: 0 | J189: 0 | K189: 0 | L189: 0 | M189: 0 | N189: 0 | O189: 0 | P189: 0 | Q189: 0 | R189: 0 | S189: 0 | T189: 0 | U189: 0 | V189: 0 | W189: 0 | X189: 0 | Y189: =Y187+Y188 -> 0 | Z189: =Z187+Z188 -> 0
B190: EOY Balance | D190: =D186-D188 -> 0 | E190: =E186-E188 -> 0 | F190: 0 | G190: 0 | H190: 0 | I190: 0 | J190: 0 | K190: 0 | L190: 0 | M190: 0 | N190: 0 | O190: 0 | P190: 0 | Q190: 0 | R190: 0 | S190: 0 | T190: 0 | U190: 0 | V190: 0 | W190: 0 | X190: 0 | Y190: =Y186-Y188 -> 0 | Z190: =Z186-Z188 -> 0
B192: DO NOT DELETE | D192: =IF($D$16="N/A",0,IF(D62=$D$16,1,IF(D62<$D$16,0,IF(AND(D62>$D$16,D63<=FacilityLifespan),C192+1,0)))) -> 0 | E192: 0 | F192: 0 | G192: 0 | H192: 0 | I192: 0 | J192: 0 | K192: 1 | L192: 2 | M192: 3 | N192: 4 | O192: 5 | P192: 6 | Q192: 7 | R192: 8 | S192: 9 | T192: 10 | U192: 11 | V192: 12 | W192: 13 | X192: 0 | Y192: 0 | Z192: 0
B193: Debt Tenor | D193: =IF(D16="N/A","N/A",IF(OperationsStartYear+FacilityLifespan-D16<TenorShortTermDebt,OperationsStartYear+FacilityLifespan-D16,TenorShortTermDebt)) -> 0
B194: Replacement Equipment 1 - Composting
B195: BOY Balance | D195: =IF(D192=1,$D$52,C199) -> 0 | E195: 0 | F195: 0 | G195: 0 | H195: 0 | I195: 0 | J195: 0 | K195: =IF(K192=1,$D$52,J199) -> 0 | L195: 0 | M195: 0 | N195: 0 | O195: 0 | P195: 0 | Q195: 0 | R195: 0 | S195: 0 | T195: 0 | U195: 0 | V195: 0 | W195: 0 | X195: 0 | Y195: 0 | Z195: 0
B196: Interest Payment | D196: =IF(ISERROR(-IPMT(InterestRateShortTermDebt,D192,$D$193,$D$52)),0,(-IPMT(InterestRateShortTermDebt,D192,$D$193,$D$52))) -> 0 | E196: 0 | F196: 0 | G196: 0 | H196: 0 | I196: 0 | J196: 0 | K196: 0 | L196: 0 | M196: 0 | N196: 0 | O196: 0 | P196: 0 | Q196: 0 | R196: 0 | S196: 0 | T196: 0 | U196: 0 | V196: 0 | W196: 0 | X196: 0 | Y196: 0 | Z196: 0
B197: Principal Payment | D197: =IF(ISERROR(-PPMT(InterestRateShortTermDebt,D192,$D$193,$D$52)),0,(-PPMT(InterestRateShortTermDebt,D192,$D$193,$D$52))) -> 0 | E197: 0 | F197: 0 | G197: 0 | H197: 0 | I197: 0 | J197: 0 | K197: 0 | L197: 0 | M197: 0 | N197: 0 | O197: 0 | P197: 0 | Q197: 0 | R197: 0 | S197: 0 | T197: 0 | U197: 0 | V197: 0 | W197: 0 | X197: 0 | Y197: 0 | Z197: 0
B198: Total Debt Service | D198: =D196+D197 -> 0 | E198: =E196+E197 -> 0 | F198: 0 | G198: 0 | H198: 0 | I198: 0 | J198: 0 | K198: 0 | L198: 0 | M198: 0 | N198: 0 | O198: 0 | P198: 0 | Q198: 0 | R198: 0 | S198: 0 | T198: 0 | U198: 0 | V198: 0 | W198: 0 | X198: 0 | Y198: =Y196+Y197 -> 0 | Z198: =Z196+Z197 -> 0
B199: EOY Balance | D199: =D195-D197 -> 0 | E199: =E195-E197 -> 0 | F199: 0 | G199: 0 | H199: 0 | I199: 0 | J199: 0 | K199: 0 | L199: 0 | M199: 0 | N199: 0 | O199: 0 | P199: 0 | Q199: 0 | R199: 0 | S199: 0 | T199: 0 | U199: 0 | V199: 0 | W199: 0 | X199: 0 | Y199: =Y195-Y197 -> 0 | Z199: =Z195-Z197 -> 0
B201: DO NOT DELETE | D201: =IF($D$17="N/A",0,IF(D62=$D$17,1,IF(D62<$D$17,0,IF(AND(D62>$D$17,D63<=FacilityLifespan),C201+1,0)))) -> 0 | E201: 0 | F201: 0 | G201: 0 | H201: 0 | I201: 0 | J201: 0 | K201: 0 | L201: 0 | M201: 0 | N201: 0 | O201: 0 | P201: 0 | Q201: 0 | R201: 1 | S201: 2 | T201: 3 | U201: 4 | V201: 5 | W201: 6 | X201: 0 | Y201: 0 | Z201: 0
B202: Debt Tenor | D202: =IF(D17="N/A","N/A",IF(OperationsStartYear+FacilityLifespan-D17<TenorShortTermDebt,OperationsStartYear+FacilityLifespan-D17,TenorShortTermDebt)) -> 0
B203: Replacement Equipment 2 - Composting
B204: BOY Balance | D204: =IF(D201=1,$D$54,C208) -> 0 | E204: 0 | F204: 0 | G204: 0 | H204: 0 | I204: 0 | J204: 0 | K204: 0 | L204: 0 | M204: 0 | N204: 0 | O204: 0 | P204: 0 | Q204: =IF(Q201=1,$D$54,P208) -> 0 | R204: 0 | S204: 0 | T204: 0 | U204: 0 | V204: 0 | W204: 0 | X204: 0 | Y204: 0 | Z204: 0
B205: Interest Payment | D205: =IF(ISERROR(-IPMT(InterestRateShortTermDebt,D201,$D$202,$D$54)),0,(-IPMT(InterestRateShortTermDebt,D201,$D$202,$D$54))) -> 0 | E205: 0 | F205: 0 | G205: 0 | H205: 0 | I205: 0 | J205: 0 | K205: 0 | L205: 0 | M205: 0 | N205: 0 | O205: 0 | P205: 0 | Q205: 0 | R205: 0 | S205: 0 | T205: 0 | U205: 0 | V205: 0 | W205: 0 | X205: 0 | Y205: 0 | Z205: 0
B206: Principal Payment | D206: =IF(ISERROR(-PPMT(InterestRateShortTermDebt,D201,$D$202,$D$54)),0,(-PPMT(InterestRateShortTermDebt,D201,$D$202,$D$54))) -> 0 | E206: 0 | F206: 0 | G206: 0 | H206: 0 | I206: 0 | J206: 0 | K206: 0 | L206: 0 | M206: 0 | N206: 0 | O206: 0 | P206: 0 | Q206: 0 | R206: 0 | S206: 0 | T206: 0 | U206: 0 | V206: 0 | W206: 0 | X206: 0 | Y206: 0 | Z206: 0
B207: Total Debt Service | D207: =D205+D206 -> 0 | E207: =E205+E206 -> 0 | F207: 0 | G207: 0 | H207: 0 | I207: 0 | J207: 0 | K207: 0 | L207: 0 | M207: 0 | N207: 0 | O207: 0 | P207: 0 | Q207: 0 | R207: 0 | S207: 0 | T207: 0 | U207: 0 | V207: 0 | W207: 0 | X207: 0 | Y207: =Y205+Y206 -> 0 | Z207: =Z205+Z206 -> 0
B208: EOY Balance | D208: =D204-D206 -> 0 | E208: =E204-E206 -> 0 | F208: 0 | G208: 0 | H208: 0 | I208: 0 | J208: 0 | K208: 0 | L208: 0 | M208: 0 | N208: 0 | O208: 0 | P208: 0 | Q208: 0 | R208: 0 | S208: 0 | T208: 0 | U208: 0 | V208: 0 | W208: 0 | X208: 0 | Y208: =Y204-Y206 -> 0 | Z208: =Z204-Z206 -> 0
B210: DO NOT DELETE | D210: =IF($D$18="N/A",0,IF(D62=$D$18,1,IF(D62<$D$18,0,IF(AND(D62>$D$18,D63<=FacilityLifespan),C210+1,0)))) -> 0 | E210: 0 | F210: 0 | G210: 0 | H210: 0 | I210: 0 | J210: 0 | K210: 0 | L210: 0 | M210: 0 | N210: 0 | O210: 0 | P210: 0 | Q210: 0 | R210: 0 | S210: 0 | T210: 0 | U210: 0 | V210: 0 | W210: 0 | X210: 0 | Y210: 0 | Z210: 0
B211: Debt Tenor | D211: =IF(D18="N/A","N/A",IF(OperationsStartYear+FacilityLifespan-D18<TenorShortTermDebt,OperationsStartYear+FacilityLifespan-D18,TenorShortTermDebt)) -> N/A
B212: Replacement Equipment 3 - Composting
B213: BOY Balance | D213: =IF(D210=1,$D$56,C217) -> 0 | E213: 0 | F213: 0 | G213: 0 | H213: 0 | I213: 0 | J213: 0 | K213: 0 | L213: 0 | M213: 0 | N213: 0 | O213: 0 | P213: 0 | Q213: 0 | R213: 0 | S213: 0 | T213: 0 | U213: 0 | V213: 0 | W213: =IF(W210=1,$D$56,V217) -> 0 | X213: =IF(X210=1,$D$56,W217) -> 0 | Y213: 0 | Z213: 0
B214: Interest Payment | D214: =IF(ISERROR(-IPMT(InterestRateShortTermDebt,D210,$D$211,$D$56)),0,(-IPMT(InterestRateShortTermDebt,D210,$D$211,$D$56))) -> 0 | E214: 0 | F214: 0 | G214: 0 | H214: 0 | I214: 0 | J214: 0 | K214: 0 | L214: 0 | M214: 0 | N214: 0 | O214: 0 | P214: 0 | Q214: 0 | R214: 0 | S214: 0 | T214: 0 | U214: 0 | V214: 0 | W214: 0 | X214: 0 | Y214: 0 | Z214: 0
B215: Principal Payment | D215: =IF(ISERROR(-PPMT(InterestRateShortTermDebt,D210,$D$211,$D$56)),0,(-PPMT(InterestRateShortTermDebt,D210,$D$211,$D$56))) -> 0 | E215: 0 | F215: 0 | G215: 0 | H215: 0 | I215: 0 | J215: 0 | K215: 0 | L215: 0 | M215: 0 | N215: 0 | O215: 0 | P215: 0 | Q215: 0 | R215: 0 | S215: 0 | T215: 0 | U215: 0 | V215: 0 | W215: 0 | X215: 0 | Y215: 0 | Z215: 0
B216: Total Debt Service | D216: =D214+D215 -> 0 | E216: =E214+E215 -> 0 | F216: 0 | G216: 0 | H216: 0 | I216: 0 | J216: 0 | K216: 0 | L216: 0 | M216: 0 | N216: 0 | O216: 0 | P216: 0 | Q216: 0 | R216: 0 | S216: 0 | T216: 0 | U216: 0 | V216: 0 | W216: 0 | X216: 0 | Y216: =Y214+Y215 -> 0 | Z216: =Z214+Z215 -> 0
B217: EOY Balance | D217: =D213-D215 -> 0 | E217: =E213-E215 -> 0 | F217: 0 | G217: 0 | H217: 0 | I217: 0 | J217: 0 | K217: 0 | L217: 0 | M217: 0 | N217: 0 | O217: 0 | P217: 0 | Q217: 0 | R217: 0 | S217: 0 | T217: 0 | U217: 0 | V217: 0 | W217: 0 | X217: 0 | Y217: =Y213-Y215 -> 0 | Z217: =Z213-Z215 -> 0
B219: Summary
B220: Interest Payment | D220: =D180+D187+D196+D205+D214 -> 0 | E220: =E180+E187+E196+E205+E214 -> 0 | F220: =F180+F187+F196+F205+F214 -> 0 | G220: 0 | H220: 0 | I220: 0 | J220: 0 | K220: 0 | L220: 0 | M220: 0 | N220: 0 | O220: 0 | P220: 0 | Q220: 0 | R220: 0 | S220: 0 | T220: 0 | U220: 0 | V220: 0 | W220: 0 | X220: 0 | Y220: 0 | Z220: 0
B221: Principal Payment | D221: =D181+D188+D197+D206+D215 -> 0 | E221: =E181+E188+E197+E206+E215 -> 0 | F221: 0 | G221: 0 | H221: 0 | I221: 0 | J221: 0 | K221: 0 | L221: 0 | M221: 0 | N221: 0 | O221: 0 | P221: 0 | Q221: 0 | R221: 0 | S221: 0 | T221: 0 | U221: 0 | V221: 0 | W221: 0 | X221: 0 | Y221: 0 | Z221: 0
B222: Total Debt Service | D222: =D182+D189+D198+D207+D216 -> 0 | E222: =E182+E189+E198+E207+E216 -> 0 | F222: 0 | G222: 0 | H222: 0 | I222: 0 | J222: 0 | K222: 0 | L222: 0 | M222: 0 | N222: 0 | O222: 0 | P222: 0 | Q222: 0 | R222: 0 | S222: 0 | T222: 0 | U222: 0 | V222: 0 | W222: 0 | X222: 0 | Y222: 0 | Z222: 0
B224: DO NOT DELETE | G224: 1 | H224: 2 | I224: 3
B225: Compost Produced in YR 1 (tonnes/year) | D225: =IF(D74=0,"",D74) -> 
B226: Total Revenues | D226: =IF(D121=0,"",D121) ->  | E226: =IF(E121=0,"",E121) -> 
B227: Total Expenses | D227: =IF(D140=0,"",D140+D222) -> 
... 2 more rows

Sheet 11-Compost With FA
B2: Composting With Forced Aeration
B4: Guidance: | C4: This sheet shows the hypothetical project’s estimated annual Income Statement and Balance Sheet, which are used to determine the Internal Rate of Return (IRR). The IRR is the rate that the modeled project’s cash flows break even with initial investment. IRR is determined by setting the net present value of all cash flows (both positive and negative) from the investment equal to zero. Note this model estimates Equity IRR. To estimate Project IRR please set total debt on the “7-Economic Inputs” tab equal to zero. The sheet is organized by first listing important assumptions based on user inputs from tab “5-Faculty Inputs,” “6-Waste Inputs,” “7-Economic Inputs,” and “8-Default Values.” Below this are estimated project costs and revenues, debt schedules, interest, depreciation, and other important information.
B7: Key Outputs
B8: Compost Sale Price | D8: =CompostMarketPrice -> 0 | E8: $/tonne
B9: Gate Fee - Yard Waste | D9: =GateFeeYardWaste -> 0 | E9: $/tonne
B10: Gate Fee - Food Waste | D10: =GateFeeFoodWaste -> 0 | E10: $/tonne
B11: Gate Fee - Manure/Sludge Waste | D11: =GateFeeManure -> 0 | E11: $/tonne
B12: Gate Fee - Paper/Cardboard | D12: =GateFeePaper -> 0 | E12: $/tonne
B14: Composting Facility Assumptions | E14: Units
B15: Equipment Lifespan | D15: =DepreciationComposting -> 7 | E15: years
B16: Replacement 1 | D16: =IF(D15+OperationsStartYear<(OperationsStartYear+FacilityLifespan),D15+OperationsStartYear,"N/A") -> 7 | E16: year
B17: Replacement 2 | D17: =IF(D16="N/A","N/A",IF(D15+D16<(OperationsStartYear+FacilityLifespan),D15+D16,"N/A")) -> 14 | E17: year
B18: Replacement 3 | D18: =IF(D17="N/A","N/A",IF(D15+D17<(OperationsStartYear+FacilityLifespan),D15+D17,"N/A")) -> N/A | E18: year
B20: Incoming Yard Waste in YR 1 | D20: =YardWasteTonnes -> 0 | E20: tonnes/year
B21: Incoming Food Waste in YR 1 | D21: =FoodWasteTonnes -> 0 | E21: tonnes/year
B22: Incoming Manure/Sludge Waste in YR 1 | D22: =ManureTonnes+SewageTonnes -> 0 | E22: tonnes/year
B23: Incoming Mixed Paper and Cardboard in YR 1 | D23: =MixedPaperTonnes+CardboardTonnes -> 0 | E23: tonnes/year
B24: Purchased Bulking Agent in YR 1 | D24: =BulkingAgentTonnesForCompost -> 0 | E24: tonnes/year
B25: Total Annual Waste Throughput in YR 1 | D25: =SUM(D20:D24) -> 0 | E25: tonnes/year
B26: Daily Waste Throughput in YR 1 | D26: =D25/'8-Default Values'!D16 -> 0 | E26: tonnes/day
B27: Facility Design Capacity | D27: =D25*(1+WasteGrowthRate)^'5-Facility Inputs'!D27 -> 0 | E27: tonnes/year
B28: Design Capacity Daily Throughput | D28: =D27/'8-Default Values'!D16 -> 0 | E28: tonnes/day
B29: Land Requirement | D29: ='8-Default Values'!D17*D27 -> 0 | E29: ha
B30: Process Water Demand in YR 1 | D30: =IF(D27=0,0,'6-Waste Inputs'!$E$34) -> 0 | E30: m3/year
B32: Capital Cost Assumptions | E32: Units
B33: Infrastructure and Site Development Cost in Investment Year | D33: ='7-Economic Inputs'!E33 -> 0 | E33: $
B34: Equipment Cost in Investment Year | D34: ='7-Economic Inputs'!E34 -> 0 | E34: $
B35: VAT | D35: =D34*'5-Facility Inputs'!E31*VAT -> 0 | E35: $
B36: Land Purchase in Investment Year | D36: =IF('7-Economic Inputs'!E27="Purchase",LandPurchasePrice*D29,0) -> 0 | E36: $
B37: Ancillary Costs | D37: ='5-Facility Inputs'!$E$32 -> 0 | E37: $
B38: Capital Cost Contingency | D38: ='8-Default Values'!D26*(D34+D33) -> 0 | E38: $
B39: Capital Investment | D39: =SUM(D33:D38) -> 0 | E39: $
B40: Grant Funding | D40: =IF(D25=0,0,GrantFunding) -> 0 | E40: $
B41: TOTAL NET CAPEX IN INVESTMENT YEAR | D41: =IF(D39-D40>0, D39-D40, 0) -> 0 | E41: $
B43: Financing Assumptions | E43: Units
B44: Total Debt in Investment Year | D44: =PercentDebt*D41 -> 0 | E44: $
B45: Total Equity in Investment Year | D45: =D41*PercentEquity -> 0 | E45: $
B46: Short-term Debt in Investment Year | D46: =D34*PercentDebt -> 0 | E46: $
B47: Long-term Debt in Investment Year | D47: =D44-D46 -> 0 | E47: $
B49: Finance New Equipment | D49: ='7-Economic Inputs'!K48 -> CHOOSE ONE
B50: Inflated Composting Equipment Costs
B51: Replacement 1 | D51: =IF(D16="N/A",0,(D34*(((1+InflationRateGeneral)^(D16-InvestmentYear))))) -> 0 | E51: $
B52: Financed Amount | D52: =IF(D49="Yes",D51*PercentDebt,0) -> 0 | E52: $
B53: Replacement 2 | D53: =IF(D17="N/A",0,(D34*(((1+InflationRateGeneral)^(D17-InvestmentYear))))) -> 0 | E53: $
B54: Financed Amount | D54: =IF(D49="Yes",D53*PercentDebt,0) -> 0 | E54: $
B55: Replacement 3 | D55: =IF(D18="N/A",0,(D34*(((1+InflationRateGeneral)^(D18-InvestmentYear))))) -> 0 | E55: $
B56: Financed Amount | D56: =IF(D49="Yes",D55*PercentDebt,0) -> 0 | E56: $
B58: Equity IRR | D58: =IFERROR(IRR(D155:Z155),"Not Viable") -> Not Viable
B59: A typical target IRR for an infrastructure project may range between 9% and 15%. If the IRR for the modeled organic waste project falls outside this range, carrying out one or more of the following troubleshooting steps may return a more acceptable IRR: • Reduce project expenses such as electricity costs, labor costs, water treatment costs, and land or equipment purchases. • Increase project revenue by increasing gate fees, accepting more waste, or raising the price(s) of sellable end product(s). • Change project cost of debt and check the interest rate on debt obligations is reasonable. • Debt/Equity Ratio: Ensure the debt to equity ratio is reasonable. Is there a way to use more equity to finance a project?
B61: Calendar Year | D61: =InvestmentYear -> 0 | E61: =D61+1 -> 1 | F61: =E61+1 -> 2 | G61: 3 | H61: 4 | I61: 5 | J61: 6 | K61: 7 | L61: 8 | M61: 9 | N61: 10 | O61: 11 | P61: 12 | Q61: 13 | R61: 14 | S61: 15 | T61: 16 | U61: 17 | V61: 18 | W61: 19 | X61: 20 | Y61: =X61+1 -> 21 | Z61: =Y61+1 -> 22
B62: Operating Year | D62: =IF(D61<OperationsStartYear,0,IF(D61=OperationsStartYear,1,IF(D61>OperationsStartYear,C62+1,IF(D61>=D61+$D$15,0)))) -> 1 | E62: 2 | F62: 3 | G62: 4 | H62: 5 | I62: 6 | J62: 7 | K62: 8 | L62: 9 | M62: 10 | N62: 11 | O62: 12 | P62: 13 | Q62: 14 | R62: 15 | S62: 16 | T62: 17 | U62: 18 | V62: 19 | W62: 20 | X62: 21 | Y62: 22 | Z62: 23
B63: Waste Assumptions
B64: Available Yard Waste to Composting (tonnes/year) | D64: =IF(AND(D62>0,D62<=FacilityLifespan),$D$20*(1+WasteGrowthRate)^(D62-1),0) -> 0 | E64: =IF(AND(E$62>0,E$62<=FacilityLifespan),IF(E$68>$D$27, D64, $D$20*(1+WasteGrowthRate)^(E$62-1)),0) -> 0 | F64: 0 | G64: 0 | H64: 0 | I64: 0 | J64: 0 | K64: 0 | L64: 0 | M64: 0 | N64: 0 | O64: 0 | P64: 0 | Q64: 0 | R64: 0 | S64: 0 | T64: 0 | U64: 0 | V64: 0 | W64: 0 | X64: 0 | Y64: 0 | Z64: 0
B65: Available Food Waste to Composting (tonnes/year) | D65: =IF(AND(D62>0,D62<=FacilityLifespan),$D$21*(1+WasteGrowthRate)^(D62-1),0) -> 0 | E65: =IF(AND(E$62>0,E$62<=FacilityLifespan),IF(E$68>$D$27, D65, $D$21*(1+WasteGrowthRate)^(E$62-1)),0) -> 0 | F65: 0 | G65: 0 | H65: 0 | I65: 0 | J65: 0 | K65: 0 | L65: 0 | M65: 0 | N65: 0 | O65: 0 | P65: 0 | Q65: 0 | R65: 0 | S65: 0 | T65: 0 | U65: 0 | V65: 0 | W65: 0 | X65: 0 | Y65: 0 | Z65: 0
B66: Available Manure/Sludge Waste to Composting (tonnes/year) | D66: =IF(AND(D62>0,D62<=FacilityLifespan),$D$22*(1+WasteGrowthRate)^(D62-1),0) -> 0 | E66: =IF(AND(E$62>0,E$62<=FacilityLifespan),IF(E$68>$D$27, D66, $D$22*(1+WasteGrowthRate)^(E$62-1)),0) -> 0 | F66: 0 | G66: 0 | H66: 0 | I66: 0 | J66: 0 | K66: 0 | L66: 0 | M66: 0 | N66: 0 | O66: 0 | P66: 0 | Q66: 0 | R66: 0 | S66: 0 | T66: 0 | U66: 0 | V66: 0 | W66: 0 | X66: 0 | Y66: 0 | Z66: 0
B67: Available Mixed Paper & Cardboard | D67: =IF(AND(D62>0,D62<=FacilityLifespan),$D$23*(1+WasteGrowthRate)^(D62-1),0) -> 0 | E67: =IF(AND(E$62>0,E$62<=FacilityLifespan),IF(E$68>$D$27, D67, $D$23*(1+WasteGrowthRate)^(E$62-1)),0) -> 0 | F67: 0 | G67: 0 | H67: 0 | I67: 0 | J67: 0 | K67: 0 | L67: 0 | M67: 0 | N67: 0 | O67: 0 | P67: 0 | Q67: 0 | R67: 0 | S67: 0 | T67: 0 | U67: 0 | V67: 0 | W67: 0 | X67: 0 | Y67: 0 | Z67: 0
B68: HIDDEN - TOTAL AVAILABLE WASTE TO COMPOSTING (for facility max check) | D68: =IF(AND(D62>0,D62<=FacilityLifespan),$D$25*(1+WasteGrowthRate)^(D62-1),0) -> 0 | E68: 0 | F68: 0 | G68: 0 | H68: 0 | I68: 0 | J68: 0 | K68: 0 | L68: 0 | M68: 0 | N68: 0 | O68: 0 | P68: 0 | Q68: 0 | R68: 0 | S68: 0 | T68: 0 | U68: 0 | V68: 0 | W68: 0 | X68: 0 | Y68: 0 | Z68: 0
B69: Total Waste Available to Composting (tonnes/year) | D69: =IF(D68<=$D$27, SUM(D64:D67), C69) -> 0 | E69: =IF(E68<=$D$27, SUM(E64:E67), D69) -> 0 | F69: =IF(F68<=$D$27, SUM(F64:F67), E69) -> 0 | G69: 0 | H69: 0 | I69: 0 | J69: 0 | K69: 0 | L69: 0 | M69: 0 | N69: 0 | O69: 0 | P69: 0 | Q69: 0 | R69: 0 | S69: 0 | T69: 0 | U69: 0 | V69: 0 | W69: 0 | X69: 0 | Y69: 0 | Z69: 0
B70: Purchased Bulking Agent to Composting (tonnes/year) | D70: =IF(AND(D62>0,D62<=FacilityLifespan),$D$24*(1+WasteGrowthRate)^(D62-1),0) -> 0 | E70: 0 | F70: 0 | G70: 0 | H70: 0 | I70: 0 | J70: 0 | K70: 0 | L70: 0 | M70: 0 | N70: 0 | O70: 0 | P70: 0 | Q70: 0 | R70: 0 | S70: 0 | T70: 0 | U70: 0 | V70: 0 | W70: 0 | X70: 0 | Y70: 0 | Z70: 0
B71: Total Waste to Composting (tonnes/year) | D71: =D69+D70 -> 0 | E71: =E69+E70 -> 0 | F71: =F69+F70 -> 0 | G71: 0 | H71: 0 | I71: 0 | J71: 0 | K71: 0 | L71: 0 | M71: 0 | N71: 0 | O71: 0 | P71: 0 | Q71: 0 | R71: 0 | S71: 0 | T71: 0 | U71: 0 | V71: 0 | W71: 0 | X71: 0 | Y71: 0 | Z71: 0
B72: Primary Screening Residues (tonnes/year) | D72: =D71*'8-Default Values'!$D$20 -> 0 | E72: =E71*'8-Default Values'!$D$20 -> 0 | F72: =F71*'8-Default Values'!$C$20 -> 0 | G72: =G71*'8-Default Values'!$C$20 -> 0 | H72: =H71*'8-Default Values'!$C$20 -> 0 | I72: =I71*'8-Default Values'!$C$20 -> 0 | J72: =J71*'8-Default Values'!$C$20 -> 0 | K72: =K71*'8-Default Values'!$C$20 -> 0 | L72: =L71*'8-Default Values'!$C$20 -> 0 | M72: =M71*'8-Default Values'!$C$20 -> 0 | N72: =N71*'8-Default Values'!$C$20 -> 0 | O72: =O71*'8-Default Values'!$C$20 -> 0 | P72: =P71*'8-Default Values'!$C$20 -> 0 | Q72: =Q71*'8-Default Values'!$C$20 -> 0 | R72: =R71*'8-Default Values'!$C$20 -> 0 | S72: =S71*'8-Default Values'!$C$20 -> 0 | T72: =T71*'8-Default Values'!$C$20 -> 0 | U72: =U71*'8-Default Values'!$C$20 -> 0 | V72: =V71*'8-Default Values'!$C$20 -> 0 | W72: =W71*'8-Default Values'!$C$20 -> 0 | X72: =X71*'8-Default Values'!$C$20 -> 0 | Y72: =Y71*'8-Default Values'!$C$20 -> 0 | Z72: =Z71*'8-Default Values'!$C$20 -> 0
B73: Compost Produced (tonnes/year) | D73: =(D71-D72)*'8-Default Values'!$D$21 -> 0 | E73: =(E71-E72)*'8-Default Values'!$D$21 -> 0 | F73: =(F71-F72)*'8-Default Values'!$D$21 -> 0 | G73: =(G71-G72)*'8-Default Values'!$D$21 -> 0 | H73: =(H71-H72)*'8-Default Values'!$D$21 -> 0 | I73: =(I71-I72)*'8-Default Values'!$D$21 -> 0 | J73: =(J71-J72)*'8-Default Values'!$D$21 -> 0 | K73: =(K71-K72)*'8-Default Values'!$D$21 -> 0 | L73: =(L71-L72)*'8-Default Values'!$D$21 -> 0 | M73: =(M71-M72)*'8-Default Values'!$D$21 -> 0 | N73: =(N71-N72)*'8-Default Values'!$D$21 -> 0 | O73: =(O71-O72)*'8-Default Values'!$D$21 -> 0 | P73: =(P71-P72)*'8-Default Values'!$D$21 -> 0 | Q73: =(Q71-Q72)*'8-Default Values'!$D$21 -> 0 | R73: =(R71-R72)*'8-Default Values'!$D$21 -> 0 | S73: =(S71-S72)*'8-Default Values'!$D$21 -> 0 | T73: =(T71-T72)*'8-Default Values'!$D$21 -> 0 | U73: =(U71-U72)*'8-Default Values'!$D$21 -> 0 | V73: =(V71-V72)*'8-Default Values'!$D$21 -> 0 | W73: =(W71-W72)*'8-Default Values'!$D$21 -> 0 | X73: =(X71-X72)*'8-Default Values'!$D$21 -> 0 | Y73: =(Y71-Y72)*'8-Default Values'!$D$21 -> 0 | Z73: =(Z71-Z72)*'8-Default Values'!$D$21 -> 0
B74: Final Screening Residues (tonnes/year) | D74: =(D71-D72)*'8-Default Values'!$D$22 -> 0 | E74: =(E71-E72)*'8-Default Values'!$D$22 -> 0 | F74: =(F71-F72)*'8-Default Values'!$D$22 -> 0 | G74: =(G71-G72)*'8-Default Values'!$D$22 -> 0 | H74: =(H71-H72)*'8-Default Values'!$D$22 -> 0 | I74: =(I71-I72)*'8-Default Values'!$D$22 -> 0 | J74: =(J71-J72)*'8-Default Values'!$D$22 -> 0 | K74: =(K71-K72)*'8-Default Values'!$D$22 -> 0 | L74: =(L71-L72)*'8-Default Values'!$D$22 -> 0 | M74: =(M71-M72)*'8-Default Values'!$D$22 -> 0 | N74: =(N71-N72)*'8-Default Values'!$D$22 -> 0 | O74: =(O71-O72)*'8-Default Values'!$D$22 -> 0 | P74: =(P71-P72)*'8-Default Values'!$D$22 -> 0 | Q74: =(Q71-Q72)*'8-Default Values'!$D$22 -> 0 | R74: =(R71-R72)*'8-Default Values'!$D$22 -> 0 | S74: =(S71-S72)*'8-Default Values'!$D$22 -> 0 | T74: =(T71-T72)*'8-Default Values'!$D$22 -> 0 | U74: =(U71-U72)*'8-Default Values'!$D$22 -> 0 | V74: =(V71-V72)*'8-Default Values'!$D$22 -> 0 | W74: =(W71-W72)*'8-Default Values'!$D$22 -> 0 | X74: =(X71-X72)*'8-Default Values'!$D$22 -> 0 | Y74: =(Y71-Y72)*'8-Default Values'!$D$22 -> 0 | Z74: =(Z71-Z72)*'8-Default Values'!$D$22 -> 0
B75: Total Waste to Landfill (tonnes/year) | D75: =D72+D74 -> 0 | E75: =E72+E74 -> 0 | F75: =F72+F74 -> 0 | G75: =G72+G74 -> 0 | H75: 0 | I75: 0 | J75: 0 | K75: 0 | L75: 0 | M75: 0 | N75: 0 | O75: 0 | P75: 0 | Q75: 0 | R75: 0 | S75: 0 | T75: 0 | U75: 0 | V75: 0 | W75: 0 | X75: 0 | Y75: 0 | Z75: 0
B76: Waste Diverted from Landfill (tonnes/year) | D76: =D68-D72 -> 0 | E76: =E68-E72 -> 0 | F76: 0 | G76: 0 | H76: 0 | I76: 0 | J76: 0 | K76: 0 | L76: 0 | M76: 0 | N76: 0 | O76: 0 | P76: 0 | Q76: 0 | R76: 0 | S76: 0 | T76: 0 | U76: 0 | V76: 0 | W76: 0 | X76: 0 | Y76: 0 | Z76: 0
B77: Operating Assumptions
B78: Compost Sold (tonnes/year) | D78: =IF(D62=1,D73*'5-Facility Inputs'!$E$28,IF(D62=2,D73*'5-Facility Inputs'!$E$29,IF(D62>=3,D73*'5-Facility Inputs'!$E$30,0))) -> 0 | E78: =IF(E62=1,E73*'5-Facility Inputs'!$E$28,IF(E62=2,E73*'5-Facility Inputs'!$E$29,IF(E62>=3,E73*'5-Facility Inputs'!$E$30,0))) -> 0 | F78: =IF(F62=1,F73*'5-Facility Inputs'!$E$28,IF(F62=2,F73*'5-Facility Inputs'!$E$29,IF(F62>=3,F73*'5-Facility Inputs'!$E$30,0))) -> 0 | G78: =IF(G62=1,G73*'5-Facility Inputs'!$E$28,IF(G62=2,G73*'5-Facility Inputs'!$E$29,IF(G62>=3,G73*'5-Facility Inputs'!$E$30,0))) -> 0 | H78: =IF(H62=1,H73*'5-Facility Inputs'!$E$28,IF(H62=2,H73*'5-Facility Inputs'!$E$29,IF(H62>=3,H73*'5-Facility Inputs'!$E$30,0))) -> 0 | I78: =IF(I62=1,I73*'5-Facility Inputs'!$E$28,IF(I62=2,I73*'5-Facility Inputs'!$E$29,IF(I62>=3,I73*'5-Facility Inputs'!$E$30,0))) -> 0 | J78: =IF(J62=1,J73*'5-Facility Inputs'!$E$28,IF(J62=2,J73*'5-Facility Inputs'!$E$29,IF(J62>=3,J73*'5-Facility Inputs'!$E$30,0))) -> 0 | K78: =IF(K62=1,K73*'5-Facility Inputs'!$E$28,IF(K62=2,K73*'5-Facility Inputs'!$E$29,IF(K62>=3,K73*'5-Facility Inputs'!$E$30,0))) -> 0 | L78: =IF(L62=1,L73*'5-Facility Inputs'!$E$28,IF(L62=2,L73*'5-Facility Inputs'!$E$29,IF(L62>=3,L73*'5-Facility Inputs'!$E$30,0))) -> 0 | M78: =IF(M62=1,M73*'5-Facility Inputs'!$E$28,IF(M62=2,M73*'5-Facility Inputs'!$E$29,IF(M62>=3,M73*'5-Facility Inputs'!$E$30,0))) -> 0 | N78: =IF(N62=1,N73*'5-Facility Inputs'!$E$28,IF(N62=2,N73*'5-Facility Inputs'!$E$29,IF(N62>=3,N73*'5-Facility Inputs'!$E$30,0))) -> 0 | O78: =IF(O62=1,O73*'5-Facility Inputs'!$E$28,IF(O62=2,O73*'5-Facility Inputs'!$E$29,IF(O62>=3,O73*'5-Facility Inputs'!$E$30,0))) -> 0 | P78: =IF(P62=1,P73*'5-Facility Inputs'!$E$28,IF(P62=2,P73*'5-Facility Inputs'!$E$29,IF(P62>=3,P73*'5-Facility Inputs'!$E$30,0))) -> 0 | Q78: =IF(Q62=1,Q73*'5-Facility Inputs'!$E$28,IF(Q62=2,Q73*'5-Facility Inputs'!$E$29,IF(Q62>=3,Q73*'5-Facility Inputs'!$E$30,0))) -> 0 | R78: =IF(R62=1,R73*'5-Facility Inputs'!$E$28,IF(R62=2,R73*'5-Facility Inputs'!$E$29,IF(R62>=3,R73*'5-Facility Inputs'!$E$30,0))) -> 0 | S78: =IF(S62=1,S73*'5-Facility Inputs'!$E$28,IF(S62=2,S73*'5-Facility Inputs'!$E$29,IF(S62>=3,S73*'5-Facility Inputs'!$E$30,0))) -> 0 | T78: =IF(T62=1,T73*'5-Facility Inputs'!$E$28,IF(T62=2,T73*'5-Facility Inputs'!$E$29,IF(T62>=3,T73*'5-Facility Inputs'!$E$30,0))) -> 0 | U78: =IF(U62=1,U73*'5-Facility Inputs'!$E$28,IF(U62=2,U73*'5-Facility Inputs'!$E$29,IF(U62>=3,U73*'5-Facility Inputs'!$E$30,0))) -> 0 | V78: =IF(V62=1,V73*'5-Facility Inputs'!$E$28,IF(V62=2,V73*'5-Facility Inputs'!$E$29,IF(V62>=3,V73*'5-Facility Inputs'!$E$30,0))) -> 0 | W78: =IF(W62=1,W73*'5-Facility Inputs'!$E$28,IF(W62=2,W73*'5-Facility Inputs'!$E$29,IF(W62>=3,W73*'5-Facility Inputs'!$E$30,0))) -> 0 | X78: =IF(X62=1,X73*'5-Facility Inputs'!$E$28,IF(X62=2,X73*'5-Facility Inputs'!$E$29,IF(X62>=3,X73*'5-Facility Inputs'!$E$30,0))) -> 0 | Y78: =IF(Y62=1,Y73*'5-Facility Inputs'!$E$28,IF(Y62=2,Y73*'5-Facility Inputs'!$E$29,IF(Y62>=3,Y73*'5-Facility Inputs'!$E$30,0))) -> 0 | Z78: =IF(Z62=1,Z73*'5-Facility Inputs'!$E$28,IF(Z62=2,Z73*'5-Facility Inputs'!$E$29,IF(Z62>=3,Z73*'5-Facility Inputs'!$E$30,0))) -> 0
B79: Compost Gifted (tonnes/year) | D79: =D73-D78 -> 0 | E79: =E73-E78 -> 0 | F79: 0 | G79: 0 | H79: 0 | I79: 0 | J79: 0 | K79: 0 | L79: 0 | M79: 0 | N79: 0 | O79: 0 | P79: 0 | Q79: 0 | R79: 0 | S79: 0 | T79: 0 | U79: 0 | V79: 0 | W79: 0 | X79: 0 | Y79: 0 | Z79: 0
B80: Electricity Consumption (kWh/year) | D80: =(D71*'8-Default Values'!$D$18) -> 0 | E80: =(E71*'8-Default Values'!$D$18) -> 0 | F80: =(F71*'8-Default Values'!$D$18) -> 0 | G80: =(G71*'8-Default Values'!$D$18) -> 0 | H80: =(H71*'8-Default Values'!$D$18) -> 0 | I80: =(I71*'8-Default Values'!$D$18) -> 0 | J80: =(J71*'8-Default Values'!$D$18) -> 0 | K80: =(K71*'8-Default Values'!$D$18) -> 0 | L80: =(L71*'8-Default Values'!$D$18) -> 0 | M80: =(M71*'8-Default Values'!$D$18) -> 0 | N80: =(N71*'8-Default Values'!$D$18) -> 0 | O80: =(O71*'8-Default Values'!$D$18) -> 0 | P80: =(P71*'8-Default Values'!$D$18) -> 0 | Q80: =(Q71*'8-Default Values'!$D$18) -> 0 | R80: =(R71*'8-Default Values'!$D$18) -> 0 | S80: =(S71*'8-Default Values'!$D$18) -> 0 | T80: =(T71*'8-Default Values'!$D$18) -> 0 | U80: =(U71*'8-Default Values'!$D$18) -> 0 | V80: =(V71*'8-Default Values'!$D$18) -> 0 | W80: =(W71*'8-Default Values'!$D$18) -> 0 | X80: =(X71*'8-Default Values'!$D$18) -> 0 | Y80: =(Y71*'8-Default Values'!$D$18) -> 0 | Z80: =(Z71*'8-Default Values'!$D$18) -> 0
B81: Diesel Consumption (liters/year) | D81: =(D71*'8-Default Values'!$D$19) -> 0 | E81: =(E71*'8-Default Values'!$D$19) -> 0 | F81: =(F71*'8-Default Values'!$D$19) -> 0 | G81: =(G71*'8-Default Values'!$D$19) -> 0 | H81: =(H71*'8-Default Values'!$D$19) -> 0 | I81: =(I71*'8-Default Values'!$D$19) -> 0 | J81: =(J71*'8-Default Values'!$D$19) -> 0 | K81: =(K71*'8-Default Values'!$D$19) -> 0 | L81: =(L71*'8-Default Values'!$D$19) -> 0 | M81: =(M71*'8-Default Values'!$D$19) -> 0 | N81: =(N71*'8-Default Values'!$D$19) -> 0 | O81: =(O71*'8-Default Values'!$D$19) -> 0 | P81: =(P71*'8-Default Values'!$D$19) -> 0 | Q81: =(Q71*'8-Default Values'!$D$19) -> 0 | R81: =(R71*'8-Default Values'!$D$19) -> 0 | S81: =(S71*'8-Default Values'!$D$19) -> 0 | T81: =(T71*'8-Default Values'!$D$19) -> 0 | U81: =(U71*'8-Default Values'!$D$19) -> 0 | V81: =(V71*'8-Default Values'!$D$19) -> 0 | W81: =(W71*'8-Default Values'!$D$19) -> 0 | X81: =(X71*'8-Default Values'!$D$19) -> 0 | Y81: =(Y71*'8-Default Values'!$D$19) -> 0 | Z81: =(Z71*'8-Default Values'!$D$19) -> 0
B82: Process Water Consumption (m3/year) | D82: =IF(AND(D62>0,D62<=FacilityLifespan),$D$30*(1+WasteGrowthRate)^(D62-1),0) -> 0 | E82: =IF(AND(E62>0,E62<=FacilityLifespan),$D$30*(1+WasteGrowthRate)^(E62-1),0) -> 0 | F82: 0 | G82: 0 | H82: 0 | I82: 0 | J82: 0 | K82: 0 | L82: 0 | M82: 0 | N82: 0 | O82: 0 | P82: 0 | Q82: 0 | R82: 0 | S82: 0 | T82: 0 | U82: 0 | V82: 0 | W82: 0 | X82: 0 | Y82: 0 | Z82: 0
B83: Total Number of Managers/Engineers | D83: =TotalNumberofEngineers -> 0 | E83: 0 | F83: 0 | G83: 0 | H83: 0 | I83: 0 | J83: 0 | K83: 0 | L83: 0 | M83: 0 | N83: 0 | O83: 0 | P83: 0 | Q83: 0 | R83: 0 | S83: 0 | T83: 0 | U83: 0 | V83: 0 | W83: 0 | X83: 0 | Y83: 0 | Z83: 0
B84: Total Number of Operators | D84: =TotalNumberofOperators -> 0 | E84: 0 | F84: 0 | G84: 0 | H84: 0 | I84: 0 | J84: 0 | K84: 0 | L84: 0 | M84: 0 | N84: 0 | O84: 0 | P84: 0 | Q84: 0 | R84: 0 | S84: 0 | T84: 0 | U84: 0 | V84: 0 | W84: 0 | X84: 0 | Y84: 0 | Z84: 0
B86: Economic Assumptions
B87: Compost Sale Price ($/tonne) | D87: =IF(AND(D62>0,D62<=FacilityLifespan),$D$8*(1+InflationRateCompostDigestateBulking)^(D61-$D$61),0) -> 0 | E87: 0 | F87: 0 | G87: 0 | H87: 0 | I87: 0 | J87: 0 | K87: 0 | L87: 0 | M87: 0 | N87: 0 | O87: 0 | P87: 0 | Q87: 0 | R87: 0 | S87: 0 | T87: 0 | U87: 0 | V87: 0 | W87: 0 | X87: 0 | Y87: 0 | Z87: 0
B88: Gate Fee - Yard Waste ($/tonne) | D88: =IF(AND(D62>0,D62<=FacilityLifespan),$D$9*(1+InflationRateDisposalGate)^(D61-$D$61),0) -> 0 | E88: 0 | F88: 0 | G88: 0 | H88: 0 | I88: 0 | J88: 0 | K88: 0 | L88: 0 | M88: 0 | N88: 0 | O88: 0 | P88: 0 | Q88: 0 | R88: 0 | S88: 0 | T88: 0 | U88: 0 | V88: 0 | W88: 0 | X88: 0 | Y88: 0 | Z88: 0
B89: Gate Fee - Food Waste ($/tonne) | D89: =IF(AND(D62>0,D62<=FacilityLifespan),$D$10*(1+InflationRateDisposalGate)^(D61-$D$61),0) -> 0 | E89: 0 | F89: 0 | G89: 0 | H89: 0 | I89: 0 | J89: 0 | K89: 0 | L89: 0 | M89: 0 | N89: 0 | O89: 0 | P89: 0 | Q89: 0 | R89: 0 | S89: 0 | T89: 0 | U89: 0 | V89: 0 | W89: 0 | X89: 0 | Y89: 0 | Z89: 0
B90: Gate Fee - Manure/Sludge Waste ($/tonne) | D90: =IF(AND(D62>0,D62<=FacilityLifespan),$D$11*(1+InflationRateDisposalGate)^(D61-$D$61),0) -> 0 | E90: 0 | F90: 0 | G90: 0 | H90: 0 | I90: 0 | J90: 0 | K90: 0 | L90: 0 | M90: 0 | N90: 0 | O90: 0 | P90: 0 | Q90: 0 | R90: 0 | S90: 0 | T90: 0 | U90: 0 | V90: 0 | W90: 0 | X90: 0 | Y90: 0 | Z90: 0
B91: Gate Fee - Paper/Cardboard | D91: =IF(AND(D62>0,D62<=FacilityLifespan),$D$12*(1+InflationRateDisposalGate)^(D61-$D$61),0) -> 0 | E91: 0 | F91: 0 | G91: 0 | H91: 0 | I91: 0 | J91: 0 | K91: 0 | L91: 0 | M91: 0 | N91: 0 | O91: 0 | P91: 0 | Q91: 0 | R91: 0 | S91: 0 | T91: 0 | U91: 0 | V91: 0 | W91: 0 | X91: 0 | Y91: 0 | Z91: 0
B92: Avoided Landfill Disposal Fee ($/tonne) | D92: =IF(AND(D62>0,D62<=FacilityLifespan),AvoidedLandfillDisposalFee*(1+InflationRateDisposalGate)^(D61-$D$61),0) -> 0 | E92: 0 | F92: 0 | G92: 0 | H92: 0 | I92: 0 | J92: 0 | K92: 0 | L92: 0 | M92: 0 | N92: 0 | O92: 0 | P92: 0 | Q92: 0 | R92: 0 | S92: 0 | T92: 0 | U92: 0 | V92: 0 | W92: 0 | X92: 0 | Y92: 0 | Z92: 0
B93: Avoided Transportation Fee ($/tonne/km) | D93: =IF(AND(D62>0,D62<=FacilityLifespan),TransportationFee*(1+InflationRateDisposalGate)^(D61-$D$61),0) -> 0 | E93: 0 | F93: 0 | G93: 0 | H93: 0 | I93: 0 | J93: 0 | K93: 0 | L93: 0 | M93: 0 | N93: 0 | O93: 0 | P93: 0 | Q93: 0 | R93: 0 | S93: 0 | T93: 0 | U93: 0 | V93: 0 | W93: 0 | X93: 0 | Y93: 0 | Z93: 0
B95: Electricity Purchase Price ($/kWh) | D95: =IF(AND(D62>0,D62<=FacilityLifespan),(ElectricityPrice*((1+InflationRateElectricityFuel)^(D61-$D$61))),0) -> 0 | E95: 0 | F95: 0 | G95: 0 | H95: 0 | I95: 0 | J95: 0 | K95: 0 | L95: 0 | M95: 0 | N95: 0 | O95: 0 | P95: 0 | Q95: 0 | R95: 0 | S95: 0 | T95: 0 | U95: 0 | V95: 0 | W95: 0 | X95: 0 | Y95: 0 | Z95: 0
B96: Diesel Purchase Price ($/liter) | D96: =IF(AND(D62>0,D62<=FacilityLifespan),(DieselPrice*((1+InflationRateElectricityFuel)^(D61-$D$61))),0) -> 0 | E96: 0 | F96: 0 | G96: 0 | H96: 0 | I96: 0 | J96: 0 | K96: 0 | L96: 0 | M96: 0 | N96: 0 | O96: 0 | P96: 0 | Q96: 0 | R96: 0 | S96: 0 | T96: 0 | U96: 0 | V96: 0 | W96: 0 | X96: 0 | Y96: 0 | Z96: 0
B97: Residuals Transportation ($/tonne/km) | D97: =IF(AND(D62>0,D62<=FacilityLifespan),TransportationFee*(1+InflationRateGeneral)^(D61-$D$61),0) -> 0 | E97: 0 | F97: 0 | G97: 0 | H97: 0 | I97: 0 | J97: 0 | K97: 0 | L97: 0 | M97: 0 | N97: 0 | O97: 0 | P97: 0 | Q97: 0 | R97: 0 | S97: 0 | T97: 0 | U97: 0 | V97: 0 | W97: 0 | X97: 0 | Y97: 0 | Z97: 0
B98: Residuals Disposal ($/tonne) | D98: =IF(AND(D62>0,D62<=FacilityLifespan),ResidualDisposalFee*(1+InflationRateGeneral)^(D61-$D$61),0) -> 0 | E98: 0 | F98: 0 | G98: 0 | H98: 0 | I98: 0 | J98: 0 | K98: 0 | L98: 0 | M98: 0 | N98: 0 | O98: 0 | P98: 0 | Q98: 0 | R98: 0 | S98: 0 | T98: 0 | U98: 0 | V98: 0 | W98: 0 | X98: 0 | Y98: 0 | Z98: 0
B99: Lease Price ($/ha/year) | D99: =IF(AND(D62>0,D62<=FacilityLifespan),LandLeasePrice*(1+InflationRateGeneral)^(D61-$D$61),0) -> 0 | E99: 0 | F99: 0 | G99: 0 | H99: 0 | I99: 0 | J99: 0 | K99: 0 | L99: 0 | M99: 0 | N99: 0 | O99: 0 | P99: 0 | Q99: 0 | R99: 0 | S99: 0 | T99: 0 | U99: 0 | V99: 0 | W99: 0 | X99: 0 | Y99: 0 | Z99: 0
B100: Managers - Labor Cost ($/person/year) | D100: =IF(AND(D62>0,D62<=FacilityLifespan),LaborManager*(1+InflationRateGeneral)^(D61-$D$61),0) -> 0 | E100: 0 | F100: 0 | G100: 0 | H100: 0 | I100: 0 | J100: 0 | K100: 0 | L100: 0 | M100: 0 | N100: 0 | O100: 0 | P100: 0 | Q100: 0 | R100: 0 | S100: 0 | T100: 0 | U100: 0 | V100: 0 | W100: 0 | X100: 0 | Y100: 0 | Z100: 0
B101: Operators - Labor Cost ($/person/year) | D101: =IF(AND(D62>0,D62<=FacilityLifespan),LaborOperator*(1+InflationRateGeneral)^(D61-$D$61),0) -> 0 | E101: 0 | F101: 0 | G101: 0 | H101: 0 | I101: 0 | J101: 0 | K101: 0 | L101: 0 | M101: 0 | N101: 0 | O101: 0 | P101: 0 | Q101: 0 | R101: 0 | S101: 0 | T101: 0 | U101: 0 | V101: 0 | W101: 0 | X101: 0 | Y101: 0 | Z101: 0
B102: Process Water Fee ($/m3) | D102: =IF(AND(D62>0,D62<=FacilityLifespan),WaterPurchasePrice*(1+InflationRateGeneral)^(D61-$D$61),0) -> 0 | E102: 0 | F102: 0 | G102: 0 | H102: 0 | I102: 0 | J102: 0 | K102: 0 | L102: 0 | M102: 0 | N102: 0 | O102: 0 | P102: 0 | Q102: 0 | R102: 0 | S102: 0 | T102: 0 | U102: 0 | V102: 0 | W102: 0 | X102: 0 | Y102: 0 | Z102: 0
B103: Bulking Agent Cost ($/tonne) | D103: =IF(AND(D62>0,D62<=FacilityLifespan),BulkingAgentCost*(1+InflationRateCompostDigestateBulking)^(D61-$D$61),0) -> 0 | E103: 0 | F103: 0 | G103: 0 | H103: 0 | I103: 0 | J103: 0 | K103: 0 | L103: 0 | M103: 0 | N103: 0 | O103: 0 | P103: 0 | Q103: 0 | R103: 0 | S103: 0 | T103: 0 | U103: 0 | V103: 0 | W103: 0 | X103: 0 | Y103: 0 | Z103: 0
B104: Compost - Soil Product Land Application Cost ($/tonne) | D104: =IF(AND(D62>0,D62<=FacilityLifespan),CompostLandAppCost*(1+InflationRateGeneral)^(D61-$D$61),0) -> 0 | E104: 0 | F104: 0 | G104: 0 | H104: 0 | I104: 0 | J104: 0 | K104: 0 | L104: 0 | M104: 0 | N104: 0 | O104: 0 | P104: 0 | Q104: 0 | R104: 0 | S104: 0 | T104: 0 | U104: 0 | V104: 0 | W104: 0 | X104: 0 | Y104: 0 | Z104: 0
B105: Compost - Soil Product Transportation Cost ($/tonne) | D105: =IF(AND(D62>0,D62<=FacilityLifespan),CompostTransportCost*(1+InflationRateGeneral)^(D61-$D$61),0) -> 0 | E105: 0 | F105: 0 | G105: 0 | H105: 0 | I105: 0 | J105: 0 | K105: 0 | L105: 0 | M105: 0 | N105: 0 | O105: 0 | P105: 0 | Q105: 0 | R105: 0 | S105: 0 | T105: 0 | U105: 0 | V105: 0 | W105: 0 | X105: 0 | Y105: 0 | Z105: 0
B106: Annual Maintenance Cost ($/year) | D106: =IF(AND(D62>0,D62<=FacilityLifespan,D61>=MaintenanceBegins),$D$39*'8-Default Values'!$D$28*(1+InflationRateGeneral)^(D61-$D$61),0) -> 0 | E106: =IF(AND(E62>0,E62<=FacilityLifespan,E61>=MaintenanceBegins),$D$39*'8-Default Values'!$D$28*(1+InflationRateGeneral)^(E61-$D$61),0) -> 0 | F106: =IF(AND(F62>0,F62<=FacilityLifespan,F61>=MaintenanceBegins),$D$39*'8-Default Values'!$D$28*(1+InflationRateGeneral)^(F61-$D$61),0) -> 0 | G106: =IF(AND(G62>0,G62<=FacilityLifespan,G61>=MaintenanceBegins),$D$39*'8-Default Values'!$D$28*(1+InflationRateGeneral)^(G61-$D$61),0) -> 0 | H106: =IF(AND(H62>0,H62<=FacilityLifespan,H61>=MaintenanceBegins),$D$39*'8-Default Values'!$D$28*(1+InflationRateGeneral)^(H61-$D$61),0) -> 0 | I106: =IF(AND(I62>0,I62<=FacilityLifespan,I61>=MaintenanceBegins),$D$39*'8-Default Values'!$D$28*(1+InflationRateGeneral)^(I61-$D$61),0) -> 0 | J106: =IF(AND(J62>0,J62<=FacilityLifespan,J61>=MaintenanceBegins),$D$39*'8-Default Values'!$D$28*(1+InflationRateGeneral)^(J61-$D$61),0) -> 0 | K106: =IF(AND(K62>0,K62<=FacilityLifespan,K61>=MaintenanceBegins),$D$39*'8-Default Values'!$D$28*(1+InflationRateGeneral)^(K61-$D$61),0) -> 0 | L106: =IF(AND(L62>0,L62<=FacilityLifespan,L61>=MaintenanceBegins),$D$39*'8-Default Values'!$D$28*(1+InflationRateGeneral)^(L61-$D$61),0) -> 0 | M106: =IF(AND(M62>0,M62<=FacilityLifespan,M61>=MaintenanceBegins),$D$39*'8-Default Values'!$D$28*(1+InflationRateGeneral)^(M61-$D$61),0) -> 0 | N106: =IF(AND(N62>0,N62<=FacilityLifespan,N61>=MaintenanceBegins),$D$39*'8-Default Values'!$D$28*(1+InflationRateGeneral)^(N61-$D$61),0) -> 0 | O106: =IF(AND(O62>0,O62<=FacilityLifespan,O61>=MaintenanceBegins),$D$39*'8-Default Values'!$D$28*(1+InflationRateGeneral)^(O61-$D$61),0) -> 0 | P106: =IF(AND(P62>0,P62<=FacilityLifespan,P61>=MaintenanceBegins),$D$39*'8-Default Values'!$D$28*(1+InflationRateGeneral)^(P61-$D$61),0) -> 0 | Q106: =IF(AND(Q62>0,Q62<=FacilityLifespan,Q61>=MaintenanceBegins),$D$39*'8-Default Values'!$D$28*(1+InflationRateGeneral)^(Q61-$D$61),0) -> 0 | R106: =IF(AND(R62>0,R62<=FacilityLifespan,R61>=MaintenanceBegins),$D$39*'8-Default Values'!$D$28*(1+InflationRateGeneral)^(R61-$D$61),0) -> 0 | S106: =IF(AND(S62>0,S62<=FacilityLifespan,S61>=MaintenanceBegins),$D$39*'8-Default Values'!$D$28*(1+InflationRateGeneral)^(S61-$D$61),0) -> 0 | T106: =IF(AND(T62>0,T62<=FacilityLifespan,T61>=MaintenanceBegins),$D$39*'8-Default Values'!$D$28*(1+InflationRateGeneral)^(T61-$D$61),0) -> 0 | U106: =IF(AND(U62>0,U62<=FacilityLifespan,U61>=MaintenanceBegins),$D$39*'8-Default Values'!$D$28*(1+InflationRateGeneral)^(U61-$D$61),0) -> 0 | V106: =IF(AND(V62>0,V62<=FacilityLifespan,V61>=MaintenanceBegins),$D$39*'8-Default Values'!$D$28*(1+InflationRateGeneral)^(V61-$D$61),0) -> 0 | W106: =IF(AND(W62>0,W62<=FacilityLifespan,W61>=MaintenanceBegins),$D$39*'8-Default Values'!$D$28*(1+InflationRateGeneral)^(W61-$D$61),0) -> 0 | X106: =IF(AND(X62>0,X62<=FacilityLifespan,X61>=MaintenanceBegins),$D$39*'8-Default Values'!$D$28*(1+InflationRateGeneral)^(X61-$D$61),0) -> 0 | Y106: =IF(AND(Y62>0,Y62<=FacilityLifespan,Y61>=MaintenanceBegins),$D$39*'8-Default Values'!$D$28*(1+InflationRateGeneral)^(Y61-$D$61),0) -> 0 | Z106: =IF(AND(Z62>0,Z62<=FacilityLifespan,Z61>=MaintenanceBegins),$D$39*'8-Default Values'!$D$28*(1+InflationRateGeneral)^(Z61-$D$61),0) -> 0
B107: Annual Insurance Cost ($/year) | D107: =IF(AND(D62>0,D62<=FacilityLifespan,D61>=OperationsStartYear),($D$39-$D$35)*'8-Default Values'!$D$29*(1+InflationRateGeneral)^(D61-$D$61),0) -> 0 | E107: =IF(AND(E62>0,E62<=FacilityLifespan,E61>=OperationsStartYear),($D$39-$D$35)*'8-Default Values'!$D$29*(1+InflationRateGeneral)^(E61-$D$61),0) -> 0 | F107: =IF(AND(F62>0,F62<=FacilityLifespan,F61>=OperationsStartYear),($D$39-$D$35)*'8-Default Values'!$D$29*(1+InflationRateGeneral)^(F61-$D$61),0) -> 0 | G107: =IF(AND(G62>0,G62<=FacilityLifespan,G61>=OperationsStartYear),($D$39-$D$35)*'8-Default Values'!$D$29*(1+InflationRateGeneral)^(G61-$D$61),0) -> 0 | H107: =IF(AND(H62>0,H62<=FacilityLifespan,H61>=OperationsStartYear),($D$39-$D$35)*'8-Default Values'!$D$29*(1+InflationRateGeneral)^(H61-$D$61),0) -> 0 | I107: =IF(AND(I62>0,I62<=FacilityLifespan,I61>=OperationsStartYear),($D$39-$D$35)*'8-Default Values'!$D$29*(1+InflationRateGeneral)^(I61-$D$61),0) -> 0 | J107: =IF(AND(J62>0,J62<=FacilityLifespan,J61>=OperationsStartYear),($D$39-$D$35)*'8-Default Values'!$D$29*(1+InflationRateGeneral)^(J61-$D$61),0) -> 0 | K107: =IF(AND(K62>0,K62<=FacilityLifespan,K61>=OperationsStartYear),($D$39-$D$35)*'8-Default Values'!$D$29*(1+InflationRateGeneral)^(K61-$D$61),0) -> 0 | L107: =IF(AND(L62>0,L62<=FacilityLifespan,L61>=OperationsStartYear),($D$39-$D$35)*'8-Default Values'!$D$29*(1+InflationRateGeneral)^(L61-$D$61),0) -> 0 | M107: =IF(AND(M62>0,M62<=FacilityLifespan,M61>=OperationsStartYear),($D$39-$D$35)*'8-Default Values'!$D$29*(1+InflationRateGeneral)^(M61-$D$61),0) -> 0 | N107: =IF(AND(N62>0,N62<=FacilityLifespan,N61>=OperationsStartYear),($D$39-$D$35)*'8-Default Values'!$D$29*(1+InflationRateGeneral)^(N61-$D$61),0) -> 0 | O107: =IF(AND(O62>0,O62<=FacilityLifespan,O61>=OperationsStartYear),($D$39-$D$35)*'8-Default Values'!$D$29*(1+InflationRateGeneral)^(O61-$D$61),0) -> 0 | P107: =IF(AND(P62>0,P62<=FacilityLifespan,P61>=OperationsStartYear),($D$39-$D$35)*'8-Default Values'!$D$29*(1+InflationRateGeneral)^(P61-$D$61),0) -> 0 | Q107: =IF(AND(Q62>0,Q62<=FacilityLifespan,Q61>=OperationsStartYear),($D$39-$D$35)*'8-Default Values'!$D$29*(1+InflationRateGeneral)^(Q61-$D$61),0) -> 0 | R107: =IF(AND(R62>0,R62<=FacilityLifespan,R61>=OperationsStartYear),($D$39-$D$35)*'8-Default Values'!$D$29*(1+InflationRateGeneral)^(R61-$D$61),0) -> 0 | S107: =IF(AND(S62>0,S62<=FacilityLifespan,S61>=OperationsStartYear),($D$39-$D$35)*'8-Default Values'!$D$29*(1+InflationRateGeneral)^(S61-$D$61),0) -> 0 | T107: =IF(AND(T62>0,T62<=FacilityLifespan,T61>=OperationsStartYear),($D$39-$D$35)*'8-Default Values'!$D$29*(1+InflationRateGeneral)^(T61-$D$61),0) -> 0 | U107: =IF(AND(U62>0,U62<=FacilityLifespan,U61>=OperationsStartYear),($D$39-$D$35)*'8-Default Values'!$D$29*(1+InflationRateGeneral)^(U61-$D$61),0) -> 0 | V107: =IF(AND(V62>0,V62<=FacilityLifespan,V61>=OperationsStartYear),($D$39-$D$35)*'8-Default Values'!$D$29*(1+InflationRateGeneral)^(V61-$D$61),0) -> 0 | W107: =IF(AND(W62>0,W62<=FacilityLifespan,W61>=OperationsStartYear),($D$39-$D$35)*'8-Default Values'!$D$29*(1+InflationRateGeneral)^(W61-$D$61),0) -> 0 | X107: =IF(AND(X62>0,X62<=FacilityLifespan,X61>=OperationsStartYear),($D$39-$D$35)*'8-Default Values'!$D$29*(1+InflationRateGeneral)^(X61-$D$61),0) -> 0 | Y107: =IF(AND(Y62>0,Y62<=FacilityLifespan,Y61>=OperationsStartYear),($D$39-$D$35)*'8-Default Values'!$D$29*(1+InflationRateGeneral)^(Y61-$D$61),0) -> 0 | Z107: =IF(AND(Z62>0,Z62<=FacilityLifespan,Z61>=OperationsStartYear),($D$39-$D$35)*'8-Default Values'!$D$29*(1+InflationRateGeneral)^(Z61-$D$61),0) -> 0
B109: Consolidated Profit and Loss
B110: Compost Sales ($/year) | D110: =D87*D78 -> 0 | E110: 0 | F110: 0 | G110: 0 | H110: 0 | I110: 0 | J110: 0 | K110: 0 | L110: 0 | M110: 0 | N110: 0 | O110: 0 | P110: 0 | Q110: 0 | R110: 0 | S110: 0 | T110: 0 | U110: 0 | V110: 0 | W110: 0 | X110: 0 | Y110: 0 | Z110: 0
B111: Gate Fees - Yard Waste ($/year) | D111: =D88*D64 -> 0 | E111: =E88*E64 -> 0 | F111: 0 | G111: 0 | H111: 0 | I111: 0 | J111: 0 | K111: 0 | L111: 0 | M111: 0 | N111: 0 | O111: 0 | P111: 0 | Q111: 0 | R111: 0 | S111: 0 | T111: 0 | U111: 0 | V111: 0 | W111: 0 | X111: 0 | Y111: 0 | Z111: 0
B112: Gate Fees - Food Waste ($/year) | D112: =D89*D65 -> 0 | E112: 0 | F112: 0 | G112: 0 | H112: 0 | I112: 0 | J112: 0 | K112: 0 | L112: 0 | M112: 0 | N112: 0 | O112: 0 | P112: 0 | Q112: 0 | R112: 0 | S112: 0 | T112: 0 | U112: 0 | V112: 0 | W112: 0 | X112: 0 | Y112: 0 | Z112: 0
B113: Gate Fees - Manure/Sludge Waste ($/year) | D113: 0 | E113: 0 | F113: 0 | G113: 0 | H113: 0 | I113: 0 | J113: 0 | K113: 0 | L113: 0 | M113: 0 | N113: 0 | O113: 0 | P113: 0 | Q113: 0 | R113: 0 | S113: 0 | T113: 0 | U113: 0 | V113: 0 | W113: 0 | X113: 0 | Y113: 0 | Z113: 0
B114: Gate Fee - Paper/Cardboard ($/year) | D114: 0 | E114: 0 | F114: 0 | G114: 0 | H114: 0 | I114: 0 | J114: 0 | K114: 0 | L114: 0 | M114: 0 | N114: 0 | O114: 0 | P114: 0 | Q114: 0 | R114: 0 | S114: 0 | T114: 0 | U114: 0 | V114: 0 | W114: 0 | X114: 0 | Y114: 0 | Z114: 0
B116: Avoided Landfill Disposal Fees ($/year) | D116: =D92*D76 -> 0 | E116: 0 | F116: 0 | G116: 0 | H116: 0 | I116: 0 | J116: 0 | K116: 0 | L116: 0 | M116: 0 | N116: 0 | O116: 0 | P116: 0 | Q116: 0 | R116: 0 | S116: 0 | T116: 0 | U116: 0 | V116: 0 | W116: 0 | X116: 0 | Y116: 0 | Z116: 0
B117: Avoided Transportation Fees ($/year) | D117: =(DistanceGeneratorsToLandfill-DistanceGeneratorsToOrganicsFacility)*D93*D66 -> 0 | E117: 0 | F117: 0 | G117: 0 | H117: 0 | I117: 0 | J117: 0 | K117: 0 | L117: 0 | M117: 0 | N117: 0 | O117: 0 | P117: 0 | Q117: 0 | R117: 0 | S117: 0 | T117: 0 | U117: 0 | V117: 0 | W117: 0 | X117: 0 | Y117: 0 | Z117: 0
B118: Land Sale at End of Project Life ($/year) | D118: =IF(AND('7-Economic Inputs'!$E$27="Purchase",D61=OperationsStartYear+FacilityLifespan-1),$D$36*(1+InflationRateGeneral)^('10-Compost W.O. FA'!D62-'10-Compost W.O. FA'!$D$62),0) -> 0 | E118: =IF(AND('7-Economic Inputs'!$E$27="Purchase",E61=OperationsStartYear+FacilityLifespan-1),$D$36*(1+InflationRateGeneral)^('10-Compost W.O. FA'!E62-'10-Compost W.O. FA'!$D$62),0) -> 0 | F118: =IF(AND('7-Economic Inputs'!$E$27="Purchase",F61=OperationsStartYear+FacilityLifespan-1),$D$36*(1+InflationRateGeneral)^('10-Compost W.O. FA'!F62-'10-Compost W.O. FA'!$D$62),0) -> 0 | G118: =IF(AND('7-Economic Inputs'!$E$27="Purchase",G61=OperationsStartYear+FacilityLifespan-1),$D$36*(1+InflationRateGeneral)^('10-Compost W.O. FA'!G62-'10-Compost W.O. FA'!$D$62),0) -> 0 | H118: =IF(AND('7-Economic Inputs'!$E$27="Purchase",H61=OperationsStartYear+FacilityLifespan-1),$D$36*(1+InflationRateGeneral)^('10-Compost W.O. FA'!H62-'10-Compost W.O. FA'!$D$62),0) -> 0 | I118: =IF(AND('7-Economic Inputs'!$E$27="Purchase",I61=OperationsStartYear+FacilityLifespan-1),$D$36*(1+InflationRateGeneral)^('10-Compost W.O. FA'!I62-'10-Compost W.O. FA'!$D$62),0) -> 0 | J118: =IF(AND('7-Economic Inputs'!$E$27="Purchase",J61=OperationsStartYear+FacilityLifespan-1),$D$36*(1+InflationRateGeneral)^('10-Compost W.O. FA'!J62-'10-Compost W.O. FA'!$D$62),0) -> 0 | K118: =IF(AND('7-Economic Inputs'!$E$27="Purchase",K61=OperationsStartYear+FacilityLifespan-1),$D$36*(1+InflationRateGeneral)^('10-Compost W.O. FA'!K62-'10-Compost W.O. FA'!$D$62),0) -> 0 | L118: =IF(AND('7-Economic Inputs'!$E$27="Purchase",L61=OperationsStartYear+FacilityLifespan-1),$D$36*(1+InflationRateGeneral)^('10-Compost W.O. FA'!L62-'10-Compost W.O. FA'!$D$62),0) -> 0 | M118: =IF(AND('7-Economic Inputs'!$E$27="Purchase",M61=OperationsStartYear+FacilityLifespan-1),$D$36*(1+InflationRateGeneral)^('10-Compost W.O. FA'!M62-'10-Compost W.O. FA'!$D$62),0) -> 0 | N118: =IF(AND('7-Economic Inputs'!$E$27="Purchase",N61=OperationsStartYear+FacilityLifespan-1),$D$36*(1+InflationRateGeneral)^('10-Compost W.O. FA'!N62-'10-Compost W.O. FA'!$D$62),0) -> 0 | O118: =IF(AND('7-Economic Inputs'!$E$27="Purchase",O61=OperationsStartYear+FacilityLifespan-1),$D$36*(1+InflationRateGeneral)^('10-Compost W.O. FA'!O62-'10-Compost W.O. FA'!$D$62),0) -> 0 | P118: =IF(AND('7-Economic Inputs'!$E$27="Purchase",P61=OperationsStartYear+FacilityLifespan-1),$D$36*(1+InflationRateGeneral)^('10-Compost W.O. FA'!P62-'10-Compost W.O. FA'!$D$62),0) -> 0 | Q118: =IF(AND('7-Economic Inputs'!$E$27="Purchase",Q61=OperationsStartYear+FacilityLifespan-1),$D$36*(1+InflationRateGeneral)^('10-Compost W.O. FA'!Q62-'10-Compost W.O. FA'!$D$62),0) -> 0 | R118: =IF(AND('7-Economic Inputs'!$E$27="Purchase",R61=OperationsStartYear+FacilityLifespan-1),$D$36*(1+InflationRateGeneral)^('10-Compost W.O. FA'!R62-'10-Compost W.O. FA'!$D$62),0) -> 0 | S118: =IF(AND('7-Economic Inputs'!$E$27="Purchase",S61=OperationsStartYear+FacilityLifespan-1),$D$36*(1+InflationRateGeneral)^('10-Compost W.O. FA'!S62-'10-Compost W.O. FA'!$D$62),0) -> 0 | T118: =IF(AND('7-Economic Inputs'!$E$27="Purchase",T61=OperationsStartYear+FacilityLifespan-1),$D$36*(1+InflationRateGeneral)^('10-Compost W.O. FA'!T62-'10-Compost W.O. FA'!$D$62),0) -> 0 | U118: =IF(AND('7-Economic Inputs'!$E$27="Purchase",U61=OperationsStartYear+FacilityLifespan-1),$D$36*(1+InflationRateGeneral)^('10-Compost W.O. FA'!U62-'10-Compost W.O. FA'!$D$62),0) -> 0 | V118: =IF(AND('7-Economic Inputs'!$E$27="Purchase",V61=OperationsStartYear+FacilityLifespan-1),$D$36*(1+InflationRateGeneral)^('10-Compost W.O. FA'!V62-'10-Compost W.O. FA'!$D$62),0) -> 0 | W118: =IF(AND('7-Economic Inputs'!$E$27="Purchase",W61=OperationsStartYear+FacilityLifespan-1),$D$36*(1+InflationRateGeneral)^('10-Compost W.O. FA'!W62-'10-Compost W.O. FA'!$D$62),0) -> 0 | X118: =IF(AND('7-Economic Inputs'!$E$27="Purchase",X61=OperationsStartYear+FacilityLifespan-1),$D$36*(1+InflationRateGeneral)^('10-Compost W.O. FA'!X62-'10-Compost W.O. FA'!$D$62),0) -> 0 | Y118: =IF(AND('7-Economic Inputs'!$E$27="Purchase",Y61=OperationsStartYear+FacilityLifespan-1),$D$36*(1+InflationRateGeneral)^('10-Compost W.O. FA'!Y62-'10-Compost W.O. FA'!$D$62),0) -> 0 | Z118: =IF(AND('7-Economic Inputs'!$E$27="Purchase",Z61=OperationsStartYear+FacilityLifespan-1),$D$36*(1+InflationRateGeneral)^('10-Compost W.O. FA'!Z62-'10-Compost W.O. FA'!$D$62),0) -> 0
B119: Composting Equipment Sale at End of Project Life ($/year) | D119: =IF(D62=FacilityLifespan,SUM($D$171:$D$174),0) -> 0 | E119: 0 | F119: 0 | G119: 0 | H119: 0 | I119: 0 | J119: 0 | K119: 0 | L119: 0 | M119: 0 | N119: 0 | O119: 0 | P119: 0 | Q119: 0 | R119: 0 | S119: 0 | T119: 0 | U119: 0 | V119: 0 | W119: 0 | X119: 0 | Y119: 0 | Z119: 0
B120: Total Revenues ($/year) | D120: =SUM(D110:D119) -> 0 | E120: 0 | F120: 0 | G120: 0 | H120: 0 | I120: 0 | J120: 0 | K120: 0 | L120: 0 | M120: 0 | N120: 0 | O120: 0 | P120: 0 | Q120: 0 | R120: 0 | S120: 0 | T120: 0 | U120: 0 | V120: 0 | W120: 0 | X120: 0 | Y120: 0 | Z120: 0
B121: Electricity Costs ($/year) | D121: =D95*D80 -> 0 | E121: 0 | F121: 0 | G121: 0 | H121: 0 | I121: 0 | J121: 0 | K121: 0 | L121: 0 | M121: 0 | N121: 0 | O121: 0 | P121: 0 | Q121: 0 | R121: 0 | S121: 0 | T121: 0 | U121: 0 | V121: 0 | W121: 0 | X121: 0 | Y121: 0 | Z121: 0
B122: Diesel Costs ($/year) | D122: =D96*D81 -> 0 | E122: 0 | F122: 0 | G122: 0 | H122: 0 | I122: 0 | J122: 0 | K122: 0 | L122: 0 | M122: 0 | N122: 0 | O122: 0 | P122: 0 | Q122: 0 | R122: 0 | S122: 0 | T122: 0 | U122: 0 | V122: 0 | W122: 0 | X122: 0 | Y122: 0 | Z122: 0
B123: Residual Transportation Cost ($/year) | D123: =D97*D75*DistanceOrganicsFacilityToLandfill -> 0 | E123: 0 | F123: 0 | G123: 0 | H123: 0 | I123: 0 | J123: 0 | K123: 0 | L123: 0 | M123: 0 | N123: 0 | O123: 0 | P123: 0 | Q123: 0 | R123: 0 | S123: 0 | T123: 0 | U123: 0 | V123: 0 | W123: 0 | X123: 0 | Y123: 0 | Z123: 0
B124: Residual Disposal Cost ($/year) | D124: =D98*D75 -> 0 | E124: 0 | F124: 0 | G124: 0 | H124: 0 | I124: 0 | J124: 0 | K124: 0 | L124: 0 | M124: 0 | N124: 0 | O124: 0 | P124: 0 | Q124: 0 | R124: 0 | S124: 0 | T124: 0 | U124: 0 | V124: 0 | W124: 0 | X124: 0 | Y124: 0 | Z124: 0
B125: Lease Cost ($/year) | D125: =IF('7-Economic Inputs'!$E$27="Lease",(D99*$D$29),0) -> 0 | E125: =IF('7-Economic Inputs'!$E$27="Lease",(E99*$D$29),0) -> 0 | F125: =IF('7-Economic Inputs'!$E$27="Lease",(F99*$D$29),0) -> 0 | G125: =IF('7-Economic Inputs'!$E$27="Lease",(G99*$D$29),0) -> 0 | H125: =IF('7-Economic Inputs'!$E$27="Lease",(H99*$D$29),0) -> 0 | I125: =IF('7-Economic Inputs'!$E$27="Lease",(I99*$D$29),0) -> 0 | J125: =IF('7-Economic Inputs'!$E$27="Lease",(J99*$D$29),0) -> 0 | K125: =IF('7-Economic Inputs'!$E$27="Lease",(K99*$D$29),0) -> 0 | L125: =IF('7-Economic Inputs'!$E$27="Lease",(L99*$D$29),0) -> 0 | M125: =IF('7-Economic Inputs'!$E$27="Lease",(M99*$D$29),0) -> 0 | N125: =IF('7-Economic Inputs'!$E$27="Lease",(N99*$D$29),0) -> 0 | O125: =IF('7-Economic Inputs'!$E$27="Lease",(O99*$D$29),0) -> 0 | P125: =IF('7-Economic Inputs'!$E$27="Lease",(P99*$D$29),0) -> 0 | Q125: =IF('7-Economic Inputs'!$E$27="Lease",(Q99*$D$29),0) -> 0 | R125: =IF('7-Economic Inputs'!$E$27="Lease",(R99*$D$29),0) -> 0 | S125: =IF('7-Economic Inputs'!$E$27="Lease",(S99*$D$29),0) -> 0 | T125: =IF('7-Economic Inputs'!$E$27="Lease",(T99*$D$29),0) -> 0 | U125: =IF('7-Economic Inputs'!$E$27="Lease",(U99*$D$29),0) -> 0 | V125: =IF('7-Economic Inputs'!$E$27="Lease",(V99*$D$29),0) -> 0 | W125: =IF('7-Economic Inputs'!$E$27="Lease",(W99*$D$29),0) -> 0 | X125: =IF('7-Economic Inputs'!$E$27="Lease",(X99*$D$29),0) -> 0 | Y125: =IF('7-Economic Inputs'!$E$27="Lease",(Y99*$D$29),0) -> 0 | Z125: =IF('7-Economic Inputs'!$E$27="Lease",(Z99*$D$29),0) -> 0
B126: Labor Costs ($/year) | D126: =(D100*D83)+(D84*D101) -> 0 | E126: 0 | F126: 0 | G126: 0 | H126: 0 | I126: 0 | J126: 0 | K126: 0 | L126: 0 | M126: 0 | N126: 0 | O126: 0 | P126: 0 | Q126: 0 | R126: 0 | S126: 0 | T126: 0 | U126: 0 | V126: 0 | W126: 0 | X126: 0 | Y126: 0 | Z126: 0
B127: Process Water Cost ($/year) | D127: =D102*D82 -> 0 | E127: 0 | F127: 0 | G127: 0 | H127: 0 | I127: 0 | J127: 0 | K127: 0 | L127: 0 | M127: 0 | N127: 0 | O127: 0 | P127: 0 | Q127: 0 | R127: 0 | S127: 0 | T127: 0 | U127: 0 | V127: 0 | W127: 0 | X127: 0 | Y127: 0 | Z127: 0
B128: Bulking Agent Cost ($/year) | D128: =D103*D70 -> 0 | E128: 0 | F128: 0 | G128: 0 | H128: 0 | I128: 0 | J128: 0 | K128: 0 | L128: 0 | M128: 0 | N128: 0 | O128: 0 | P128: 0 | Q128: 0 | R128: 0 | S128: 0 | T128: 0 | U128: 0 | V128: 0 | W128: 0 | X128: 0 | Y128: 0 | Z128: 0
B129: Compost - Soil Product Land Application Cost ($/tonne) | D129: =D104*D73 -> 0 | E129: 0 | F129: 0 | G129: 0 | H129: 0 | I129: 0 | J129: 0 | K129: 0 | L129: 0 | M129: 0 | N129: 0 | O129: 0 | P129: 0 | Q129: 0 | R129: 0 | S129: 0 | T129: 0 | U129: 0 | V129: 0 | W129: 0 | X129: 0 | Y129: 0 | Z129: 0
B130: Compost - Soil Product Transportation Cost ($/tonne) | D130: =D105*D73 -> 0 | E130: 0 | F130: 0 | G130: 0 | H130: 0 | I130: 0 | J130: 0 | K130: 0 | L130: 0 | M130: 0 | N130: 0 | O130: 0 | P130: 0 | Q130: 0 | R130: 0 | S130: 0 | T130: 0 | U130: 0 | V130: 0 | W130: 0 | X130: 0 | Y130: 0 | Z130: 0
B131: Maintenance Costs ($/year) | D131: =D106 -> 0 | E131: 0 | F131: 0 | G131: 0 | H131: 0 | I131: 0 | J131: 0 | K131: 0 | L131: 0 | M131: 0 | N131: 0 | O131: 0 | P131: 0 | Q131: 0 | R131: 0 | S131: 0 | T131: 0 | U131: 0 | V131: 0 | W131: 0 | X131: 0 | Y131: 0 | Z131: 0
B132: Insurance Costs ($/year) | D132: =D107 -> 0 | E132: 0 | F132: 0 | G132: 0 | H132: 0 | I132: 0 | J132: 0 | K132: 0 | L132: 0 | M132: 0 | N132: 0 | O132: 0 | P132: 0 | Q132: 0 | R132: 0 | S132: 0 | T132: 0 | U132: 0 | V132: 0 | W132: 0 | X132: 0 | Y132: 0 | Z132: 0
B133: Outside Services and Supplies ($/year) | D133: ='8-Default Values'!$D$30*SUM(D121:D132) -> 0 | E133: ='8-Default Values'!$D$30*SUM(E121:E132) -> 0 | F133: ='8-Default Values'!$D$30*SUM(F121:F132) -> 0 | G133: ='8-Default Values'!$D$30*SUM(G121:G132) -> 0 | H133: ='8-Default Values'!$D$30*SUM(H121:H132) -> 0 | I133: ='8-Default Values'!$D$30*SUM(I121:I132) -> 0 | J133: ='8-Default Values'!$D$30*SUM(J121:J132) -> 0 | K133: ='8-Default Values'!$D$30*SUM(K121:K132) -> 0 | L133: ='8-Default Values'!$D$30*SUM(L121:L132) -> 0 | M133: ='8-Default Values'!$D$30*SUM(M121:M132) -> 0 | N133: ='8-Default Values'!$D$30*SUM(N121:N132) -> 0 | O133: ='8-Default Values'!$D$30*SUM(O121:O132) -> 0 | P133: ='8-Default Values'!$D$30*SUM(P121:P132) -> 0 | Q133: ='8-Default Values'!$D$30*SUM(Q121:Q132) -> 0 | R133: ='8-Default Values'!$D$30*SUM(R121:R132) -> 0 | S133: ='8-Default Values'!$D$30*SUM(S121:S132) -> 0 | T133: ='8-Default Values'!$D$30*SUM(T121:T132) -> 0 | U133: ='8-Default Values'!$D$30*SUM(U121:U132) -> 0 | V133: ='8-Default Values'!$D$30*SUM(V121:V132) -> 0 | W133: ='8-Default Values'!$D$30*SUM(W121:W132) -> 0 | X133: ='8-Default Values'!$D$30*SUM(X121:X132) -> 0 | Y133: ='8-Default Values'!$D$30*SUM(Y121:Y132) -> 0 | Z133: ='8-Default Values'!$D$30*SUM(Z121:Z132) -> 0
B134: Operating Cost Contingency ($/year) | D134: =SUM(D121:D133)*'8-Default Values'!$D$31 -> 0 | E134: =SUM(E121:E133)*'8-Default Values'!$D$31 -> 0 | F134: =SUM(F121:F133)*'8-Default Values'!$D$31 -> 0 | G134: =SUM(G121:G133)*'8-Default Values'!$D$31 -> 0 | H134: =SUM(H121:H133)*'8-Default Values'!$D$31 -> 0 | I134: =SUM(I121:I133)*'8-Default Values'!$D$31 -> 0 | J134: =SUM(J121:J133)*'8-Default Values'!$D$31 -> 0 | K134: =SUM(K121:K133)*'8-Default Values'!$D$31 -> 0 | L134: =SUM(L121:L133)*'8-Default Values'!$D$31 -> 0 | M134: =SUM(M121:M133)*'8-Default Values'!$D$31 -> 0 | N134: =SUM(N121:N133)*'8-Default Values'!$D$31 -> 0 | O134: =SUM(O121:O133)*'8-Default Values'!$D$31 -> 0 | P134: =SUM(P121:P133)*'8-Default Values'!$D$31 -> 0 | Q134: =SUM(Q121:Q133)*'8-Default Values'!$D$31 -> 0 | R134: =SUM(R121:R133)*'8-Default Values'!$D$31 -> 0 | S134: =SUM(S121:S133)*'8-Default Values'!$D$31 -> 0 | T134: =SUM(T121:T133)*'8-Default Values'!$D$31 -> 0 | U134: =SUM(U121:U133)*'8-Default Values'!$D$31 -> 0 | V134: =SUM(V121:V133)*'8-Default Values'!$D$31 -> 0 | W134: =SUM(W121:W133)*'8-Default Values'!$D$31 -> 0 | X134: =SUM(X121:X133)*'8-Default Values'!$D$31 -> 0 | Y134: =SUM(Y121:Y133)*'8-Default Values'!$D$31 -> 0 | Z134: =SUM(Z121:Z133)*'8-Default Values'!$D$31 -> 0
B135: Cost of Goods Sold | D135: =SUM(D121:D133)+D149 -> 0 | E135: =SUM(E121:E133)+E149 -> 0 | F135: 0 | G135: 0 | H135: 0 | I135: 0 | J135: 0 | K135: 0 | L135: 0 | M135: 0 | N135: 0 | O135: 0 | P135: 0 | Q135: 0 | R135: 0 | S135: 0 | T135: 0 | U135: 0 | V135: 0 | W135: 0 | X135: 0 | Y135: 0 | Z135: 0
B136: Total Expenses ($/year) | D136: =SUM(D121:D134) -> 0 | E136: =SUM(E121:E134) -> 0 | F136: 0 | G136: 0 | H136: 0 | I136: 0 | J136: 0 | K136: 0 | L136: 0 | M136: 0 | N136: 0 | O136: 0 | P136: 0 | Q136: 0 | R136: 0 | S136: 0 | T136: 0 | U136: 0 | V136: 0 | W136: 0 | X136: 0 | Y136: 0 | Z136: 0
B137: Total O&M/Tonne of Waste Processed | D137: =IF(D136=0,0,IF(D62>0,D136/D71,0)) -> 0 | E137: 0 | F137: 0 | G137: 0 | H137: 0 | I137: 0 | J137: 0 | K137: 0 | L137: 0 | M137: 0 | N137: 0 | O137: 0 | P137: 0 | Q137: 0 | R137: 0 | S137: 0 | T137: 0 | U137: 0 | V137: 0 | W137: 0 | X137: 0 | Y137: 0 | Z137: 0
B138: Total Adjusted COGS ($/year) | D138: =D135 -> 0 | E138: =E135 -> 0 | F138: 0 | G138: 0 | H138: 0 | I138: 0 | J138: 0 | K138: 0 | L138: 0 | M138: 0 | N138: 0 | O138: 0 | P138: 0 | Q138: 0 | R138: 0 | S138: 0 | T138: 0 | U138: 0 | V138: 0 | W138: 0 | X138: 0 | Y138: 0 | Z138: 0
B139: Total Adjusted Expenses ($/year) | D139: =D136 -> 0 | E139: =E136 -> 0 | F139: 0 | G139: 0 | H139: 0 | I139: 0 | J139: 0 | K139: 0 | L139: 0 | M139: 0 | N139: 0 | O139: 0 | P139: 0 | Q139: 0 | R139: 0 | S139: 0 | T139: 0 | U139: 0 | V139: 0 | W139: 0 | X139: 0 | Y139: 0 | Z139: 0
B140: Gross Profit | D140: =SUM(D110:D115)-D138 -> 0 | E140: 0 | F140: 0 | G140: 0 | H140: 0 | I140: 0 | J140: 0 | K140: 0 | L140: 0 | M140: 0 | N140: 0 | O140: 0 | P140: 0 | Q140: 0 | R140: 0 | S140: 0 | T140: 0 | U140: 0 | V140: 0 | W140: 0 | X140: 0 | Y140: 0 | Z140: 0
B141: EBITDA | D141: =D120-D139 -> 0 | E141: =E120-E139 -> 0 | F141: 0 | G141: 0 | H141: 0 | I141: 0 | J141: 0 | K141: 0 | L141: 0 | M141: 0 | N141: 0 | O141: 0 | P141: 0 | Q141: 0 | R141: 0 | S141: 0 | T141: 0 | U141: 0 | V141: 0 | W141: 0 | X141: 0 | Y141: 0 | Z141: 0
B142: Depreciation | D142: =D168 -> 0 | E142: =E168 -> 0 | F142: =F168 -> 0 | G142: 0 | H142: 0 | I142: 0 | J142: 0 | K142: 0 | L142: 0 | M142: 0 | N142: 0 | O142: 0 | P142: 0 | Q142: 0 | R142: 0 | S142: 0 | T142: 0 | U142: 0 | V142: =V168 -> 0 | W142: 0 | X142: 0 | Y142: =Y168 -> 0 | Z142: =Z168 -> 0
B143: EBIT | D143: =D141-D142 -> 0 | E143: =E141-E142 -> 0 | F143: =F141-F142 -> 0 | G143: 0 | H143: 0 | I143: 0 | J143: 0 | K143: 0 | L143: 0 | M143: 0 | N143: 0 | O143: 0 | P143: 0 | Q143: 0 | R143: 0 | S143: 0 | T143: 0 | U143: 0 | V143: 0 | W143: 0 | X143: 0 | Y143: =Y141-Y142 -> 0 | Z143: =Z141-Z142 -> 0
B145: Operating Cash Flow
B146: EBIT | D146: =D143 -> 0 | E146: =E143 -> 0 | F146: 0 | G146: 0 | H146: 0 | I146: 0 | J146: 0 | K146: 0 | L146: 0 | M146: 0 | N146: 0 | O146: 0 | P146: 0 | Q146: 0 | R146: 0 | S146: 0 | T146: 0 | U146: 0 | V146: 0 | W146: 0 | X146: =X143 -> 0 | Y146: =Y143 -> 0 | Z146: =Z143 -> 0
B147: Taxes | D147: =IF(D140>0,-D140*Tax,0) -> 0 | E147: 0 | F147: 0 | G147: 0 | H147: 0 | I147: 0 | J147: 0 | K147: 0 | L147: 0 | M147: 0 | N147: 0 | O147: 0 | P147: 0 | Q147: 0 | R147: 0 | S147: 0 | T147: 0 | U147: 0 | V147: 0 | W147: 0 | X147: 0 | Y147: 0 | Z147: 0
B148: EBIAT (After Tax EBIT) | D148: =D146+D147 -> 0 | E148: =E146+E147 -> 0 | F148: 0 | G148: 0 | H148: 0 | I148: 0 | J148: 0 | K148: 0 | L148: 0 | M148: 0 | N148: 0 | O148: 0 | P148: 0 | Q148: 0 | R148: 0 | S148: 0 | T148: 0 | U148: 0 | V148: 0 | W148: 0 | X148: 0 | Y148: =Y146+Y147 -> 0 | Z148: =Z146+Z147 -> 0
B149: Depreciation | D149: =D168 -> 0 | E149: =E168 -> 0 | F149: =F168 -> 0 | G149: =G168 -> 0 | H149: =H168 -> 0 | I149: 0 | J149: 0 | K149: 0 | L149: 0 | M149: 0 | N149: 0 | O149: 0 | P149: 0 | Q149: 0 | R149: 0 | S149: 0 | T149: 0 | U149: 0 | V149: 0 | W149: 0 | X149: 0 | Y149: =Y168 -> 0 | Z149: =Z168 -> 0
B150: Operating Cash Flow | D150: =D148+D149 -> 0 | E150: =E148+E149 -> 0 | F150: 0 | G150: 0 | H150: 0 | I150: 0 | J150: 0 | K150: 0 | L150: 0 | M150: 0 | N150: 0 | O150: 0 | P150: 0 | Q150: 0 | R150: 0 | S150: 0 | T150: 0 | U150: 0 | V150: 0 | W150: 0 | X150: 0 | Y150: =Y148+Y149 -> 0 | Z150: =Z148+Z149 -> 0
B151: Debt Service | D151: =-D221 -> 0 | E151: =-E221 -> 0 | F151: 0 | G151: 0 | H151: 0 | I151: 0 | J151: 0 | K151: 0 | L151: 0 | M151: 0 | N151: 0 | O151: 0 | P151: 0 | Q151: 0 | R151: 0 | S151: 0 | T151: 0 | U151: 0 | V151: 0 | W151: 0 | X151: 0 | Y151: =-Y221 -> 0 | Z151: =-Z221 -> 0
B152: Initial Equity | D152: =IF(D61=InvestmentYear,$D$45,0) -> 0 | E152: 0 | F152: 0 | G152: 0 | H152: 0 | I152: 0 | J152: 0 | K152: 0 | L152: 0 | M152: 0 | N152: 0 | O152: 0 | P152: 0 | Q152: 0 | R152: 0 | S152: 0 | T152: 0 | U152: 0 | V152: 0 | W152: 0 | X152: 0 | Y152: 0 | Z152: 0
B153: Initial Debt | D153: =IF(D61=InvestmentYear,$D$44,0) -> 0 | E153: 0 | F153: 0 | G153: 0 | H153: 0 | I153: 0 | J153: 0 | K153: 0 | L153: 0 | M153: 0 | N153: 0 | O153: 0 | P153: 0 | Q153: 0 | R153: 0 | S153: 0 | T153: 0 | U153: 0 | V153: 0 | W153: 0 | X153: 0 | Y153: 0 | Z153: 0
B154: New Debt for Equipment Replacement | D154: =IF(AND(D61=$D$16,$D$49="Yes"),$D$52,IF(AND(D61=$D$17,$D$49="Yes"),$D$54,IF(AND(D61=$D$18,$D$49="Yes"),$D$56,0))) -> 0 | E154: 0 | F154: 0 | G154: 0 | H154: 0 | I154: 0 | J154: 0 | K154: 0 | L154: 0 | M154: 0 | N154: 0 | O154: 0 | P154: 0 | Q154: 0 | R154: 0 | S154: 0 | T154: 0 | U154: 0 | V154: 0 | W154: 0 | X154: 0 | Y154: 0 | Z154: 0
B155: Levered Free Cash Flow | D155: =(-D152)+D150+(-D221) -> 0 | E155: =(-E152)+E150+(-E221) -> 0 | F155: 0 | G155: =(-G152)+G150+(-G221) -> 0 | H155: 0 | I155: 0 | J155: 0 | K155: 0 | L155: 0 | M155: 0 | N155: 0 | O155: 0 | P155: 0 | Q155: 0 | R155: 0 | S155: 0 | T155: 0 | U155: 0 | V155: 0 | W155: 0 | X155: 0 | Y155: 0 | Z155: 0
B158: Capex and Depreciation Schedule
B159: Infrastructure and Site Development Investment | D159: =IF(D61=InvestmentYear,$D$33,0) -> 0 | E159: 0 | F159: 0 | G159: 0 | H159: 0 | I159: 0 | J159: 0 | K159: 0 | L159: 0 | M159: 0 | N159: 0 | O159: 0 | P159: 0 | Q159: 0 | R159: 0 | S159: 0 | T159: 0 | U159: 0 | V159: 0 | W159: 0 | X159: 0 | Y159: 0 | Z159: 0
B160: Equipment Investment | D160: =IF(D61=InvestmentYear,$D$34,0) -> 0 | E160: 0 | F160: 0 | G160: 0 | H160: 0 | I160: 0 | J160: 0 | K160: 0 | L160: 0 | M160: 0 | N160: 0 | O160: 0 | P160: 0 | Q160: 0 | R160: 0 | S160: 0 | T160: 0 | U160: 0 | V160: 0 | W160: 0 | X160: 0 | Y160: 0 | Z160: 0
B161: New Equipment Capex | D161: =IF(D61=$D$16,$D$51,IF(D61=$D$17,$D$53,IF(D61=$D$18,$D$55,0))) -> 0 | E161: 0 | F161: 0 | G161: 0 | H161: 0 | I161: 0 | J161: 0 | K161: 0 | L161: 0 | M161: 0 | N161: 0 | O161: 0 | P161: 0 | Q161: 0 | R161: 0 | S161: 0 | T161: 0 | U161: 0 | V161: 0 | W161: 0 | X161: 0 | Y161: 0 | Z161: 0
B162: Depreciation - Infrastructure and Site Development | E162: =IFERROR(IF(DeprMeth="Straight-Line",SLN($D$160,SalvageValue,DepreciationAllInfrastructure),SYD($D$160,SalvageValue,DepreciationAllInfrastructure,E62)),0) -> 0 | F162: =IF(AND(F62<=DepreciationAllInfrastructure,F62>0),(SUM($D159:E$159)/DepreciationAllInfrastructure),0) -> 0 | G162: =IF(AND(G62<=DepreciationAllInfrastructure,G62>0),(SUM($D159:F$159)/DepreciationAllInfrastructure),0) -> 0 | H162: =IF(AND(H62<=DepreciationAllInfrastructure,H62>0),(SUM($D159:G$159)/DepreciationAllInfrastructure),0) -> 0 | I162: =IF(AND(I62<=DepreciationAllInfrastructure,I62>0),(SUM($D159:H$159)/DepreciationAllInfrastructure),0) -> 0 | J162: =IF(AND(J62<=DepreciationAllInfrastructure,J62>0),(SUM($D159:I$159)/DepreciationAllInfrastructure),0) -> 0 | K162: =IF(AND(K62<=DepreciationAllInfrastructure,K62>0),(SUM($D159:J$159)/DepreciationAllInfrastructure),0) -> 0 | L162: =IF(AND(L62<=DepreciationAllInfrastructure,L62>0),(SUM($D159:K$159)/DepreciationAllInfrastructure),0) -> 0 | M162: =IF(AND(M62<=DepreciationAllInfrastructure,M62>0),(SUM($D159:L$159)/DepreciationAllInfrastructure),0) -> 0 | N162: =IF(AND(N62<=DepreciationAllInfrastructure,N62>0),(SUM($D159:M$159)/DepreciationAllInfrastructure),0) -> 0 | O162: =IF(AND(O62<=DepreciationAllInfrastructure,O62>0),(SUM($D159:N$159)/DepreciationAllInfrastructure),0) -> 0 | P162: =IF(AND(P62<=DepreciationAllInfrastructure,P62>0),(SUM($D159:O$159)/DepreciationAllInfrastructure),0) -> 0 | Q162: =IF(AND(Q62<=DepreciationAllInfrastructure,Q62>0),(SUM($D159:P$159)/DepreciationAllInfrastructure),0) -> 0 | R162: =IF(AND(R62<=DepreciationAllInfrastructure,R62>0),(SUM($D159:Q$159)/DepreciationAllInfrastructure),0) -> 0 | S162: =IF(AND(S62<=DepreciationAllInfrastructure,S62>0),(SUM($D159:R$159)/DepreciationAllInfrastructure),0) -> 0 | T162: =IF(AND(T62<=DepreciationAllInfrastructure,T62>0),(SUM($D159:S$159)/DepreciationAllInfrastructure),0) -> 0 | U162: =IF(AND(U62<=DepreciationAllInfrastructure,U62>0),(SUM($D159:T$159)/DepreciationAllInfrastructure),0) -> 0 | V162: =IF(AND(V62<=DepreciationAllInfrastructure,V62>0),(SUM($D159:U$159)/DepreciationAllInfrastructure),0) -> 0 | W162: =IF(AND(W62<=DepreciationAllInfrastructure,W62>0),(SUM($D159:V$159)/DepreciationAllInfrastructure),0) -> 0 | X162: =IF(AND(X62<=DepreciationAllInfrastructure,X62>0),(SUM($D159:W$159)/DepreciationAllInfrastructure),0) -> 0 | Y162: =IF(AND(Y62<=DepreciationAllInfrastructure,Y62>0),(SUM($D159:X$159)/DepreciationAllInfrastructure),0) -> 0 | Z162: =IF(AND(Z62<=DepreciationAllInfrastructure,Z62>0),(SUM($D159:Y$159)/DepreciationAllInfrastructure),0) -> 0
B163: Depreciation - Composting Equipment | E163: =IFERROR(IF(DeprMeth="Straight-Line",SLN($D$161,SalvageValue,DepreciationComposting),SYD($D$161,SalvageValue,DepreciationComposting,E62)),0) -> 0 | F163: =IF(AND(F62<=DepreciationComposting,F62>0),(SUM($D160:E$160)/DepreciationComposting),0) -> 0 | G163: =IF(AND(G62<=DepreciationComposting,G62>0),(SUM($D160:F$160)/DepreciationComposting),0) -> 0 | H163: =IF(AND(H62<=DepreciationComposting,H62>0),(SUM($D160:G$160)/DepreciationComposting),0) -> 0 | I163: =IF(AND(I62<=DepreciationComposting,I62>0),(SUM($D160:H$160)/DepreciationComposting),0) -> 0 | J163: =IF(AND(J62<=DepreciationComposting,J62>0),(SUM($D160:I$160)/DepreciationComposting),0) -> 0 | K163: =IF(AND(K62<=DepreciationComposting,K62>0),(SUM($D160:J$160)/DepreciationComposting),0) -> 0 | L163: =IF(AND(L62<=DepreciationComposting,L62>0),(SUM($D160:K$160)/DepreciationComposting),0) -> 0 | M163: =IF(AND(M62<=DepreciationComposting,M62>0),(SUM($D160:L$160)/DepreciationComposting),0) -> 0 | N163: =IF(AND(N62<=DepreciationComposting,N62>0),(SUM($D160:M$160)/DepreciationComposting),0) -> 0 | O163: =IF(AND(O62<=DepreciationComposting,O62>0),(SUM($D160:N$160)/DepreciationComposting),0) -> 0 | P163: =IF(AND(P62<=DepreciationComposting,P62>0),(SUM($D160:O$160)/DepreciationComposting),0) -> 0 | Q163: =IF(AND(Q62<=DepreciationComposting,Q62>0),(SUM($D160:P$160)/DepreciationComposting),0) -> 0 | R163: =IF(AND(R62<=DepreciationComposting,R62>0),(SUM($D160:Q$160)/DepreciationComposting),0) -> 0 | S163: =IF(AND(S62<=DepreciationComposting,S62>0),(SUM($D160:R$160)/DepreciationComposting),0) -> 0 | T163: =IF(AND(T62<=DepreciationComposting,T62>0),(SUM($D160:S$160)/DepreciationComposting),0) -> 0 | U163: =IF(AND(U62<=DepreciationComposting,U62>0),(SUM($D160:T$160)/DepreciationComposting),0) -> 0 | V163: =IF(AND(V62<=DepreciationComposting,V62>0),(SUM($D160:U$160)/DepreciationComposting),0) -> 0 | W163: =IF(AND(W62<=DepreciationComposting,W62>0),(SUM($D160:V$160)/DepreciationComposting),0) -> 0 | X163: =IF(AND(X62<=DepreciationComposting,X62>0),(SUM($D160:W$160)/DepreciationComposting),0) -> 0 | Y163: =IF(AND(Y62<=DepreciationComposting,Y62>0),(SUM($D160:X$160)/DepreciationComposting),0) -> 0 | Z163: =IF(AND(Z62<=DepreciationComposting,Z62>0),(SUM($D160:Y$160)/DepreciationComposting),0) -> 0
B164: Depreciation Initial Investment | E164: =E162+E163 -> 0 | F164: =F162+F163 -> 0 | G164: 0 | H164: 0 | I164: 0 | J164: 0 | K164: 0 | L164: 0 | M164: 0 | N164: 0 | O164: 0 | P164: 0 | Q164: 0 | R164: 0 | S164: 0 | T164: 0 | U164: 0 | V164: 0 | W164: 0 | X164: 0 | Y164: 0 | Z164: 0
B165: Depreciation New Capex - Composting Equipment Replacement 1 | E165: =IF($D$16="N/A",0,IF(AND(E61>=$D$16,E61<$D$17,E62<=FacilityLifespan),IFERROR(IF(DeprMeth="Straight-Line",SLN($D$51,SalvageValue,DepreciationComposting),SYD($D$51,SalvageValue,DepreciationComposting,E62)),0),0)) -> 0 | F165: =IF($D$16="N/A",0,IF(AND(F61>=$D$16,F61<$D$17,F62<=FacilityLifespan),$D$51/DepreciationComposting,0)) -> 0 | G165: 0 | H165: 0 | I165: 0 | J165: 0 | K165: 0 | L165: 0 | M165: 0 | N165: 0 | O165: 0 | P165: 0 | Q165: 0 | R165: 0 | S165: 0 | T165: 0 | U165: 0 | V165: 0 | W165: 0 | X165: 0 | Y165: 0 | Z165: 0
B166: Depreciation New Capex - Composting Equipment Replacement 2 | E166: =IF($D$16="N/A",0,IF(AND(E62>=$D$16,E62<$D$17,E62<=FacilityLifespan),IFERROR(IF(DeprMeth="Straight-Line",SLN($D$53,SalvageValue,DepreciationComposting),SYD($D$53,SalvageValue,DepreciationComposting,E62)),0),0)) -> 0 | F166: =IF($D$17="N/A",0,IF(AND(F61>=$D$17,F61<$D$18,F62<=FacilityLifespan),$D$53/DepreciationComposting,0)) -> 0 | G166: 0 | H166: 0 | I166: 0 | J166: 0 | K166: 0 | L166: 0 | M166: 0 | N166: 0 | O166: 0 | P166: 0 | Q166: 0 | R166: 0 | S166: 0 | T166: 0 | U166: 0 | V166: 0 | W166: 0 | X166: 0 | Y166: 0 | Z166: 0
B167: Depreciation New Capex - Composting Equipment Replacement 3 | E167: =IF($D$16="N/A",0,IF(AND(E62>=$D$16,E62<$D$17,E62<=FacilityLifespan),IFERROR(IF(DeprMeth="Straight-Line",SLN($D$55,SalvageValue,DepreciationComposting),SYD($D$55,SalvageValue,DepreciationComposting,E62)),0),0)) -> 0 | F167: 0 | G167: 0 | H167: 0 | I167: 0 | J167: 0 | K167: 0 | L167: 0 | M167: 0 | N167: 0 | O167: 0 | P167: 0 | Q167: 0 | R167: 0 | S167: 0 | T167: 0 | U167: 0 | V167: 0 | W167: 0 | X167: 0 | Y167: 0 | Z167: 0
B168: Total Depreciation | E168: =SUM(E164:E167) -> 0 | F168: 0 | G168: 0 | H168: 0 | I168: 0 | J168: 0 | K168: 0 | L168: 0 | M168: 0 | N168: 0 | O168: 0 | P168: 0 | Q168: 0 | R168: 0 | S168: 0 | T168: 0 | U168: 0 | V168: 0 | W168: 0 | X168: 0 | Y168: 0 | Z168: 0
B170: Composting Equipment Sale at End of Project Life
B171: Initial Equipment | D171: =IF(SUM(E163:Z163)=D34,0,D34-SUM(E163:Z163)) -> 0
B172: Equipment Replacement 1 | D172: =IF(SUM(E165:Z165)=D51,0,D51-SUM(E165:Z165)) -> 0
B173: Equipment Replacement 2 | D173: =IF(SUM(E166:Z166)=D53,0,D53-SUM(E166:Z166)) -> 0
B174: Equipment Replacement 3 | D174: =IF(SUM(E167:Z167)=D55,0,D55-SUM(E167:Z167)) -> 0
B176: Financing
B177: Short-term Debt
B178: BOY Balance | D178: =IF(D61<OperationsStartYear,0,IF(D61=OperationsStartYear,$D$46,C182)) -> 0 | E178: 0 | F178: 0 | G178: 0 | H178: 0 | I178: 0 | J178: 0 | K178: 0 | L178: 0 | M178: 0 | N178: 0 | O178: 0 | P178: 0 | Q178: 0 | R178: 0 | S178: 0 | T178: 0 | U178: 0 | V178: 0 | W178: 0 | X178: 0 | Y178: 0 | Z178: 0
B179: Interest Payment | D179: =IF(ISERROR(-IPMT(InterestRateShortTermDebt,D62,TenorShortTermDebt,$D$46)),0,(-IPMT(InterestRateShortTermDebt,D62,TenorShortTermDebt,$D$46))) -> 0 | E179: 0 | F179: 0 | G179: 0 | H179: 0 | I179: 0 | J179: 0 | K179: 0 | L179: 0 | M179: 0 | N179: 0 | O179: 0 | P179: 0 | Q179: 0 | R179: 0 | S179: 0 | T179: 0 | U179: 0 | V179: 0 | W179: 0 | X179: 0 | Y179: 0 | Z179: 0
B180: Principal Payment | D180: =IF(ISERROR(-PPMT(InterestRateShortTermDebt,D62,TenorShortTermDebt,$D$46)),0,(-PPMT(InterestRateShortTermDebt,D62,TenorShortTermDebt,$D$46))) -> 0 | E180: 0 | F180: 0 | G180: 0 | H180: 0 | I180: 0 | J180: 0 | K180: 0 | L180: 0 | M180: 0 | N180: 0 | O180: 0 | P180: 0 | Q180: 0 | R180: 0 | S180: 0 | T180: 0 | U180: 0 | V180: 0 | W180: 0 | X180: 0 | Y180: 0 | Z180: 0
B181: Total Debt Service | D181: =D179+D180 -> 0 | E181: =E179+E180 -> 0 | F181: 0 | G181: 0 | H181: 0 | I181: 0 | J181: 0 | K181: 0 | L181: 0 | M181: 0 | N181: 0 | O181: 0 | P181: 0 | Q181: 0 | R181: 0 | S181: 0 | T181: 0 | U181: 0 | V181: 0 | W181: 0 | X181: 0 | Y181: =Y179+Y180 -> 0 | Z181: =Z179+Z180 -> 0
B182: EOY Balance | D182: =D178-D180 -> 0 | E182: =E178-E180 -> 0 | F182: =F178-F180 -> 0 | G182: 0 | H182: 0 | I182: 0 | J182: 0 | K182: 0 | L182: 0 | M182: 0 | N182: =N178-N180 -> 0 | O182: 0 | P182: 0 | Q182: 0 | R182: 0 | S182: 0 | T182: 0 | U182: 0 | V182: 0 | W182: 0 | X182: 0 | Y182: =Y178-Y180 -> 0 | Z182: =Z178-Z180 -> 0
B184: Long-term Debt
B185: BOY Balance | D185: =IF(D61<OperationsStartYear,0,IF(D61=OperationsStartYear,$D$47,C189)) -> 0 | E185: 0 | F185: 0 | G185: 0 | H185: 0 | I185: 0 | J185: 0 | K185: 0 | L185: 0 | M185: 0 | N185: 0 | O185: 0 | P185: 0 | Q185: 0 | R185: 0 | S185: 0 | T185: 0 | U185: 0 | V185: 0 | W185: 0 | X185: 0 | Y185: 0 | Z185: 0
B186: Interest Payment | D186: =IF(ISERROR(-IPMT(InterestRateLongTermDebt,D62,TenorLongTermDebt,$D$47)),0,(-IPMT(InterestRateLongTermDebt,D62,TenorLongTermDebt,$D$47))) -> 0 | E186: 0 | F186: 0 | G186: 0 | H186: 0 | I186: 0 | J186: 0 | K186: 0 | L186: 0 | M186: 0 | N186: 0 | O186: 0 | P186: 0 | Q186: 0 | R186: 0 | S186: 0 | T186: 0 | U186: 0 | V186: 0 | W186: 0 | X186: 0 | Y186: 0 | Z186: 0
B187: Principal Payment | D187: =IF(ISERROR(-PPMT(InterestRateLongTermDebt,D62,TenorLongTermDebt,$D$47)),0,(-PPMT(InterestRateLongTermDebt,D62,TenorLongTermDebt,$D$47))) -> 0 | E187: 0 | F187: 0 | G187: 0 | H187: 0 | I187: 0 | J187: 0 | K187: 0 | L187: 0 | M187: 0 | N187: 0 | O187: 0 | P187: 0 | Q187: 0 | R187: 0 | S187: 0 | T187: 0 | U187: 0 | V187: 0 | W187: 0 | X187: 0 | Y187: 0 | Z187: 0
B188: Total Debt Service | D188: =D186+D187 -> 0 | E188: =E186+E187 -> 0 | F188: 0 | G188: 0 | H188: 0 | I188: 0 | J188: 0 | K188: 0 | L188: 0 | M188: 0 | N188: 0 | O188: 0 | P188: 0 | Q188: 0 | R188: 0 | S188: 0 | T188: 0 | U188: 0 | V188: 0 | W188: 0 | X188: 0 | Y188: =Y186+Y187 -> 0 | Z188: =Z186+Z187 -> 0
B189: EOY Balance | D189: =D185-D187 -> 0 | E189: =E185-E187 -> 0 | F189: 0 | G189: 0 | H189: 0 | I189: 0 | J189: 0 | K189: 0 | L189: 0 | M189: 0 | N189: 0 | O189: 0 | P189: 0 | Q189: 0 | R189: 0 | S189: 0 | T189: 0 | U189: 0 | V189: 0 | W189: 0 | X189: 0 | Y189: =Y185-Y187 -> 0 | Z189: =Z185-Z187 -> 0
B191: DO NOT DELETE | D191: =IF($D$16="N/A",0,IF(D61=$D$16,1,IF(D61<$D$16,0,IF(AND(D61>$D$16,D62<=FacilityLifespan),C191+1,0)))) -> 0 | E191: 0 | F191: 0 | G191: 0 | H191: 0 | I191: 0 | J191: 0 | K191: 1 | L191: 2 | M191: 3 | N191: 4 | O191: 5 | P191: 6 | Q191: 7 | R191: 8 | S191: 9 | T191: 10 | U191: 11 | V191: 12 | W191: 13 | X191: 0 | Y191: 0 | Z191: 0
B192: Debt Tenor | D192: =IF(D16="N/A","N/A",IF(OperationsStartYear+FacilityLifespan-D16<TenorShortTermDebt,OperationsStartYear+FacilityLifespan-D16,TenorShortTermDebt)) -> 0
B193: Replacement Equipment 1 - Composting
B194: BOY Balance | D194: =IF(D191=1,$D$52,C198) -> 0 | E194: 0 | F194: 0 | G194: 0 | H194: 0 | I194: 0 | J194: 0 | K194: 0 | L194: 0 | M194: 0 | N194: 0 | O194: 0 | P194: 0 | Q194: 0 | R194: 0 | S194: 0 | T194: 0 | U194: 0 | V194: 0 | W194: 0 | X194: 0 | Y194: 0 | Z194: 0
B195: Interest Payment | D195: =IF(ISERROR(-IPMT(InterestRateShortTermDebt,D191,$D$192,$D$52)),0,(-IPMT(InterestRateShortTermDebt,D191,$D$192,$D$52))) -> 0 | E195: 0 | F195: 0 | G195: 0 | H195: 0 | I195: 0 | J195: 0 | K195: 0 | L195: 0 | M195: 0 | N195: 0 | O195: 0 | P195: 0 | Q195: 0 | R195: 0 | S195: 0 | T195: 0 | U195: 0 | V195: 0 | W195: 0 | X195: 0 | Y195: 0 | Z195: 0
B196: Principal Payment | D196: =IF(ISERROR(-PPMT(InterestRateShortTermDebt,D191,$D$192,$D$52)),0,(-PPMT(InterestRateShortTermDebt,D191,$D$192,$D$52))) -> 0 | E196: 0 | F196: 0 | G196: 0 | H196: 0 | I196: 0 | J196: 0 | K196: 0 | L196: 0 | M196: 0 | N196: 0 | O196: 0 | P196: 0 | Q196: 0 | R196: 0 | S196: 0 | T196: 0 | U196: 0 | V196: 0 | W196: 0 | X196: 0 | Y196: 0 | Z196: 0
B197: Total Debt Service | D197: =D195+D196 -> 0 | E197: =E195+E196 -> 0 | F197: 0 | G197: 0 | H197: 0 | I197: 0 | J197: 0 | K197: 0 | L197: 0 | M197: 0 | N197: 0 | O197: 0 | P197: 0 | Q197: 0 | R197: 0 | S197: 0 | T197: 0 | U197: 0 | V197: 0 | W197: 0 | X197: 0 | Y197: =Y195+Y196 -> 0 | Z197: =Z195+Z196 -> 0
B198: EOY Balance | D198: =D194-D196 -> 0 | E198: =E194-E196 -> 0 | F198: 0 | G198: 0 | H198: 0 | I198: 0 | J198: 0 | K198: 0 | L198: 0 | M198: 0 | N198: 0 | O198: 0 | P198: 0 | Q198: 0 | R198: 0 | S198: 0 | T198: 0 | U198: 0 | V198: 0 | W198: 0 | X198: 0 | Y198: =Y194-Y196 -> 0 | Z198: =Z194-Z196 -> 0
B200: DO NOT DELETE | D200: =IF($D$17="N/A",0,IF(D61=$D$17,1,IF(D61<$D$17,0,IF(AND(D61>$D$17,D62<=FacilityLifespan),C200+1,0)))) -> 0 | E200: 0 | F200: 0 | G200: 0 | H200: 0 | I200: 0 | J200: 0 | K200: 0 | L200: 0 | M200: 0 | N200: 0 | O200: 0 | P200: 0 | Q200: 0 | R200: 1 | S200: 2 | T200: 3 | U200: 4 | V200: 5 | W200: 6 | X200: 0 | Y200: 0 | Z200: 0
B201: Debt Tenor | D201: =IF(D17="N/A","N/A",IF(OperationsStartYear+FacilityLifespan-D17<TenorShortTermDebt,OperationsStartYear+FacilityLifespan-D17,TenorShortTermDebt)) -> 0
B202: Replacement Equipment 2 - Composting
B203: BOY Balance | D203: =IF(D200=1,$D$54,C207) -> 0 | E203: 0 | F203: 0 | G203: 0 | H203: 0 | I203: 0 | J203: 0 | K203: 0 | L203: 0 | M203: 0 | N203: 0 | O203: 0 | P203: 0 | Q203: 0 | R203: 0 | S203: 0 | T203: 0 | U203: 0 | V203: 0 | W203: 0 | X203: 0 | Y203: 0 | Z203: 0
B204: Interest Payment | D204: =IF(ISERROR(-IPMT(InterestRateShortTermDebt,D200,$D$201,$D$54)),0,(-IPMT(InterestRateShortTermDebt,D200,$D$201,$D$54))) -> 0 | E204: 0 | F204: 0 | G204: 0 | H204: 0 | I204: 0 | J204: 0 | K204: 0 | L204: 0 | M204: 0 | N204: 0 | O204: 0 | P204: 0 | Q204: 0 | R204: 0 | S204: 0 | T204: 0 | U204: 0 | V204: 0 | W204: 0 | X204: 0 | Y204: 0 | Z204: 0
B205: Principal Payment | D205: =IF(ISERROR(-PPMT(InterestRateShortTermDebt,D200,$D$201,$D$54)),0,(-PPMT(InterestRateShortTermDebt,D200,$D$201,$D$54))) -> 0 | E205: 0 | F205: 0 | G205: 0 | H205: 0 | I205: 0 | J205: 0 | K205: 0 | L205: 0 | M205: 0 | N205: 0 | O205: 0 | P205: 0 | Q205: 0 | R205: 0 | S205: 0 | T205: 0 | U205: 0 | V205: 0 | W205: 0 | X205: 0 | Y205: 0 | Z205: 0
B206: Total Debt Service | D206: =D204+D205 -> 0 | E206: =E204+E205 -> 0 | F206: 0 | G206: 0 | H206: 0 | I206: 0 | J206: 0 | K206: 0 | L206: 0 | M206: 0 | N206: 0 | O206: 0 | P206: 0 | Q206: 0 | R206: 0 | S206: 0 | T206: 0 | U206: 0 | V206: 0 | W206: 0 | X206: 0 | Y206: =Y204+Y205 -> 0 | Z206: =Z204+Z205 -> 0
B207: EOY Balance | D207: =D203-D205 -> 0 | E207: =E203-E205 -> 0 | F207: 0 | G207: 0 | H207: 0 | I207: 0 | J207: 0 | K207: 0 | L207: 0 | M207: 0 | N207: 0 | O207: 0 | P207: 0 | Q207: 0 | R207: 0 | S207: 0 | T207: 0 | U207: 0 | V207: 0 | W207: 0 | X207: 0 | Y207: =Y203-Y205 -> 0 | Z207: =Z203-Z205 -> 0
B209: DO NOT DELETE | D209: =IF($D$18="N/A",0,IF(D61=$D$18,1,IF(D61<$D$18,0,IF(AND(D61>$D$18,D62<=FacilityLifespan),C209+1,0)))) -> 0 | E209: 0 | F209: 0 | G209: 0 | H209: 0 | I209: 0 | J209: 0 | K209: 0 | L209: 0 | M209: 0 | N209: 0 | O209: 0 | P209: 0 | Q209: 0 | R209: 0 | S209: 0 | T209: 0 | U209: 0 | V209: 0 | W209: 0 | X209: 0 | Y209: 0 | Z209: 0
B210: Debt Tenor | D210: =IF(D18="N/A","N/A",IF(OperationsStartYear+FacilityLifespan-D18<TenorShortTermDebt,OperationsStartYear+FacilityLifespan-D18,TenorShortTermDebt)) -> N/A
B211: Replacement Equipment 3 - Composting
B212: BOY Balance | D212: =IF(D209=1,$D$56,C216) -> 0 | E212: 0 | F212: 0 | G212: 0 | H212: 0 | I212: 0 | J212: 0 | K212: 0 | L212: 0 | M212: 0 | N212: 0 | O212: 0 | P212: 0 | Q212: 0 | R212: 0 | S212: 0 | T212: 0 | U212: 0 | V212: 0 | W212: 0 | X212: 0 | Y212: 0 | Z212: 0
B213: Interest Payment | D213: =IF(ISERROR(-IPMT(InterestRateShortTermDebt,D209,$D$210,$D$56)),0,(-IPMT(InterestRateShortTermDebt,D209,$D$210,$D$56))) -> 0 | E213: 0 | F213: 0 | G213: 0 | H213: 0 | I213: 0 | J213: 0 | K213: 0 | L213: 0 | M213: 0 | N213: 0 | O213: 0 | P213: 0 | Q213: 0 | R213: 0 | S213: 0 | T213: 0 | U213: 0 | V213: 0 | W213: 0 | X213: 0 | Y213: 0 | Z213: 0
B214: Principal Payment | D214: =IF(ISERROR(-PPMT(InterestRateShortTermDebt,D209,$D$210,$D$56)),0,(-PPMT(InterestRateShortTermDebt,D209,$D$210,$D$56))) -> 0 | E214: 0 | F214: 0 | G214: 0 | H214: 0 | I214: 0 | J214: 0 | K214: 0 | L214: 0 | M214: 0 | N214: 0 | O214: 0 | P214: 0 | Q214: 0 | R214: 0 | S214: 0 | T214: 0 | U214: 0 | V214: 0 | W214: 0 | X214: 0 | Y214: 0 | Z214: 0
B215: Total Debt Service | D215: =D213+D214 -> 0 | E215: =E213+E214 -> 0 | F215: 0 | G215: 0 | H215: 0 | I215: 0 | J215: 0 | K215: 0 | L215: 0 | M215: 0 | N215: 0 | O215: 0 | P215: 0 | Q215: 0 | R215: 0 | S215: 0 | T215: 0 | U215: 0 | V215: 0 | W215: 0 | X215: 0 | Y215: =Y213+Y214 -> 0 | Z215: =Z213+Z214 -> 0
B216: EOY Balance | D216: =D212-D214 -> 0 | E216: =E212-E214 -> 0 | F216: 0 | G216: 0 | H216: 0 | I216: 0 | J216: 0 | K216: 0 | L216: 0 | M216: 0 | N216: 0 | O216: 0 | P216: 0 | Q216: 0 | R216: 0 | S216: 0 | T216: 0 | U216: 0 | V216: 0 | W216: 0 | X216: 0 | Y216: =Y212-Y214 -> 0 | Z216: =Z212-Z214 -> 0
B218: Summary
B219: Interest Payment | D219: =D179+D186+D195+D204+D213 -> 0 | E219: 0 | F219: 0 | G219: 0 | H219: 0 | I219: 0 | J219: 0 | K219: 0 | L219: 0 | M219: 0 | N219: 0 | O219: 0 | P219: 0 | Q219: 0 | R219: 0 | S219: 0 | T219: 0 | U219: 0 | V219: 0 | W219: 0 | X219: 0 | Y219: 0 | Z219: 0
B220: Principal Payment | D220: =D180+D187+D196+D205+D214 -> 0 | E220: 0 | F220: 0 | G220: 0 | H220: 0 | I220: 0 | J220: 0 | K220: 0 | L220: 0 | M220: 0 | N220: 0 | O220: 0 | P220: 0 | Q220: 0 | R220: 0 | S220: 0 | T220: 0 | U220: 0 | V220: 0 | W220: 0 | X220: 0 | Y220: 0 | Z220: 0
B221: Total Debt Service | D221: =D181+D188+D197+D206+D215 -> 0 | E221: 0 | F221: 0 | G221: 0 | H221: 0 | I221: 0 | J221: 0 | K221: 0 | L221: 0 | M221: 0 | N221: 0 | O221: 0 | P221: 0 | Q221: 0 | R221: 0 | S221: 0 | T221: 0 | U221: 0 | V221: 0 | W221: 0 | X221: 0 | Y221: 0 | Z221: 0
B223: DO NOT DELETE
B224: Compost Produced in YR 1 (tonnes/year) | D224: =IF(D73=0,"",D73) -> 
B225: Waste Diverted from Landfill in YR 1 (tonnes/year) | D225: =IF(D76=0,"",D76) -> 
B226: Total Revenues | D226: =IF(D120=0,"",D120) ->  | E226: =IF(E120=0,"",E120) -> 
... 3 more rows

Sheet 12-Tool Assumptions
B2: Tool Assumptions
B4: Guidance: | D4: This tab provides a list of additional assumptions used throughout the model, and their sources.
D7: Assumption | F7: Source
B8: 1 | D8: Revenues and expenses are projected over the same 20-year operating period for all technologies. The tool can tolerate construction periods greater than 1 and less than 3 years.
B9: 2 | D9: When electing to finance the purchase of replacement composting equipment, short-term debt and equity assumptions applied to the initial investment are also applied to all replacement equipment purchases over the life of the project.
B10: 3 | D10: When electing to purchase land, it is assumed that the land is financed along with the facility, but is sold at the end of the project life. The value of the land is inflated at the general rate of inflation.
B11: 4 | D11: Interest does not accrue during the construction period. Debt service begins in YR 1 of operations.
B12: 5 | D12: Compost sale prices assume bulk material sales.
B13: 6 | D13: Maintenance and insurance expenses are calculated as a percentage of capex prior to contingencies being added in.

Sheet 13-Sources
B2: Sources
C4: Source
B5: 1 | C5: Angelonidi, Eleni and Stephen R. Smith. "A Comparison of Wet and Dry Anaerobic Digestion Processes for the Treatment of Municipal Solid Waste and Food Waste." Water and Environment Journal, 29, 2015. pp. 549-557.
B6: =B5+1 -> 2 | C6: Agri-Food and Biosciences Institute, Peter Frost and Stephen Gilkinson. August 2010. "FIRST 18 MONTH PERFORMANCE SUMMARY FOR ANAEROBIC DIGESTION OF DAIRY COW SLURRY AT AFBI HILLSBOROUGH."
B7: =B6+1 -> 3 | C7: Bioferm Energy Systems. "Anaerobic Digestion FAQ". Bioferm Energy Systems. n.d. Accssed August 2014.
B8: =B7+1 -> 4 | C8: Blair, Charlie. "Energy from Waste Potential in Scotland." January 2010. https://www.webarchive.org.uk/wayback/archive/3000/https://www.gov.scot/resource/doc/311011/0098129.pdf. Accessed December 2014.
B9: 5 | C9: Chastain, John P. and James J. Camberato. "Dairy Manure Production and Nutrient Content." Confined Animal Manure Manager Certification Program Manual: Dairy Version, 2004.
B10: 6 | C10: Crowe, Matt, Kirsty Nolan, Caitríona Collins, Gerry Carty, Brian Donlon, Merete Kristoffersen, Morten Brøgger, Morten Carlsbæk, Reto Michael Hummelshøj, and Claus Dahl Thomsen (European Topic Centre on Waste). "Biodegradable Municipal Waste Management in Europe Part 3: Technology and Market Issues." January 2002. https://www.eea.europa.eu/publications/topic_report_2001_15_Part3. Accessed July 2014.
B11: 7 | C11: Eunomia Research & Consulting. "Annexes." Costs for Municipal Waste Management in the EU. European Commission, 2002. Web.
B12: 8 | C12: Fachagentur Nachwachsende Rohstoffe (FNR). Biogas: An Introduction. 2013. https://www.fnr.de/fileadmin/Projekte/2021/Mediathek/brosch.biogas-2013-en-web-pdf.pdf.
B13: 9 | C13: Goldstein, Nora. "High Solids Anaerobic Digestion and Composting in San Jose." Biocycle Magazine, March/April 2014, https://www.biocycle.net/2014/03/28/high-solids-anaerobic-digestion-composting-in-san-jose/. Accessed October 2014.
B14: 10 | C14: Italian Composting and Biogas Association. Biogas e Compost: da rifiuti organici selezionati. October 2011. https://www.compost.it/attachments/604_CIC_biogas_e_compost_2011_definitivo.pdf
B15: 11 | C15: Italian Composting and Biogas Association. July 2014.
B16: 12 | C16: Lansing, Stephanie, Raúl Botero Botero, and Jay F. Martin. "Waste treatment and biogas quality in small-scale agricultural digesters." Bioresource Technology, 99, 13, 2008, pp. 5881-5890.
B17: 13 | C17: Levis, James W. and Morton A. Barlaz (North Carolina State University). Anaerobic Digestion Process Model Documentation. September 2013. Accessed September 2014.
B18: 14 | C18: Levis, James W. and Morton A. Barlaz (North Carolina State University). Composting Process Model Documentation. November 2013. Accessed September 2014.
B19: 15 | C19: Liebrand, Carolyn B., and K. Charles Ling. Cooperative Approaches for Implementation of Dairy Manure Digesters. USDA Rural Development Research Report 217, 2009. https://naldc.nal.usda.gov/catalog/35107.
B20: 16 | C20: Mata-Alvarez, J. Biomethanization of the organic fraction of municipal solid wastes. IWA Publishing. 2003. Chapter 4. Accessed October 2014.
B21: 17 | C21: Midwest Plan Service. Livestock Waste Facilities Handbook. 1985.
B22: 18 | C22: Moriarty, Kristi. Feasibility Study of Anaerobic Digestion of Food Waste in St. Bernard, Louisiana: A Study Prepared in Partnership with the Environmental Protection Agency for the RE-Powering America’s Land Initiative: Siting Renewable Energy on Potentially Contaminated Land and Mine Sites. Golden: National Renewable Energy Laboratory, 2013. Web. Oct 2014.
B23: 19 | C23: Pier for California Energy Commission Report. "Characterization of Food and Green Wastes As Feedstock for Anaerobic Digesters." July 2005. Accessed November 2014.
B24: 20 | C24: Rigby, Hannah and Stephen R. Smith (WRAP). "New Markets for Digestate from Anaerobic Digestion." August 2011. https://archive.wrap.org.uk/sites/files/wrap/New_Markets_for_AD_WRAP_format_Final_v2.c6779ccd.11341.pdf. Accessed November 2014.
B25: 21 | C25: Rogroff, Clark. Rogroff, Clark. “TFC Recycling: Going the Extra Mile.” Waste Advantage Magazine 5, 7, 2014, pp. 21-25. https://www.scsengineers.com/wp-content/uploads/2015/03/Rogoff_Clark_Anaerobic_Digestion_WASTEADVANTAGE.pdf. Accessed November 2014.
B26: 22 | C26: Rynk, R., Maarten va de Kamp, George B. Willson, Mark E. Singley, Tom L. Richard, John J. Kolega, Francis R. Gouin, Lucien Laliberty, Jr., David Kay, Dennis W. Murphy, Harry A.J. Hotink, and William F. Brinton. On-Farm Composting Handbook. Ithaca: Northeast Regional Agricultural Engineering Service, 1992. Web. Oct 2014. https://campus.extension.org/pluginfile.php/48384/course/section/7167/NRAES%20FarmCompost%20manual%201992.pdf.
B27: 23 | C27: SmartFerm for Zero Waste Energy. California.
B28: 24 | C28: Sniffer (2010). "Review of Available Literature on the Carbon and Nitrogen Contents and C:N Ratios of Composting Input Feedstock." Accessed September 2014.
B29: 25 | C29: Swedish Gas Center, 2012, Basic Data on Biogas- Second Edition, ISBN: 978-91-85207-10-7.
B30: 26 | C30: Tolvik Consulting. The Economics of Anaerobic Digestion of Source Segregated Organic Wastes in the UK. Edition 2. 2010. Accessed September 2014.
B31: 27 | C31: University of Minnesota. "Anaerobic Digester Economics" Spreadsheet. 2009.
B32: 28 | C32: US Environmental Protection Agency. "The Benefits of Anaerobic Digestion of Food Waste At Wastewater Treatment Facilities." n.d. https://archive.epa.gov/region9/organics/web/pdf/why-anaerobic-digestion.pdf.
B33: 29 | C33: Wheeler, PA and L de Rome. Waste Pre-Treatment: A Review. R&D Technical Report PI-344/TR. Bristol: Environment Agency, 2002.
B34: 30 | C34: World Bank. PPP conversion factor, private consumption (LCU per international $). n.d. https://data.worldbank.org/indicator/PA.NUS.PRVT.PP. Accessed October 2017.
B35: 31 | C35: WRAP. Summary Report – Material Bulk Densities, Report prepared by Resource Futures. 2009. https://silo.tips/download/material-bulk-densities. Accessed June 2015.

Sheet 25-Misc (hidden)
B2: TPY
A3: Wet AD | B3: 20000 | C3: 40000 | D3: 60000 | E3: 80000 | G3: 20000 | H3: 40000 | I3: 60000 | J3: 80000
A4: Min Capex | B4: 5000000 | C4: 7000000 | D4: 8000000 | E4: 9000000 | G4: =B4*1.29 -> 6450000 | H4: =C4*1.29 -> 9030000 | I4: 10320000 | J4: 11610000
A5: Min Capex/Tonne | B5: =B4/B3 -> 250 | C5: =C4/C3 -> 175 | D5: =D4/D3 -> 133.3333333 | E5: =E4/E3 -> 112.5 | G5: =B5*1.29 -> 322.5 | H5: 225.75 | I5: 172 | J5: 145.125
A6: Max Capex | B6: =B7*B3 -> 6000000 | C6: =C7*C3 -> 11000000 | D6: =D7*D3 -> 15000000 | E6: =E7*E3 -> 16000000 | G6: =B6*1.29 -> 7740000 | H6: 14190000 | I6: 19350000 | J6: 20640000
A7: Max Capex/Tonne | B7: =300 -> 300 | C7: =275 -> 275 | D7: =250 -> 250 | E7: =200 -> 200 | G7: =B7*1.29 -> 387 | H7: 354.75 | I7: 322.5 | J7: 258
A9: % Cheaper | B9: 0.1
B10: TPY
A11: Dry AD | B11: 20000 | C11: 40000 | D11: 60000 | E11: 80000 | G11: 20000 | H11: 40000 | I11: 60000 | J11: 80000
A12: Min Capex | B12: =B4*(1-$B$9) -> 4500000 | C12: =C4*(1-$B$9) -> 6300000 | D12: =D4*(1-$B$9) -> 7200000 | E12: =E4*(1-$B$9) -> 8100000 | G12: =B12*1.29 -> 5805000 | H12: =C12*1.29 -> 8127000 | I12: 9288000 | J12: 10449000
A13: Min Capex/Tonne | B13: =B12/B11 -> 225 | C13: =C12/C11 -> 157.5 | D13: =D12/D11 -> 120 | E13: =E12/E11 -> 101.25 | G13: =B13*1.29 -> 290.25 | H13: 203.175 | I13: 154.8 | J13: 130.6125
A14: Max Capex | B14: =B6*(1-$B$9) -> 5400000 | C14: =C6*(1-$B$9) -> 9900000 | D14: =D6*(1-$B$9) -> 13500000 | E14: =E6*(1-$B$9) -> 14400000 | G14: =B14*1.29 -> 6966000 | H14: 12771000 | I14: 17415000 | J14: 18576000
A15: Max Capex/Tonne | B15: =B14/B11 -> 270 | C15: =C14/C11 -> 247.5 | D15: =D14/D11 -> 225 | E15: =E14/E11 -> 180 | G15: =B15*1.29 -> 348.3 | H15: 319.275 | I15: 290.25 | J15: 232.2
A18: Complete Mix- Without dewatering
A19: Cows | B19: 250 | C19: 500 | D19: 700 | E19: 2000 | F19: 3000 | G19: 4000 | H19: 5000
A20: Lbs /year | B20: =B19*120*365 -> 10950000 | C20: =C19*120*365 -> 21900000 | D20: =120*D19*365 -> 30660000 | E20: =120*E19*365 -> 87600000 | F20: =120*F19*365 -> 131400000 | G20: =120*G19*365 -> 175200000 | H20: =120*H19*365 -> 219000000
A21: MT/year | B21: =B20/2204.62 -> 4966.842358 | C21: =C20/2204.62 -> 9933.684717 | D21: =D20/2204.62 -> 13907.1586 | E21: 39734.73887 | F21: 59602.1083 | G21: 79469.47773 | H21: 99336.84717
A22: Low | C22: 684445 | D22: 811545 | E22: 1637695 | F22: 2273195 | G22: 2908695 | H22: 3544195
A23: High | C23: 810897 | D23: 961478 | E23: 1940260 | F23: 2693169 | G23: 3446078 | H23: 4198987
A25: dewatering costs
A26: Low | C26: 12846 | D26: 15231 | E26: 30737 | F26: 42664 | G26: 54591 | H26: 66519
A27: High | C27: 96344 | D27: 114235 | E27: 230526 | F27: 319981 | G27: 409435 | H27: 498890
